{"text_format":"1","workbook":"xlsx","n_sheets":14,"sheets":["点検結果記載シート","評価区分シート","一括データ管理","一括データ管理_整形用","事業所別集計(レーダーチャート比較)","ケアマネジャー別集計(レーダーチャート比較)","一括データ管理_整形用(経年)","事業所別集計(経年表示-集合棒グラフ)","ケアマネジャー別集計(経年表示-集合棒グラフ)","アドバイス文に関する追加説明","算出パラメータ","算出シート","files","Config"],"not_rendered":{"charts":27,"images":11,"macros":1,"external_links":0,"defined_names":20,"comments":0,"pivot_tables":0},"unopened":[],"bounds":{"document_bytes":16777216,"sheet_cells":100000,"rows_first":2000,"rows_last":500,"rows_between":2000,"halvings":0,"cell_chars":16384,"cell_head_chars":4096},"cells_cut":0,"cells_raw":0,"read":"whole","date_system":"1900"}

{"sheet":"点検結果記載シート","index":0,"n_rows":74,"n_cols":8,"rows_kept":74,"cut":false,"hidden":false,"merged":[]}
["Ver 2.0.0"]
[]
[]
[]
[]
["区分","点検対象の書類","No","項目","点検結果","評価基準 ※明記されている場合を除き、「有」の条件が記載されていない場合を「無」とする。","運営基準","分類"]
[null,null,null,"点検日",null,"点検日を記入ください。"]
["属性情報","保険者",null,"市区町村名",null,"ご所属の市区町村名を記入ください。"]
["※集計用任意入力項目\n※判定には影響しません","点検者",null,"点検者名",null,"点検者名を記入ください。"]
[null,"ケアマネジャー",null,"ケアマネジャー名",null,"ケアマネジャー名を記入ください。"]
[null,"事業所",null,"事業所名",null,"事業所名を記入ください。"]
[null,"被保険者",null,"被保険者名",null,"被保険者を記入ください。"]
["ケアプラン点検","アセスメントシート",1,"課題分析の理由",null,"2：初回、更新、区変、プラン変更、退院、状態変化等の理由が記載されている。 \n1：初回、更新、区変、プラン変更、退院、状態変化等の理由が記載されていない。 ",null,"課題の分析"]
[null,null,2,"かかりつけ医",null,"3：かかりつけ医と連携が取れている様子が伺える。\n2：かかりつけ医が1か所以上記載されている。\n1：かかりつけ医が記載されていない。",null,"疾病・心身状態の把握"]
[null,null,3,"既往歴の有無・内容",null,"2：既往歴の有無と内容が記載されている。\n1：既往歴の有無と内容が記載されていない。\n他：主治医意見書の「既往歴」欄に病歴の記載がない。",null,"疾病・心身状態の把握"]
[null,null,4,"主傷病",null,"2：主傷病が記載されている。\n1：主傷病が記載されていない。",null,"疾病・心身状態の把握"]
[null,null,5,"内服薬・処置",null,"2：内服薬・処置が記載されている。内服薬・処置ともに無い場合は、その旨が記載されている。\n1：2に該当しない。\n【お薬手帳のコピー等が添付されている場合でも、「2」としてください。】",null,"疾病・心身状態の把握"]
[null,null,6,"ADL",null,"3：①②両方に該当する。\n2：①②のいずれかが該当する。\n1：上記に該当しない。\n\n① 起居移動（寝返り・起きあがり・座位保持・立位保持・立ち上がり・移乗・移動方法・歩行・階段昇降等）の状況が記載されている。\n② 食事、整容、更衣、入浴、トイレ動作等の状況が記載されている。",null,"生活の全体像の把握"]
[null,null,7,"IADL",null,"3：①～⑧すべて記載されている。（明らかに該当しない項目を除く。 例：寝たきりの方の車の運転等）\n2：①～⑧のうち半分以上が記載されている。\n1：上記に該当しない。\n\n① 調理\n② 掃除\n③ 洗濯\n④ 買物\n⑤ 服薬管理\n⑥ 金銭管理\n⑦ 電話\n⑧ 外出時の移動手段（交通機関の利用、車の運転等）",null,"生活の全体像の把握"]
[null,null,8,"認知機能や判断能力",null,"3：①②両方に該当する。\n2：①②のいずれかに該当する。\n1：上記に該当しない。\n\n① 日常の意思決定を行うための認知機能の程度、判断能力の状況が記載されている。\n② （認知症と診断されている場合）中核症状及び行動・心理症状の状況（症状が見られる頻度や状況、背景になりうる要因等）が記載されている。\n【認知症でない場合は、日常の意思決定を行うための認知機能の程度、判断能力の状況が記載されていれば「３」としてください。】",null,"疾病・心身状態の把握"]
[null,null,9,"コミュニケーションにおける理解と表出の状況",null,"3：①②両方に該当する。\n2：①②のいずれかが該当する。\n1：上記に該当しない。\n\n① コミュニケーションの理解の状況が記載されている。\n② コミュニケーションの表出の状況が記載されている。",null,"疾病・心身状態の把握"]
[null,null,10,"一日に摂取すべき水分量",null,"2：その利用者が一日に摂取すべき水分量が記載されている。（アセスメントシート以外の別紙に記載されている場合であっても「2」とする。）\n1：その利用者が一日に摂取すべき水分量が記載されていない。",null,"生活の全体像の把握"]
[null,null,11,"実際に摂取した水分量",null,"2：その利用者が実際に摂取している一日の水分量が記載されている。（アセスメントシート以外の別紙に記載されている場合であっても「2」とする。）\n1：その利用者が実際に摂取している一日の水分量が記載されていない。",null,"生活の全体像の把握"]
[null,null,12,"食事内容・カロリー数",null,"３：①～④すべてが記載されている。\n２：①～④のいずれかが記載されている。\n１：上記に該当しない。\n\n① 食事摂取の状況（食形態、食事回数、食事の内容、食事量、栄養状態、水分量、食事の準備をする人等）\n② 必要な食事の量（栄養、水分量等）\n③ 摂食嚥下機能の状態\n④ 食事制限の有無",null,"生活の全体像の把握"]
[null,null,13,"BMI",null,"２：BMI が記載されている。\n１：BMI が記載されていない。\n【身長・体重が記載されている場合も、BMIが記載されていなければ「1」としてください。】",null,"疾病・心身状態の把握"]
[null,null,14,"口腔衛生の状態",null,"３：以下①②両方に該当する。\n２：以下①②のいずれかが該当する。\n１：以下①②いずれも該当しない。\n\n① 口腔ケアの自立の程度が記載されている。\n② 残歯、義歯の状況、かみ合わせや口腔内の状態（汚れ、舌苔、口臭、口腔乾燥､腫れ、出血の有無等）のいずれかが記載されている。",null,"疾病・心身状態の把握"]
[null,null,15,"排尿、排便の状態",null,"３：①～⑥すべてが記載されている。\n２：①～⑥いずれかが記載されている。\n１：上記に該当しない。\n\n① 排泄の場所・方法\n② 尿・便意の有無\n③ 失禁の状況等\n④ 後始末の状況等\n⑤ 排泄リズム（日中・夜間の頻度、タイミング等）\n⑥ 排泄内容（便秘や下痢の有無等）",null,"生活の全体像の把握"]
[null,null,16,"清潔の保持",null,"3：①～④すべてに該当する。\n2：①～④のいずれかが該当する。\n1：上記に該当しない。\n\n① 入浴の状況が記載されている。\n② 整容の状況が記載されている。\n③ 皮膚や爪の状況（皮膚や爪の清潔状況、皮膚や爪の異常の有無等）が記載されている。\n④ 寝具や衣類の状況（汚れの有無、交換頻度等）が記載されている。",null,"生活の全体像の把握"]
[null,null,17,"「一部介助」項目の特記",null,"3：一部できること、できないことが記載されている。また、転倒・骨折のリスクについても記載がなされている。\n2：一部できること、できないことが記載されているが、転倒・骨折のリスクについては記載がなされていない。\n1：上記に該当しない。",null,"疾病・心身状態の把握"]
[null,null,18,"「見守り」項目の特記",null,"2：必要な見守りの内容が記載されている。\n1：必要な見守りの内容が記載されていない。\n他：「見守り」項目がない。",null,"疾病・心身状態の把握"]
[null,null,19,"外出頻度、外出先",null,"３：外出頻度、外出先がどちらも記載されている。\n２：外出頻度が記載されている。\n１：上記に該当しない。\n他：アセスメント内容等から判断し、外出できない理由（感染症等）があると考えられる。\n【外出していない場合は、外出の有無が記載されていれば「2」としてください。】",null,"生活の全体像の把握"]
[null,null,20,"利用者の主訴・要望",null,"３：利用者がどのような生活を送りたいと考えているか（暮らしの中で特に継続したいことや重視したいこと等）について、本人の言葉や本人が家族等に表明している意思を基に具体的に記載されている。\n（第 2 号被保険者ケアプランの場合は、社会的また家庭内においてどのような生活を望むのかの記載がある。）\n２：利用者がどのような生活を送りたいと考えているかについて記載されているが、記載内容が具体性に欠ける。\n１：利用者の主訴や要望が記載されていない。",null,"主訴・意思の把握・尊重"]
[null,null,21,"一日の過ごし方",null,"３：利用者の 24 時間の過ごし方について、少なくとも、起就床、食事、服薬、排せつの 4 つ全てが記載されている。\n２：起就床、食事、服薬、排せつのうち３つが記載されている。\n１：起就床、食事、服薬、排せつのうち記載されていないものが 2 つ以上ある。\n【服薬については、第２表に服薬に関する記載があるにも関わらず、服薬に関する記載が第３表に記載されていない場合は「記載なし」としてください。】",null,"生活の全体像の把握"]
[null,null,22,"離床、臥床",null,"２：項目No.21「1 日の過ごし方」の活動状況に離床・臥床の別が明示的に記載されている。\n１：2 に該当しない。\n他：サービス内容等から判断し、寝たきりであると考えられる。",null,"生活の全体像の把握"]
[null,null,23,"現在の生活状況",null,"3：以下①②の両方に該当する。\n2：以下①②のいずれかに該当する。\n1：上記に該当しない。\n\n① 現在の生活状況が記載されている。\n② その人らしさを象徴する情報（利用者がこれまでの生活の中で大切にしてきたことやエピソード、価値観、趣味、得意なことや苦手なことなど）が簡潔に記載されている。",null,"生活の全体像の把握"]
[null,null,24,"生活歴",null,"３：疾患等を発症するまでの生活や考え方が記載されており、価値観、趣味、強みを発揮できることや苦手なことなど、本人のその人らしさを捉えることができる。（出生場所、最終学歴、成人期～現在の就労、社会活動、結婚、受傷前までの生活の状況等についても記載されている。）\n２：生活歴が記載されているが、記載内容が具体性に欠ける。\n１：病歴のみが記載されている。",null,"主訴・意思の把握・尊重"]
[null,null,25,"家族の主訴・要望",null,"3：家族の続柄とともに、ありのままの言葉で具体的に主訴や要望が記載されている。（続柄はアセスメントシート以外に記載されていてもよいものとする。）\n2：家族の主訴や要望が記載されているが、記載内容が具体性に欠ける。\n1：家族の主訴や要望が記載されていない。\n他：連絡のつく家族がいない。",null,"家族の状況の把握と支援"]
[null,null,26,"経済状況",null,"3：①②両方に該当する。\n2：①に該当する。\n1：上記に該当しない。\n\n① 利用可能な介護費用額（第 2 号被保険者のケアプランの場合は今後の収入の見通しを含む）が記載されている。\n② 利用可能な介護以外の費用額が記載されている。",null,"生活の全体像の把握"]
[null,null,27,"本人の役割",null,"3：本人の現在の地域や家庭での役割とともに、今後希望・想定する役割が記載されている。\n2：現在の役割、希望・想定する役割のいずれかが記載されていない。\n1：現在の役割、希望・想定する役割のいずれも記載されていない。",null,"主訴・意思の把握・尊重"]
[null,null,28,"課題の確認",null,"2：項目ごと、項目間で関連する課題を抽出している。\n1：2に該当しない。",null,"課題の分析"]
[null,null,29,"課題の分析結果の文章化",null,"3：項目ごと、項目間で関連する課題を抽出し、具体的に記載している。また、課題と「利用者及び家族の生活に対する意向」との間に関連性がある。\n2：項目ごと、項目間で関連する課題を抽出し、記載しているが、課題と「利用者及び家族の生活に対する意向」との間に関連性がない。または、記載内容が具体性に欠ける。\n1：上記に該当しない。",null,"課題の分析"]
[null,null,30,"家族の状況",null,"３：家族の介護への協力の意向、介護力に加え、家族の理解度や受け止め、ストレス等の状況を把握している。\n（家族の就労・就業状況、家族関係についても記載されている。）\n２：家族の介護への協力の意向、介護力を把握しているが、家族の理解度や受け止め、ストレス等の状況は把握していない。もしくは、家族の状況が記載されていないが、聞き取りが出来ない理由（例：家族が疎遠、死別等）が記載されている。\n１：上記に該当しない。",null,"家族の状況の把握と支援"]
[null,null,31,"家族関係や周辺の社会資源との状況",null,"3：利用者の家族構成が分かる図（ジェノグラム）に、周辺の社会資源との関係性が補足されている（エコマップが記載されている）。\n2：利用者の家族構成が分かる図（ジェノグラム）のみが記載されている。\n1：利用者の家族構成が分かる図（ジェノグラム）が記載されていない。",null,"生活の全体像の把握"]
[null,null,32,"留意すべき事項",null,"2：留意すべき事項・状況があり、他制度（医療を含む）との連携について記載されている。\n1：留意すべき事項・状況があるが、他制度（医療を含む）との連携について記載されていない。\n他：留意すべき事項・状況がない。\n【本項目は、留意すべき事項・状況があると思われる場合に、他制度との連携の記載があるかを確認します。留意すべき事項・状況がない場合は「他」とします。】",null,"課題の分析"]
[null,"居宅サービス計画書（第1表）",33,"利用者及び家族の生活に対する意向を踏まえた課題分析の結果",null,"３：以下①②に該当する。また、利用者及び家族の意向が固有の具体性をもって記載されている。\n２：以下①②に該当するが、利用者に固有の具体性をもって記載されていない。\n１：上記に該当しない。\n① 本人の意向は、本人によって語られた内容が記載されている。（本人が意思表出できない場合には、可能な限りケアマネジャーが本人の気持ちを代弁している場合は該当ありとする。）\n② 家族の意向は、家族のうち誰の意向なのかわかるように続柄または名前の記載がある。（アセスメント内容等から判断し、連絡のとれる家族がいないと考えられる場合は、記載がなくとも該当ありとする。）\n【②について、具体的に続柄や名前の記載がなくても、アセスメント内容等から判断し、家族のうち誰の意向なのかが明らかに判断できる場合は、該当ありとしてください。】",null,"主訴・意思の把握・尊重"]
[null,null,34,"総合的な援助の方針における自立の具体性",null,"3：以下①～③すべてに該当する場合は「3」とする。\n2：以下①②のいずれも該当する場合は「2」とする。\n1：上記に該当しない。\n\n①利用者及び家族を含むケアチームが目指すべき方向性を確認し合える内容が、利用者に固有の具体性をもって記載されている。\n②緊急事態が想定される場合は、対応機関やその連絡先、どのような場合を緊急事態と考えるか、対応の方法等について記載されている。\n③生活機能の維持に向けて、利用者が身体機能の状態にあった生活動作を身につける支援や、必要なリハビリテーションやセルフケアの継続が出来るような支援が示されている。",null,"課題を解決するためのサービス計画"]
[null,"居宅サービス計画書（第2表）",35,"アセスメントで抽出した課題に基づくニーズの記載",null,"3：以下①～③すべてに該当する。\n2：以下①は該当するが、②③の両方もしくはいずれかが該当しない。\n1：以下①が該当しない。\n\n①アセスメントシートで抽出した課題と記載されているニーズの整合性が取れている。\n②状態（状況）の改善・維持・悪化防止など、自立支援に向けたアセスメントの視点をもとに、それぞれの課題が導き出されている。\n③利用者の望む生活を実現する課題となっている。",null,"課題を解決するためのサービス計画"]
[null,null,36,"利用者や多職種に理解できる表記",null,"３：以下①～③すべてに該当する。\n２：以下①②に該当する。\n１：上記に該当しない。\n\n① 目指す方向性と役割が記載されている。\n② 専門用語を用いずに記載されている。\n③ 利用者の意欲を引き出す肯定的な表現で記載されている。\n【「理解できる/できない」は、主に次に 2 つの視点で判断します。\n① 専門用語を用いず、肯定的に表記しているか。\n② 本人・家族・多職種が目指す方向性とそれぞれの役割が分かるか。】",null,"主訴・意思の把握・尊重"]
[null,null,37,"長期目標",null,"3：以下①～③すべてに該当する。\n2：以下③に該当する。\n1：上記に該当しない。\n\n①「生活全般の解決すべき課題（ニーズ）」に対応した、利用者が達成可能な目標が設定されている。\n②具体的に達成すべき内容がわかりやすくイメージできる記載になっている。\n③長期目標の期間は、開始日、終了日ともに認定の有効期間内に設定されている。",null,"課題を解決するためのサービス計画"]
[null,null,38,"短期目標",null,"3：以下①～⑤すべてに該当する。短期目標が複数ある場合は、その概ね半数以上がこの基準に該当すること。\n2：以下①②③に該当する。短期目標が複数ある場合は、その概ね半数以上がこの基準に該当すること。\n1：以下①②③で該当しない項目がある。\n\n①状態像から判断し、明らかに達成不可能な目標が設定されていない。\n②長期目標と同じ目標が設定されていない。\n③サービスを利用することが目標に設定されていない。（「〇〇に通う」、「〇〇サービスを受ける」等となっていない。）\n④長期目標を達成するための段階的な目標と期間になっている。\n⑤抽象的な目標設定ではなく、利用者及び家族等が具体的に何をするのかをイメージできる表記になっている。",null,"課題を解決するためのサービス計画"]
[null,null,39,"本人の役割設定",null,"2：サービス種別、提供を行う事業所欄に「本人」や利用者の氏名等が記載されている。なお、本人の役割はどんなに小さなことでも良い。\n（第2号被保険者のプランの場合は、本人の受障前（要介護となる前）の社会や家庭内での役割と、本人の現在の社会的な立場、社会及び家庭内での役割について記載されている。）\n1：2に該当しない。\n【本項目については第1表～第3表の記載から判定して下さい。】",null,"課題を解決するためのサービス計画"]
[null,null,40,"介護保険サービス",null,"2：生活全般の解決すべき課題に対して、本人の力で取り組めること、インフォーマルサポートの協力により取り組めること、介護保険サービスで取り組めることの内容および頻度が記載されている。かつ、利用者の状況等、当該サービスを必要とする根拠が記載されている。\n1：上記に該当しない。\n他：福祉用具貸与以外の介護保険サービスの利用がない。\n【本人の状態や環境等により、必要なサービスの内容・頻度は異なります。根拠をもってサービスの内容・頻度を計画しているかを確認することが大切です。】",null,"課題を解決するためのサービス計画"]
[null,null,41,"福祉用具貸与・販売の種類と利用の理由",null,"2：利用する福祉用具の記載があり、利用の理由または利用内容が記載されている。\n1：利用する福祉用具の記載があるが、利用の理由及び利用内容が記載されていない。\n他：福祉用具貸与・販売の利用がない。",null,"課題を解決するためのサービス計画"]
[null,null,42,"介護保険外サービス",null,"２：保険外サービスを利用している旨が記載されている。\n１：保険外サービスの利用に関して記載されていない。\n他：保険外サービスを利用していない旨が記載されている。\nなお、サービス付き高齢者向け住宅等の自費サービスは本項目の保険外サービスに該当しない。\n【インフォーマルな支援が含まれていない場合に、直ちに不適切というのではなく、インフォーマルな支援に関して、含まれていない理由や、支援の導入を検討したかどうかについて確認します。】","●","課題を解決するためのサービス計画"]
[null,null,43,"利用者の意思を反映したサービス事業所の利用",null,"3：以下①②の両方に該当する。\n2：以下②に該当する。\n1：上記に該当しない。\n\n①短期目標達成のために必要な「サービス内容」となっている。\n②利用者の状況（利用者・家族の意向やアセスメント結果等）を踏まえてサービス事業所を選定している。","●","主訴・意思の把握・尊重"]
[null,"週間サービス計画表（第3表）",44,"週間計画の整合性\n（介護保険サービス）",null,"2：介護保険サービスについて、第2表と整合性のとれた内容・回数が記載されている。（第2表に週単位以外の活動が載されていないものの、第3表に記載されている場合は該当するものとする。）\n1：介護保険サービスについて、第2表と整合性のとれた内容・回数が記載されていない。",null,"課題を解決するためのサービス計画"]
[null,null,45,"週間計画の整合性\n（インフォーマルサポート）",null,"２：以下①②の両方に該当する。\n１：②に該当しない。\n\n① インフォーマルサポート（介護サービス以外の支援：家族による支援、多様な主体により提供される生活支援サービス、利用者自身の継続的な取り組み等）について記載がされている。\n② 介護サービス以外の取組について、第２表と整合性のとれた内容・回数が記載されている。（第２表に週単位以外の活動が記載されていないものの、第３表に記載されている場合は該当するものとする。）",null,"課題を解決するためのサービス計画"]
[null,null,46,"週間計画の整合性\n（一日の習慣化された活動）",null,"２：以下①②の両方に該当する。\n１：②に該当しない。\n\n① 起床時間から就寝までの「一日の生活リズム」（整容・食事・散歩・掃除・買物・洗濯・入浴等）が、生活全体の流れが見えるように具体的に第 3 表内に記載されている。\n② 一日の習慣化された活動について、第 2 表と整合性のとれた内容や回数が記載されている。（CP2 表に週単位以外の活動が記載されていないものの、第 3 表に記載されている場合は該当するものとする。）",null,"課題を解決するためのサービス計画"]
[null,null,47,"家族の役割設定の整合性",null,"2：第2表のサービス種別、提供を行う事業所欄に家族の役割が記載されている場合、同一の内容が第3表（毎日、曜日ごと、月ごとのいずれかの記載欄）に記載されている。\n1：第2表のサービス種別、提供を行う事業所欄に家族の役割が記載されているにもかかわらず、家族の役割が記載されていない。\n他：第2表のサービス種別、提供を行う事業所欄に家族の役割が記載されていない。",null,"家族の状況の把握と支援"]
[null,"サービス担当者会議の要点（第4表）",48,"サービス担当者会議の開催",null,"2：会議が開催されている。\n1：会議が開催されていない。","●","多職種との連携"]
[null,null,49,"サービス担当者会議への本人の出席",null,"2：利用者が会議に出席している。\n1：利用者が会議に出席していない。",null,"主訴・意思の把握・尊重"]
[null,null,50,"サービス担当者会議への家族の出席",null,"2：家族が会議に出席している。\n1：家族が会議に出席していない。\n他：アセスメント内容等から判断し、連絡のとれる家族がいないと考えられる。",null,"家族の状況の把握と支援"]
[null,null,51,"サービス担当者会議へのサービス担当者の出席",null,"2：「会議出席者」欄に全てのサービス担当者が記載されている。欠席者は、会議開始前に照会の上、欠席の旨が記載されている。\n1：2に該当しない。","●","多職種との連携"]
[null,null,52,"サービス担当者会議の議題（検討項目）",null,"3：以下①②の両方に該当する。\n2：以下①②のいずれかに該当する。\n1：以下①②どちらも該当しない。\n\n①サービス担当者会議の「検討した項目」欄等に新規･更新･区変･退院･ケアプラン変更・課題の共有や検討等の会議の開催理由が記載されている。\n②「検討した項目」または「検討内容」に議題が記載されている。","●","多職種との連携"]
[null,null,53,"サービス担当者会議の検討内容",null,"3：以下①②の両方に該当する。\n2：以下①②のいずれかに該当する。\n1：以下①②どちらも該当しない。\n\n①「検討した項目」または「検討内容」に議題が記載されており、かつ議題に沿った結論が記載されている。\n②「検討した項目」または「検討内容」に議題が記載されており、少なくとも一つの議題に対していずれかの担当者の意見の記録が記載されている。","●","多職種との連携"]
[null,null,54,"サービス担当者会議で残された課題",null,"2：結論に至らない、時期を見て議論すべきこと等が記載されている。課題がない場合は、担当者会議要点の「残された課題」欄に残された課題はない旨が記載されていれば「2」とする。\n1：2に該当しない。",null,"課題の分析"]
[null,"居宅介護支援経過（第5表）",55,"居宅サービス計画の交付の記録",null,"3：以下①②の両方に該当する。\n2：以下①②のいずれかに該当する。\n1：以下①②どちらも該当しない。\n\n①利用者へ居宅サービス計画を交付した記録が記載されている。\n②サービス担当者へ居宅サービス計画を交付した記録が記載されている。","●","主訴・意思の把握・尊重"]
[null,null,56,"サービス担当者会議の招集",null,"2：第5表にサービス担当者会議の招集について記載されている。\n1：2または他に該当しない。\n他：提出された居宅介護支援経過の期間外にサービス担当者会議を開催している。","●","多職種との連携"]
[null,null,57,"利用者宅への月1回以上の訪問",null,"2：面談の日時、場所、相手、モニタリング内容（短期目標の達成度、満足度等）のすべてが記載されている。モニタリング内容の詳細が別紙の場合も「2」とする。\n1：2または他に該当しない。\n他：入院等、利用者の理由により実施できない場合。","●","課題の分析"]
[null,"居宅介護支援経過（第5表）またはモニタリングシート",58,"サービス事業所との連絡・モニタリング内容",null,"3：モニタリングの記録として、サービス事業所との連絡について記載されている。\n　　　また、以下いずれかに該当する。\n　　　・サービス担当者より個別サービス計画を受領した記録が記載されている。\n　　　・当該月に行ったサービス事業所との連絡・調整や利用者に関する情報が記載されている。\n2：モニタリングの記録として、サービス事業所との連絡について記載されている。内容の詳細は問わない。サービス事業所からの報告書など連携の記録があれば「2」とする。\n1：上記に該当しない。","●","多職種との連携"]
[null,null,59,"変化を捉える視点",null,"2：利用者の変化について記載されている。レ点チェックでも意見が付されていれば該当するものとする。\n1：2に該当しない、または記載内容が全て同一（いわゆるコピー＆ペースト状態）の場合。",null,"課題の分析"]
[null,null,60,"本人の心身状態に関する変化の医療者への報告",null,"２：モニタリング情報、事業所から提供された情報に以下のような内容が含まれており、それらをケアマネジャーから医療者へ報告した記録がある。（居宅介護支援経過に記載がある場合を含む。）または、事業所から提供された情報について、家族などケアマネジャー以外の者から医療者へ伝える旨の記載がある。\n１：モニタリング情報、事業所から提供された情報に以下のような内容が含まれているが、ケアマネジャーからの報告および家族などケアマネジャー以外の者から医療者へ伝えた記録がない。\n他：モニタリング情報、事業所から提供された情報に以下のような内容がない。\n\n＜医療者への報告事項に該当する情報例＞\n 薬が大量に余っている、または複数回分の薬を一度に服用している\n 薬の服用を拒絶している\n 使い切らないうちに新たに薬が処方されている\n 口臭や口腔内出血がある\n 体重の増減や見た目の変化がある\n 食事量や食事回数に変化がある\n 下痢や便秘が続いている\n 皮膚の乾燥や湿疹等がある\n リハビリテーションの提供が必要と思われる状態にも関わらず、提供されていない\n【利用者の変化を捉えているかは、次の 2 点から総合的に判断します。\n① 前回モニタリング時以降の変化が記載されているか。\n② 必要に応じて、居宅サービス計画作成（変更）日以降の長期的な変化が記載されているか。】",null,"多職種との連携"]
[null,"その他",61,"ケアプランに位置付けられている多職種との連携",null,"３：ケアプランに位置付けられている多職種（OT・PT・ST・看護師・栄養士等）について、日常的に情報提供、意見収集などの双方向のやり取りを行っている。\n２：ケアプランに位置付けられている多職種（OT・PT・ST・看護師・栄養士等）について、サービス担当者会議などの会議体を中心に、情報提供や意見収集など双方向のやり取りを行っている。\n１：ケアプランに位置付けられている多職種（OT・PT・ST・看護師・栄養士等）と十分に連携が出来ていない。\n【多職種との連携状況はケアプラン（及びセスメントシート等）の記載内容から確認が難しいため、必要に応じて面談において確認を行ってください。】",null,"多職種との連携"]
[null,null,62,"ケアプランに位置付けられていない多職種との連携",null,"２：介護支援専門員が、自立支援・重度化防止等の観点から、ケアプランに位置付けられている多職種（OT・PT・ST・看護師・栄養士等）以外の多職種との連携（情報提供・意見聴取等）を検討したことがある。あるいは、実際に連携している。\n１：2 に該当しない。\n【ケアプランに位置付けられていない多職種との連携状況はケアプラン（及びアセスメントシート等）の記載内容から確認が難しいため、面談において確認を行ってください。】",null,"その他"]

{"sheet":"評価区分シート","index":1,"n_rows":111,"n_cols":11,"rows_kept":111,"cut":false,"hidden":false,"merged":[[125,2,125,10],[126,2,126,10],[120,2,120,10],[121,2,121,10],[122,2,122,10],[123,2,123,10],[124,2,124,10],[115,2,115,10],[116,2,116,10],[117,2,117,10],[118,2,118,10],[119,2,119,10],[110,2,110,10],[111,2,111,10],[112,2,112,10],[113,2,113,10],[114,2,114,10],[51,2,51,10],[46,2,46,10],[47,2,47,10],[48,2,48,10],[49,2,49,10],[50,2,50,10],[74,2,74,10],[105,2,105,10],[106,2,106,10],[107,2,107,10],[95,2,95,10],[97,2,97,10],[98,2,98,10],[99,2,99,10],[102,2,102,10],[103,2,103,10],[96,2,96,10],[104,2,104,10],[59,2,59,10],[73,2,73,10],[94,2,94,10],[75,2,75,10],[78,2,78,10],[79,2,79,10],[81,2,81,10],[82,2,82,10],[83,2,83,10],[80,2,80,10],[88,2,88,10],[86,2,86,10],[87,2,87,10],[89,2,89,10],[90,2,90,10],[91,2,91,10],[7,2,8,2],[7,10,8,10],[72,2,72,10],[66,2,66,10],[67,2,67,10],[70,2,70,10],[71,2,71,10],[62,2,62,10],[63,2,63,10],[65,2,65,10],[56,2,56,10],[64,2,64,10],[54,2,54,10],[55,2,55,10],[57,2,57,10],[58,2,58,10]]}
[{"$f":"\"点検日：\"&TEXT(点検結果記載シート!E7&\"\",\"yyyy/m/d\")","v":"点検日："}]
[{"$f":"\"保険者名：\"&点検結果記載シート!E8","v":"保険者名："}]
[{"$f":"\"点検者名：\"&点検結果記載シート!E9","v":"点検者名："}]
[{"$f":"\"ケアマネジャー名：\"&点検結果記載シート!E10","v":"ケアマネジャー名："}]
[{"$f":"\"事業所名：\"&点検結果記載シート!E11","v":"事業所名："}]
[{"$f":"\"被保険者名：\"&点検結果記載シート!E12","v":"被保険者名："}]
[]
[null,null,"評価\n区分",null,null,null,null,null,null,null,"運営判定\n基準"]
[null,null,null,"生活の\n全体像\nの把握","疾病・\n心身状態\nの把握","主訴・意思\nの把握・尊重","課題の\n分析","課題を解決\nするための\nサービス計画","家族の状況\nの把握と支援","多職種\nとの連携"]
[]
[]
[]
[]
[]
[]
[]
[]
[]
[]
[]
[]
[]
[]
[]
[]
[]
[]
[]
[]
[]
[]
[]
[]
[]
[]
[]
[]
[]
[]
[]
[]
[]
[null,null,"面接時のアドバイスポイント"]
[null,null,"以下の点検項目に関する記載内容に課題があるようです。"]
[]
[null,"■重点ポイントアドバイス"]
[null,"No.","アドバイス"]
[]
[]
[]
[]
[]
[]
[null,"■生活の全体像の把握"]
[null,"No.","アドバイス"]
[]
[]
[]
[]
[]
[]
[null,"■疾病・心身状態の把握"]
[null,"No.","アドバイス"]
[]
[]
[]
[]
[]
[]
[null,"■主訴・意思の把握・尊重"]
[null,"No.","アドバイス"]
[]
[]
[]
[]
[]
[]
[null,"■課題の分析"]
[null,"No.","アドバイス"]
[]
[]
[]
[]
[]
[]
[null,"■課題を解決するためのサービス計画"]
[null,"No.","アドバイス"]
[]
[]
[]
[]
[]
[]
[null,"■家族の状況の把握と支援"]
[null,"No.","アドバイス"]
[]
[]
[]
[]
[]
[]
[null,"■多職種との連携"]
[null,"No.","アドバイス"]
[]
[]
[]
[]
[]
[]
[null,"■運営判定基準"]
[null,"No.","アドバイス"]

{"sheet":"一括データ管理","index":2,"n_rows":2,"n_cols":77,"rows_kept":2,"cut":false,"hidden":false,"merged":[]}
[]
["点検日","市区町村名","点検者名","ケアマネジャー名","事業所名","被保険者名","課題分析の理由","かかりつけ医","既往歴の有無・内容","主傷病","内服薬・処置","ADL","IADL","認知機能や判断能力","コミュニケーションにおける理解と表出の状況","一日に摂取すべき水分量","実際に摂取した水分量","食事内容・カロリー数","BMI","口腔衛生の状態","排尿、排便の状態","清潔の保持","「一部介助」項目の特記","「見守り」項目の特記","外出頻度、外出先","利用者の主訴・要望","一日の過ごし方","離床、臥床","現在の生活状況","生活歴","家族の主訴・要望","経済状況","本人の役割","課題の確認","課題の分析結果の文章化","家族の状況","家族関係や周辺の社会資源との状況","留意すべき事項","利用者及び家族の生活に対する意向を踏まえた課題分析の結果","総合的な援助の方針における自立の具体性","アセスメントで抽出した課題に基づくニーズの記載","利用者や多職種に理解できる表記","長期目標","短期目標","本人の役割設定","介護保険サービス","福祉用具貸与・販売の種類と利用の理由","介護保険外サービス","利用者の意思を反映したサービス事業所の利用","週間計画の整合性\n（介護保険サービス）","週間計画の整合性\n（インフォーマルサポート）","週間計画の整合性\n（一日の習慣化された活動）","家族の役割設定の整合性","サービス担当者会議の開催","サービス担当者会議への本人の出席","サービス担当者会議への家族の出席","サービス担当者会議へのサービス担当者の出席","サービス担当者会議の議題（検討項目）","サービス担当者会議の検討内容","サービス担当者会議で残された課題","居宅サービス計画の交付の記録","サービス担当者会議の招集","利用者宅への月1回以上の訪問","サービス事業所との連絡・モニタリング内容","変化を捉える視点","本人の心身状態に関する変化の医療者への報告","ケアプランに位置付けられている多職種との連携","ケアプランに位置付けられていない多職種との連携","評価区分","生活の\n全体像\nの把握","疾病・\n心身状態\nの把握","主訴・意思\nの把握・尊重","課題の\n分析","課題を解決\nするための\nサービス計画","家族の状況\nの把握と支援","多職種\nとの連携","運営判定基準"]

{"sheet":"一括データ管理_整形用","index":3,"n_rows":3,"n_cols":31,"rows_kept":3,"cut":false,"hidden":true,"merged":[[12,15,12,17],[13,15,13,17],[14,15,14,17],[2,15,2,17],[3,15,3,17],[4,15,4,17],[5,15,5,17],[11,15,11,17]]}
[]
[]
[null,"点検日","ケアマネジャー名","事業所名","評価区分","生活の\n全体像\nの把握","疾病・\n心身状態\nの把握","主訴・意思\nの把握・尊重","課題の\n分析","課題を解決\nするための\nサービス計画","家族の状況\nの把握と支援","多職種\nとの連携",null,null,null,"名前",null,null,"ケアプラン数","評価区分A","評価区分B","評価区分C","評価区分D","評価区分E","生活の全体像の把握","疾病・心身状態の把握","主訴・意思の把握・尊重","課題の分析","課題を解決するためのサービス計画","家族の状況の把握と支援","多職種との連携"]

{"sheet":"事業所別集計(レーダーチャート比較)","index":4,"n_rows":6,"n_cols":15,"rows_kept":6,"cut":false,"hidden":false,"merged":[]}
[]
[]
[]
[]
[]
[null,"事業所名","ケアプラン数","評価区分A","評価区分B","評価区分C","評価区分D","評価区分E","生活の\n全体像\nの把握","疾病・\n心身状態\nの把握","主訴・意思\nの把握・尊重","課題の\n分析","課題を解決\nするための\nサービス計画","家族の状況\nの把握と支援","多職種\nとの連携"]

{"sheet":"ケアマネジャー別集計(レーダーチャート比較)","index":5,"n_rows":6,"n_cols":15,"rows_kept":6,"cut":false,"hidden":false,"merged":[]}
[]
[]
[]
[]
[]
[null,"ケアマネジャー名","ケアプラン数","評価区分A","評価区分B","評価区分C","評価区分D","評価区分E","生活の\n全体像\nの把握","疾病・\n心身状態\nの把握","主訴・意思\nの把握・尊重","課題の\n分析","課題を解決\nするための\nサービス計画","家族の状況\nの把握と支援","多職種\nとの連携"]

{"sheet":"一括データ管理_整形用(経年)","index":6,"n_rows":0,"n_cols":0,"rows_kept":0,"cut":false,"hidden":true,"merged":[[13,15,13,17],[14,15,14,17],[11,15,11,17],[12,15,12,17]]}

{"sheet":"事業所別集計(経年表示-集合棒グラフ)","index":7,"n_rows":112,"n_cols":15,"rows_kept":112,"cut":false,"hidden":false,"merged":[]}
[]
[]
[]
[]
[]
[null,"事業所別評価区分Aのケアプラン数推移",null,null,null,null,null,null,null,null,null,null,null,null,"事業所別生活の全体像の把握の平均値推移"]
[]
[]
[]
[]
[]
[]
[]
[]
[]
[]
[]
[]
[]
[]
[]
[]
[null,"事業所別評価区分Bのケアプラン数推移",null,null,null,null,null,null,null,null,null,null,null,null,"事業所別疾病・心身状態の把握の平均値推移"]
[]
[]
[]
[]
[]
[]
[]
[]
[]
[]
[]
[]
[]
[]
[]
[]
[null,"事業所別評価区分Cのケアプラン数推移",null,null,null,null,null,null,null,null,null,null,null,null,"事業所別主訴・意思の把握・尊重の把握の平均値推移"]
[]
[]
[]
[]
[]
[]
[]
[]
[]
[]
[]
[]
[]
[]
[]
[]
[]
[null,"事業所別評価区分Dのケアプラン数推移",null,null,null,null,null,null,null,null,null,null,null,null,"事業所別課題の分析の平均値推移"]
[]
[]
[]
[]
[]
[]
[]
[]
[]
[]
[]
[]
[]
[]
[]
[]
[]
[null,"事業所別評価区分Eのケアプラン数推移",null,null,null,null,null,null,null,null,null,null,null,null,"事業所別課題を解決するためのサービス計画の平均値推移"]
[]
[]
[]
[]
[]
[]
[]
[]
[]
[]
[]
[]
[]
[]
[]
[]
[]
[null,null,null,null,null,null,null,null,null,null,null,null,null,null,"事業所別家族の状況の把握と支援の平均値推移"]
[]
[]
[]
[]
[]
[]
[]
[]
[]
[]
[]
[]
[]
[]
[]
[]
[]
[null,null,null,null,null,null,null,null,null,null,null,null,null,null,"事業所別多職種との連携の平均値推移"]

{"sheet":"ケアマネジャー別集計(経年表示-集合棒グラフ)","index":8,"n_rows":112,"n_cols":15,"rows_kept":112,"cut":false,"hidden":false,"merged":[]}
[]
[]
[]
[]
[]
[null,"ケアマネジャー別評価区分Aのケアプラン数推移",null,null,null,null,null,null,null,null,null,null,null,null,"ケアマネジャー別生活の全体像の把握の平均値推移"]
[]
[]
[]
[]
[]
[]
[]
[]
[]
[]
[]
[]
[]
[]
[]
[]
[null,"ケアマネジャー別評価区分Bのケアプラン数推移",null,null,null,null,null,null,null,null,null,null,null,null,"ケアマネジャー別疾病・心身状態の把握の平均値推移"]
[]
[]
[]
[]
[]
[]
[]
[]
[]
[]
[]
[]
[]
[]
[]
[]
[null,"ケアマネジャー別評価区分Cのケアプラン数推移",null,null,null,null,null,null,null,null,null,null,null,null,"ケアマネジャー別主訴・意思の把握・尊重の把握の平均値推移"]
[]
[]
[]
[]
[]
[]
[]
[]
[]
[]
[]
[]
[]
[]
[]
[]
[]
[null,"ケアマネジャー別評価区分Dのケアプラン数推移",null,null,null,null,null,null,null,null,null,null,null,null,"ケアマネジャー別課題の分析の平均値推移"]
[]
[]
[]
[]
[]
[]
[]
[]
[]
[]
[]
[]
[]
[]
[]
[]
[]
[null,"ケアマネジャー別評価区分Eのケアプラン数推移",null,null,null,null,null,null,null,null,null,null,null,null,"ケアマネジャー別課題を解決するためのサービス計画の平均値推移"]
[]
[]
[]
[]
[]
[]
[]
[]
[]
[]
[]
[]
[]
[]
[]
[]
[]
[null,null,null,null,null,null,null,null,null,null,null,null,null,null,"ケアマネジャー別家族の状況の把握と支援の平均値推移"]
[]
[]
[]
[]
[]
[]
[]
[]
[]
[]
[]
[]
[]
[]
[]
[]
[]
[null,null,null,null,null,null,null,null,null,null,null,null,null,null,"ケアマネジャー別多職種との連携の平均値推移"]

{"sheet":"アドバイス文に関する追加説明","index":9,"n_rows":68,"n_cols":4,"rows_kept":68,"cut":false,"hidden":false,"merged":[]}
[]
[]
[]
[]
[]
["No","本文","点検項目の意義","対応例"]
[1,"No.1【課題分析の理由】について面談時確認することをお勧めします。","アセスメントシートに、アセスメントを行うきっかけとなった理由に関する記載があるかどうかを確認します。","\tアセスメントの理由（初回、更新、退院退所時、区分変更等）により、集めるべき情報の量や集め方が異なります。\n\t特に退院退所時、区分変更等の理由では、生活環境の変化や状態の変化等を把握するため、利用者及び家族のみならず、関係機関からの情報も必要となります。\n\tアセスメントに至った経緯等を通して、利用者や家族の生活環境にどのような変化が生じているのかを把握することが重要です。"]
[2,"No.2【かかりつけ医】について面談時確認することをお勧めします。","アセスメントシートにおいて、かかりつけ医が記載されているかを確認します。","\tかかりつけ医及び各疾患の主治医を把握したうえで、本人や家族等が、かかりつけ医等の指示を踏まえて併存疾患の有無、程度、治療状況等の情報を把握できるよう、継続的な受診の確保や専門職間の連携体制を整えることが必要です。\n\tまた、日常とは異なる体調がみられた場合に、それを把握し必要な相手にその変化を伝えられるような体制を整えることも重要です。"]
[3,"No.3【既往歴の有無・内容】について面談時確認することをお勧めします。","アセスメントシートにおいて、既往歴が記載されているかを確認します。","\t要介護状態の高齢者は複数の疾患や障害を抱えています。それらは手術や服薬などの治療、看護により「治癒」や「軽快」するものから、服薬やリハビリテーション、生活管理などを行うことによって今の状態が悪化しないように病気と「うまくつき合う」ものなど実にさまざまです。\n\t健康状態の把握では、各疾患の特徴的な症状が自覚症状（痛み、しびれ、むくみ、熱っぽさ、めまい、息苦しさ、尿量の低下等）として現れることで、日常生活動作（ADL）や日常生活関連動作（IADL）にどのような影響を与えているのかを把握することが大切です。\n\t再発予防や生活の悪化防止には、生活習慣の改善が必要で、起因となっている疾患の管理についての理解が必要です。"]
[4,"No.4【主傷病】について面談時確認することをお勧めします。","アセスメントシートにおいて、主傷病が記載されているかを確認します。","\t要介護状態の高齢者は複数の疾患や障害を抱えています。それらは手術や服薬などの治療、看護により「治癒」や「軽快」するものから、服薬やリハビリテーション、生活管理などを行うことによって今の状態が悪化しないように病気と「うまくつき合う」ものなど実にさまざまです。\n\t健康状態の把握では、各疾患の特徴的な症状が自覚症状（痛み、しびれ、むくみ、熱っぽさ、めまい、息苦しさ、尿量の低下等）として現れることで、日常生活動作（ADL）や日常生活関連動作（IADL）にどのような影響を与えているのかを把握することが大切です。\n\t医療ニーズの高い疾患にかかっている利用者（呼吸器疾患や難病等で在宅酸素や吸引・吸入等が必要な者、胃ろうの設置者、嚥下障害・がん等における終末期の者等）や認知症・精神疾患・精神症状のある利用者等においては、周囲の支援者（家族、医療機関、サービス提供事業所（者）等）からの情報を収集・活用しながら、ケアプランに反映させる視点を持っていることも大切です。\n\tまた、それぞれの症状によっては、専門職（医師、看護師、理学療法士、作業療法士、言語聴覚士、管理栄養士、歯科医師、歯科衛生士等）の意見を聞きながら、予後予測の見立てを行いつつアセスメントする視点が必要です。"]
[5,"No.5【内服薬・処置】について面談時確認することをお勧めします。","アセスメントシートにおいて、服薬内容が記載されているかを確認します。","\t疾患の再発防止あるいは重度化防止のためには服薬が重要であり、処方薬によっては、食事内容の制限や副作用（出血しやすくなる等）についても知っておくことも重要です。また、これらについて利用者本人が可能な限り理解できるように支援することも重要です。\n\t薬やお薬手帳の自己管理ができず、本人から情報収集することが難しい場合がありますが、そうした状況が服薬アドヒアランスの低下に気づくきっかけになる可能性があります。利用者本人から情報を収集することが難しい場合は、家族への聞き取りや、主治医・かかりつけ薬局等との連携等により内服薬を把握するよう努めることが大切です。"]
[6,"No.6【ADL】について面談時確認することをお勧めします。","アセスメントシートにおいて、ADLが記載されているかを確認します。","\t本来有する機能、あるいは残存機能に応じたADL・IADL を発揮することができる体制を整える必要があります。\n\t自ら行うADL・IADL はそれ自体が機能を向上させる機会となるため、状態・状況にあった機能の向上や福祉用具の活用も検討をすることが重要です。\n\tしている動作、していない動作、できる動作、できない動作、できると思われる動作、それらの維持・改善の見込み等をアセスメントすることが大切です。"]
[7,"No.7【IADL】について面談時確認することをお勧めします。","アセスメントシートにおいて、IADLが記載されているかを確認します。","\t本来有する機能、あるいは残存機能に応じたADL・IADL を発揮することができる体制を整える必要があります。\n\t自ら行うADL・IADL はそれ自体が機能を向上させる機会となるため、状態・状況にあった機能の向上や福祉用具の活用も検討をすることが重要です。\n\tしている動作、していない動作、できる動作、できない動作、できると思われる動作、それらの維持・改善の見込み等をアセスメントすることが大切です。"]
[8,"No.8【認知機能や判断能力】について面談時確認することをお勧めします。","アセスメントシートにおいて、日常の意思決定を行うための認知機能の程度、判断能力の状況、認知症と診断されている場合の中核症状及び行動・心理症状の状況（症状が見られる頻度や状況、背景になりうる要因等）が記載されているかを確認します。","\t日常生活における選択において、本人の意向が表明・反映されるように、意向の表明を支える体制を整える必要があります。そのためには、認知機能の程度や判断能力の状況を把握することが大切です。\n\t認知症のある利用者の支援では、中核症状や行動・心理症状の影響により、一見して意思決定が困難であるとみられる場合であっても、本人にとって適切な意思決定がなされながら尊厳を持って暮らしていくことを重視することが大切です。"]
[9,"No.9【コミュニケーションにおける理解と表出の状況】について面談時確認することをお勧めします。","アセスメントシートにおいて、コミュニケーションの理解の状況、コミュニケーションの表出の状況、コミュニケーション機器・方法等に関する記載がされているかを確認します。","\t本人の望む暮らしの実現に向けた、本人の主訴や意向の把握や意思決定支援等のためには、本人のコミュニケーションの状況を正確に確認することが重要です。\n\tコミュニケーションの表出については、視覚、聴覚等の能力だけでなく、言語・非言語における意思疎通や、コミュニケーション機器・方法等（電話、PC、スマートフォンも含む）も確認することが必要です。\n\tコミュニケーションを難しくしている要因を確認し、適切な補助機器の使用や専門職の支援を受けられる環境を整えることが大切です。"]
[10,"No.10【一日に摂取すべき水分量】について面談時確認することをお勧めします。","アセスメントシート（別紙でも可）において、一日に摂取すべき水分量が記載されているかどうかを確認します。","\t高齢者は代謝機能の変化によって、水や電解質のバランスを保つ調整能力の低下や、細胞内の水分量の低下がみられる。そのため、高齢者は水分のバランスを崩して脱水状態を起こしやすい状態にあります。一方で、排尿回数を減らすために、水分を控える傾向がみられたり、のどの渇きの認識が遅れる等、身体が必要とする水分の補給が難しくなる場合があり、水分補給に留意が必要です。\n\t必要十分な水分量を摂取しないと、認知機能の低下への影響とともに、併発疾患がある場合その療養への影響も懸念されるため、予防の観点からも必要な水分量と日常の摂取量を把握することが重要です。\n\t摂取量をアセスメントすることが難しい場合、日常で使用している湯飲みの大きさ、湯飲みに何杯ほどの水やお茶を飲むかを質問する、食事に汁物を付けているかを質問する等、問いかけの工夫をすることで情報収集ができることもあります。\n\tなお、水分や食事の摂取量は自立度が高い利用者であっても不足している場合があり、体調変化の原因をアセスメントする際に重要な情報となることがあります。利用者の自立度を問わず、十分な水分や食事を摂取できているかをアセスメントすることが大切です。"]
[11,"No.11【実際に摂取した水分量】について面談時確認することをお勧めします。","アセスメントシート（別紙でも可）において、一日に摂取すべき水分量が記載されているかどうかを確認します。","\t高齢者は代謝機能の変化によって、水や電解質のバランスを保つ調整能力の低下や、細胞内の水分量の低下がみられる。そのため、高齢者は水分のバランスを崩して脱水状態を起こしやすい状態にあります。一方で、排尿回数を減らすために、水分を控える傾向がみられたり、のどの渇きの認識が遅れる等、身体が必要とする水分の補給が難しくなる場合があり、水分補給に留意が必要です。\n\t必要十分な水分量を摂取しないと、認知機能の低下への影響とともに、併発疾患がある場合その療養への影響も懸念されるため、予防の観点からも必要な水分量と日常の摂取量を把握することが重要です。\n\t摂取量をアセスメントすることが難しい場合、日常で使用している湯飲みの大きさ、湯飲みに何杯ほどの水やお茶を飲むかを質問する、食事に汁物を付けているかを質問する等、問いかけの工夫をすることで情報収集ができることもあります。\n\tなお、水分や食事の摂取量は自立度が高い利用者であっても不足している場合があり、体調変化の原因をアセスメントする際に重要な情報となることがあります。利用者の自立度を問わず、十分な水分や食事を摂取できているかをアセスメントすることが大切です。"]
[12,"No.12【食事内容・カロリー数】について面談時確認することをお勧めします。","アセスメントシート（別紙でも可）において、食事内容・カロリー、BMIが記載されているかどうかを確認します。"," 食事は身体に必要な栄養を補い、健康な身体を維持するために必要です。栄養改善は、疾患の予防、悪化防止、リハビリを行うための基礎体力づくりにもつながるため重要です。\n そのため、体重の増減やBMI値を使って栄養状態を把握することが必要です。"]
[13,"No.13【BMI】について面談時確認することをお勧めします。","アセスメントシート（別紙でも可）において、食事内容・カロリー、BMIが記載されているかどうかを確認します。"," 食事は身体に必要な栄養を補い、健康な身体を維持するために必要です。栄養改善は、疾患の予防、悪化防止、リハビリを行うための基礎体力づくりにもつながるため重要です。\n そのため、体重の増減やBMI値を使って栄養状態を把握することが必要です。"]
[14,"No.14【口腔衛生の状態】について面談時確認することをお勧めします。","アセスメントシートにおいて、口腔の状態について記載されているかを確認します。","\t適切な口腔ケアは健康にとって重要な要素です。口腔の状態と嚥下機能の低下とは密接な関係があり、見逃してしまうと誤嚥性肺炎などを引き起こす原因にもつながります。また、口臭などが原因で、家族や友人などから指摘されたり、敬遠されるなど、コミュニケーションの悪化や、社会参加への気後れなどにもつながる場合があります。\n\t口腔内に異常が表れている場合、味覚に影響して豊かな食生活を阻害するほか、食欲の減少や食事の量、食品数が減少することも考えられます。\n\t正しいかみ合わせは、平衡感覚を保つことや、歯を食いしばることによる瞬発力の発揮につながるため、歯の喪失は咀嚼能力の低下だけでなく、運動能力の低下につながります。正しいかみあわせの確保や健康な歯の維持が必要となります。"]
[15,"No.15【排尿、排便の状態】について面談時確認することをお勧めします。","アセスメントシートにおいて、排尿・排便が記載されているかを確認します。","\t排尿・排便の問題は、最も家族や他人の手を煩わせたくない事柄の1つです。それだけ排尿・排便のコントロールは、利用者の尊厳にかかわる大切な事柄であり、単に健康管理や治療面の問題だけではなく、在宅の生活を送る上においてとても重要なことです。\n\t排泄と一言に言っても、さまざまな情報（ADL、本人の意欲、食事量や水分摂取量、下剤との関係、介助者の健康や排泄に対する意識、住環境等）を基にしたアセスメントが必要になります。"]
[16,"No.16【清潔の保持】について面談時確認することをお勧めします。","アセスメントシートにおいて、清潔の保持に関する記載がされているかを確認します。","\t皮膚疾患や感染症の予防と治療の観点に加え、周囲との関係性を円滑にする観点からも、清潔を保つことが重要です。なお、清潔に対する意識は、本人や家族等の生活習慣や生活歴、家族等背景、住環境、経済状況によって異なるため、本人や家族等の特徴や背景、生活環境や要望を把握して柔軟に対応する必要があります。\n\t着衣の清潔状況の観察も、利用者の生活の変化を把握するうえでは重要な視点です。着衣が清潔でない場合には、その原因や生活上の課題についても確認することが大切です。"]
[17,"No.17【「一部介助」項目の特記】について面談時確認することをお勧めします。","アセスメントシートにおいて、一部介助の動作や転倒・骨折のリスクがどのように記載されているかを確認します。","\t日常生活において、できることは自ら行い、できないところを介助するという支援のスタンスが、本人の身体機能の維持・向上や生きがいにつながります。\n\tしたがって、家族等介護者が、過度の支援をすることは、本人の身体能力を発揮する機会を奪う場合もあることに留意が必要であり、家族等介護者である家族等が、本人のできることはなるべく本人自身が行えるよう見守り、必要な支援を見極める姿勢が重要です。\n\tまた、骨折などにより活動量が低下することは、身体機能の低下につながる恐れがあるため、その要因となりうる点等を未然に防ぐことが必要です。転倒しやすい状況や負荷の大きい活動の環境を改善したり、日常的な動作において気をつけるべき点を本人及び家族等と確認し必要なリハビリテーションを継続する支援体制を整えることが重要です。"]
[18,"No.18【「見守り」項目の特記】について面談時確認することをお勧めします。","アセスメントシートにおいて、見守りの必要な内容が記載されているかを確認します。","\t日常生活において、できることは自ら行い、できないところを介助するという支援のスタンスが、本人の身体機能の維持・向上や生きがいにつながります。本人のADL/IADLの状態を把握して専門職等と連携する体制を整え、必要な支援あるいはサービス内容を調整することが重要です。\n\tどの程度の声かけ、見守り、支援があれば今まで楽しんできたことが継続できるかについて整理し、誰が、いつ、どのように支援すればよいか、必要な支援あるいはサービス内容を調整することが重要です。"]
[19,"No.19【外出頻度、外出先】について面談時確認することをお勧めします。","アセスメントシートにおいて、外出頻度や外出先が記載されているかを確認します。","\t高齢者は、数日動かないだけでも筋力の低下や関節の拘縮を引き起こしてしまうため、閉じこもりや活動が極端に少ないような状況にならないよう、日常生活の中で活動を確保することも重要である。\n\t本人の状況によらず、できるかぎり地域及び家庭の一員として役割を担い続けられるよう、本人のIADLや社会参加を支援することが重要であり、具体的な支援を考えるためにもまず、本人がそれまでに培ってきた地域や家庭での役割と、現在の実行状況を把握する必要がある。"]
[20,"No.20【利用者の主訴・要望】について面談時確認することをお勧めします。","アセスメントシートにおいて、利用者の主訴や要望がどのように記載されているかを確認します。","\t主訴は、利用者が現在困っていることやこうしてほしいという願い・要望など、利用者本人や家族が抱える問題状況を理解するための「入口」となる重要な部分です。この主訴を通して、現在の生活の送り方やその背景となる要因を把握することが大切です。\n\t利用者や家族にとっては、何をどう説明してよいのか分からないことも多々あります。主訴と思って話した内容が、本当の主訴ではないこともあります。利用者にとっての「真の主訴」が何にあたるのかを考察しながら面談を進めることが重要です。"]
[21,"No.21【一日の過ごし方】について面談時確認することをお勧めします。","アセスメントシートにおいて、利用者の1日の過ごし方がどのように記載されているかを確認します。","\t本人の日常の生活の中でも、特に食事・起就や就寝等の生活リズム、及び日常の生活における支援者の関わりの状況を把握し、その本人のリズムにそった生活や活動が送れるような支援を提供できる体制を整えることが重要です。\n\t本人にとっての日課やリズム、本人にとって心地よい場所や相手を捉え、本人を中心とした支援体制を構築することが重要です。"]
[22,"No.22【離床、臥床】について面談時確認することをお勧めします。","アセスメントシートにおいて、利用者の1日の過ごし方がどのように記載されているかを確認します。","\t本人の日常の生活の中でも、特に食事・起就や就寝等の生活リズム、及び日常の生活における支援者の関わりの状況を把握し、その本人のリズムにそった生活や活動が送れるような支援を提供できる体制を整えることが重要です。\n\t本人にとっての日課やリズム、本人にとって心地よい場所や相手を捉え、本人を中心とした支援体制を構築することが重要です。"]
[23,"No.23【現在の生活状況】について面談時確認することをお勧めします。","アセスメントシートにおいて、利用者の生活状況がどのように記載されているかを確認します。","\t利用者が生活してきたなかで大切にしてきたことや固有の価値観等を知ることは、支援の方向性を見出す上で多くのヒントが得られます。\n\t生活状況では、「できること」「していること」「できそうなこと」などを整理しながら、利用者の意欲や意向を確認していくことが重要になります。\n\tそのためには、現在の生活状況を、生活機能や健康状態との関係、さらに生活環境等の面から把握することはもちろんですが、これまでの利用者や家族の生活のあり方等にヒントがあることを認識することが必要です。"]
[24,"No.24【生活歴】について面談時確認することをお勧めします。","アセスメントシートにおいて、利用者の生活歴がどのように記載されているかを確認します。","\t本人の尊厳を尊重した本人が望む暮らしの実現には、暮らしやすくするための環境の改善を、本人の活動能力を踏まえて支援することが重要です。\n\t暮らしの中で特に継続したいことや重視したいこと等を本人から把握したり、家族等から本人のこれまでの嗜好や暮らしぶり、これからについて本人が家族等に表明している意思を把握することが重要です。\n\tまた、本人の尊厳を尊重した生活を実現するには、本人の強みが生かされる支援方法を工夫する必要があり、そのためには本人の強みを引き出すための情報収集が重要となります。本人からの情報収集にもとづき、本人が強みを発揮しやすい環境や状況を捉え、生活の中でそうした環境や状況が整えられるような支援体制を整えることが重要です。"]
[25,"No.25【家族の主訴・要望】について面談時確認することをお勧めします。","アセスメントシートにおいて、家族の主訴や要望がどのように記載されているかを確認します。","\t本人の尊厳のある生活を支えていくことは長期間にわたり、かつ将来の生活に対する不安を持ちやすいため、本人を中心に家族等とともに行われる意思決定を支援することが重要です。\n\t本人の尊厳を尊重する観点から、できる限り今の生活を継続できるようまずは本人の意向を把握するが、介護に関わる意思決定には本人自身に加えて家族等がかかわって行われることを考慮し、意思決定にかかわる家族等（キーパーソン）の意向を把握することも重要です。家族等（キーパーソン）が要介護認定を受けている場合であっても、その方が意思決定に関わる場合には意向の把握に努めることが大切です。\n\t本人の生活の継続を実現するには、本人の生活を支える人がケアに継続して関わることが出来るようにする必要がある。レスパイトだけでなく、情報の支援、情緒面での支援などの相談援助も併せて提供し、家族等や介護者等の負担感や不安感の軽減を図ることが重要です。"]
[26,"No.26【経済状況】について面談時確認することをお勧めします。","アセスメントにおいて、本人の経済状況が把握されているかを確認します。","\tサービスや支援等の検討においては、介護保険以外の社会保障制度の利用状況も踏まえ、利用者の健康、障害、経済等の情報を把握する必要があります。これらの情報を把握することで、利用者に必要な情報提供を行うとともに、公費情報も踏まえた適切な介護保険利用のためのサービス調整と給付管理が可能となります。\n\tおおよその収入、年金の種類、介護と介護以外に毎月どの程度の金額が使えるのかなどを把握することで、より個別化の進んだ支援の検討が期待できます。\n\t利用者本人への聞き取りにより経済状況を把握することが難しい場合には、家族への聞き取りを行う、複数回に分けて対話する等の工夫により、経済状況を把握するよう努めることが大切です。"]
[27,"No.27【本人の役割】について面談時確認することをお勧めします。","アセスメントシートにおいて、本人の役割がどのように記載されているかを確認します。","\t本人の心身の状況に関わらず、できるかぎり本人が自分の慣れ親しんだ役割を継続できるようにすることが大切であり、そのためには役割を継続できるような支援体制を整えることが重要です。本人の状況によらず、できるかぎり地域及び家庭の一員として役割を担い続けられるよう、本人のIADLや社会参加を支援することが重要であり、具体的な支援を考えるためにもまず、本人がそれまでに培ってきた地域や家庭での役割と、現在の実行状況を把握する必要があります。\n\tまた、日常生活において、できることは自ら行い、できないところを介助するという支援のスタンスが、本人の身体機能の維持・向上や生きがいにつながります。したがって、家族等介護者が、過度の支援をすることは、本人の身体能力を発揮する機会を奪う場合もあることに留意が必要であり、家族等介護者が、本人のできることはなるべく本人自身が行えるよう見守り、必要な支援を見極める姿勢が重要です。"]
[28,"No.28【課題の確認】について面談時確認することをお勧めします。","アセスメントシートにおいて、項目ごと・項目間で抽出した課題が記載されているかを確認します。","\tケアプランは、利用者の「要望」に沿うサービスを単に記載したものではなく、利用者がこれからの自立した生活に向けて希望が見出せる計画書である必要があります。そのためには適切なアセスメント（客観的な指標）過程を経て、課題を抽出していくことが大切になります。\n\t利用者が自立した日常生活を営むことができるよう支援するためには、「解決すべき課題」がきちんと押さえられているか確認する必要があります。"]
[29,"No.29【課題の分析結果の文章化】について面談時確認することをお勧めします。","アセスメントシートにおいて、項目ごと・項目間で抽出した課題の記載内容と第1表との関連性について確認します。","\tケアプランは、利用者の「要望」に沿うサービスを単に記載したものではなく、利用者がこれからの自立した生活に向けて希望が見出せる計画書である必要があります。そのためには適切なアセスメント（客観的な指標）過程を経て、課題を抽出していくことが大切になります。\n\t利用者が自立した日常生活を営むことができるよう支援するためには、「解決すべき課題」がきちんと押さえられているか確認する必要があります。\n\t１つひとつの問題が整理され、課題が集約されていく背景において重要なのは、利用者と介護支援専門員と介護支援専門員がアセスメントの過程を通して信頼関係を構築していくことです。利用者が要望するサービスを単に組み込むのではなく、どのようなサービスをなぜ要望しているかについて、掘り下げて確認していく中で、利用者に「気づき」が生まれることがあります。最終的には利用者の「望む生活」がより明確になり、利用者自らが課題解決へと積極的に望む姿勢を生み出すことにつながります。"]
[30,"No.30【家族の状況】について面談時確認することをお勧めします。","アセスメントシートにおいて、家族の状況がどのように記載されているかを確認します。","\t介護保険は利用者の「主訴」すべてに対応できるものではありません。利用者及び家族の自立を支援すること、ADL・IADLの「生活上の手間」への支援を目的とします。介護保険は家族介護を社会的に支援することを目指しており、家族が出来ることや家族だからこそ出来る「心の支え」までフォローできるものではありません。\n\t家族といっても、誰もがいつも「前向き」に介護できているわけではありません。家族自身の生活や近隣との関係、しがらみなどの影響を受けながら介護しているのが現状です。\n\t利用者主体の介護を行うためにも、ときには状況に応じて家族に重点をおいた支援の方策を練ることが必要となる場合もあります。そうすることで、家族の力がまた大きくなり、利用者への支援に還元されることにつながります。\n\tまた、介護への「向き合う姿勢」を予め把握しておくことで、「声掛け」の頻度や内容、モニタリング時のアセスメントの中味を考えることができます。また、介護の燃え尽きや虐待的状況を未然に防ぐ「予防効果」も期待されます。"]
[31,"No.31【家族関係や周辺の社会資源との状況】について面談時確認することをお勧めします。","アセスメントシートにおいて、家族構成が分かる図（ジェノグラム）や周辺の社会資源との関係性の分かる図（エコマップ）が記載されているかを確認します。","\tジェノグラムは、利用者を中心とした家族関係や、原則として三世代をさかのぼる世代関係を一つの図に表したもので、同居関係は円を描くことで表現します。利用者への支援は、その人のみならず、その家族の状況や関係も視野に入れて行うことが必要となります。家族の全体像をつかみ、その抱える問題を整理したり、誰にどう働きかけたら良いかなど、支援の在り方を検討するために役立ちます。\n\tエコマップは、利用者と家族やさまざまな社会資源との関係を、地図のようにシステム的、図式的に描き出したもののことです。作成することで、利用者を取り巻く人間関係や社会関係が明確に把握できるという利点があります。\n\tジェノグラムやエコマップは、利用者の問題状況が生み出された理由を理解したり、援助を提供すべき部分がどこかを考えたりする際に役立ちます。\n\tジェノグラムやエコマップは、本人や家族の状況を正しく把握するため、またヤングケアラー等のリスクを把握するため、3世代以上にわたって記載することが重要です。"]
[32,"No.32【留意すべき事項】について面談時確認することをお勧めします。","アセスメントシートにおいて特に留意すべき状況に関する記載があるかを確認します。","\t特に留意すべき事項・状況がある利用者の場合、他制度（医療も含む）との連携の視点を持つことが重要です。\n\t具体的な例として、次のような状況の記載が想定されています。　\n\t医療依存度の高い方やターミナル期の方：医療関係者との緊密な連携\n\t障害がある方：相談支援専門員との連携\n\t経済的に困窮している方：生活保護や生活困窮者自立支援制度等の利用検討\n\tその他：成年後見制度や地域福祉権利擁護事業等との連携　　等"]
[33,"No.33【利用者及び家族の生活に対する意向を踏まえた課題分析の結果】について面談時確認することをお勧めします。","第1表の「利用者及び家族の生活に対する意向を踏まえた課題分析の結果」がどのように記載されているかを確認します。","\t利用者が自立した日常生活を営むことができるよう支援するためには、「解決すべき課題」がきちんと押さえられているか確認する必要があります。\n\t利用者及びその家族の生活に対する意向が異なる場合には、各々の主訴を区別して記載する必要があります。\n\t第1表の「総合的な援助の方針」では、利用者及びその家族が、どのような内容の介護サービスをどの程度の頻度で利用しながら、どのような生活をしたいと考えているのかについて意向を踏まえた課題分析の結果を記載します。\n\tその際、課題分析の結果として、「自立支援」に資するために解決しなければならない課題が把握できているか確認します。そのために、利用者の主訴や相談内容等を踏まえた利用者が持っている力や生活環境等の評価を含め利用者が抱える問題点を明らかにしていくことが重要です。"]
[34,"No.34【総合的な援助の方針における自立の具体性】について面談時確認することをお勧めします。","第1表の「総合的な援助の方針」がどのように記載されているかを確認します。","\t課題分析により抽出された、「生活全般の解決すべき課題（ニーズ）」に対応して、当該居宅サービス計画を作成する介護支援専門員をはじめ各種のサービス担当者が、どのようなチームケアを行おうとするのか、利用者及び家\n族を含むケアチームが確認、検討の上、総合的な援助の方針を記載します。\n\t利用者や家族が「望む生活」を目指して、ケアチームが取り組む内容や支援の方向性が分かりやすい表現となっていることが大切です。\n\t利用者及び家族と相談したうえで、緊急時の対応機関やその連絡先等についても把握しておきます。あらかじめ支援者のなかでも、どのような場合を緊急事態と考えているのかや、緊急時を想定した対応について、利用者・家族・関係者といったケアチームのなかでの共通認識を図っておくことで、スムーズな対応ができます。緊急時に連絡すべき家族等、かかりつけ医などの連絡体制を本人や家族等とも確認し、事前に連絡先と連絡方法を取り交わしておくことが重要です。"]
[35,"No.35【アセスメントで抽出した課題に基づくニーズの記載】について面談時確認することをお勧めします。","第２表の「生活全般の解決すべき課題（ニーズ）」がどのように記載されているかを確認します。","\t第2表は、居宅サービス計画書全体の中核となるものです。どのような課題（ニーズ）があり、それを解決するために何を目指すのかということを明確にしていくことが必要になります。\n\t利用者及び家族の抱える問題点や困りごとに対して、安易に即サービスで対応するというのではなく、利用者及び家族とともに、その問題や困りごとの本質（原因や背景）や、解決するためには何が必要なのかを明らかにしていく過程が大切になります。\n\t「できない」「できるのにしていない」「している」などの行為の現状把握だけではなく、その状況を招いている原因や背景についての整理が必要です。その上で、「できるようになる」「するようになる」などの改善の可能性を探ります。\n\tサービスは課題（ニーズ）を解決するための１つの手段であることを理解し、利用者が自立を目指していけるような内容となっていることが大切になります。"]
[36,"No.36【利用者や多職種に理解できる表記】について面談時確認することをお勧めします。","第２表の表記（どのような用語が使われている等）について確認します。","\t「生活全般の解決すべき課題（ニーズ）」を、利用者及び家族が、「自分たちの課題（ニーズ）」として捉えていることが重要です。利用者及び家族が理解しやすいように、難しい専門用語は避けるようにします。利用者自身が表現した「言葉」を引用することで、意欲が高まり、自分のニーズとして捉えることができることになることもあります。\n\t課題は、漠然としたまとめ方ではなく、利用者が主体的な取組を始めようと思えるようなわかりやすい記載の方法を心がけることが大切です。\n\t病気や障害があっても、残された機能や能力で、出来ることはたくさんあります。介護支援専門員が積極的に利用者と一緒にできることを見つけていく作業を丁寧に行うことで、ネガティブだった利用者自身の気持ちに徐々に変化が現れ、次第に気持ちがポジティブに変わっていくことがあります。その過程を大切にすることが利用者及び家族との信頼関係をさらに構築することにつながります。\n\tまた、関わる多職種が共通目標を持つことで、チームの信頼関係が深まります。"]
[37,"No.37【長期目標】について面談時確認することをお勧めします。","第２表の「長期目標」がどのように記載されているかを確認します。","\t「課題」とは利用者及び家族が解決したい事柄であり、自立支援に向けての最初の一歩となります。目標は、課題達成に向けて具体的に取り組む内容のゴール（結果）になります。そのためには、具体的に達成すべき内容がわかりやすくイメージできるような記載が大切になります。\n\t「長期目標」は、いつまでに、どのレベルまで解決するのか（達成するのか）を記載したものです。利用者及び家族の取り組みの状況によっては、目標そのものが理解されているかを検討する必要性が生まれる場合もあります。また、状況の変化に応じて目標を修正することも必要となります。\n\t家族、ケアチームなど利用者とともに目標を目指す支援者の考えを利用者に押しつけないよう注意が必要です。"]
[38,"No.38【短期目標】について面談時確認することをお勧めします。","第２表の「短期目標」がどのように記載されているかを確認します。","\t「短期目標」は、長期目標を達成するために段階的に計画する具体的な活動（支援）の目標となります。「短期目標」の積み上げの先に、長期目標の達成があり、長期目標の達成が課題（ニーズ）の解決につながり、課題の解決の先に利用者の「望む生活」が見えてきます。\n\t課題ごとに解決の要点を整理し、すぐに始められる「取り組み目標」として、的を絞った具体的な表記であることが大切です。"]
[39,"No.39【本人の役割設定】について面談時確認することをお勧めします。","第２表において、サービス計画に本人の役割が記載されているかを確認します。","\t日常生活において、できることは自ら行い、できないところを介助するという支援のスタンスが、本人の身体機能の維持・向上や生きがいにつながります。\n\tしたがって、本人のできることはなるべく本人自身が行えるよう見守り、必要な支援を見極める姿勢が重要です。\n利用者の意欲が高まるような内容を提案したり、もしくは利用者自身にもどのような取組が必要かを考えてもらった上で、合意した内容を援助内容として決定することが大切です。\n\t本人の心身の状況に関わらず、できるかぎり本人が自分の慣れ親しんだ役割を継続できるようにすることが大切であり、そのためには役割を継続できるような支援体制を整えることが重要です。"]
[40,"No.40【介護保険サービス】について面談時確認することをお勧めします。","第２表において、本人の力で取り組めること、インフォーマルサポートの協力により取り組めること、介護保険サービスで取り組めることが、利用者・家族の状況に応じた適切な内容・頻度で計画されているか（介護保険サービスの導入が前提と思えるようなケアプランになっていないか）、ケアマネジャーが根拠を持って本人の取り組み、インフォーマルサポート、介護保険サービスを計画しているかを確認します。","\tサービスを利用する必要があるが支給限度額や利用料の負担の影響により利用できない場合や、要望のみが先行し必要以上と思われるサービスが計画されている場合もあります。利用者の自立支援・重度化防止を目指したサービス量であるか、利用者のできることまで介助してしまうことにより自立を阻害していないことであるかを確認することが必要です。\n\t利用者の状態や、家族の介護負担軽減に配慮した利用頻度を検討することが大切です。"]
[41,"No.41【福祉用具貸与・販売の種類と利用の理由】について面談時確認することをお勧めします。","第２表において、サービス計画に福祉用具貸与・販売の利用が含まれている場合、サービスの利用を必要とする理由が記載されているかを確認します。","\t福祉用具については、利用者の心身の状況に合わない福祉用具が提供されることで自立を妨げてしまうおそれもあり、自立支援の観点から、適切な福祉用具が選定され利用されるように、福祉用具を必要とする理由を把握することが重要です。\n\tそのため、福祉用具貸与または特定福祉用具販売を居宅サービス計画に位置付ける場合においては、「生活全般の解決すべき課題」・「サービス内容」等に当該サービスを必要とする理由が明らかになるように記載することが必要です。\n\t1つの理由で複数の福祉用具を利用する必要がある場合があります。そのため、福祉用具の利用理由は、必ずしも品目と1対１で記載される必要はなく、利用する福祉用具の理由や利用内容が、アセスメントシートやケアプラン全体から読み取れることが重要です。"]
[42,"No.42【介護保険外サービス】について面談時確認することをお勧めします。","第２表のサービス内容がどのように記載されているか（保険給付対象外サービスが含まれているか）を確認します。","\t短期目標達成のために必要なサービスの種類（資源）には、利用者（セルフケア）、家事支援、介護保険サービス、インフォーマルサービスで行うものなどがあります。\n\tサービス内容によっては、通院、服薬、治療など医療サービスに関わる種別（例：医院、病院、薬局、鍼灸院等）や実費で利用されるサービス（例：タクシー送迎、配食サービス等）もあります。これらの医療サービスや実費サービスも利用者及び家族にとっては「生活を支えてくれる資源」です。サービス内容と「サービス種別」は介護保険給付の有無に関わらず、必要に応じてケアプランに記載することが必要です。"]
[43,"No.43【利用者の意思を反映したサービス事業所の利用】について面談時確認することをお勧めします。","第２表のサービス内容・サービス事業所がどのように記載されているかを確認します。","\t短期目標達成のために具体的に何を行うのかが明確であり、利用者の意欲が高まるような内容を提案したり、もしくは利用者自身にもどのような取り組みが必要かを考えてもらった上で、合意した内容を援助内容として決定することが大切です。\n\t「サービス内容」の記載にあたっては、利用するサービスの内容を単に記載するのではなく、短期目標を達成するために必要な支援のポイントや、セルフケア・家族の役割等を記載するという視点を持つことが大切になります。"]
[44,"No.44【週間計画の整合性（介護保険サービス）】について面談時確認することをお勧めします。","第3表の週間サービス計画表がどのように記載されているかを確認します。","\t第2表のサービスや支援が、第3表を通してケアプランそのものの全体的なバランスを把握することができ、それぞれのサービスと利用者の生活における関連性が見えるものとなり、見落としや見誤りなどがないか確認できるものとなります。\n\t課題（ニーズ）を解決していくためには、介護サービスの利用だけに頼るのではなく、自分でできることや家族ができることなどを整理しておくことが必要です。\n\t介護サービス以外のセルフケアや家族介護などについても記載しておくことで、利用者を支える生活全体が見えやすくなります。また、遠方の家族や近隣、ボランティア等を含むインフォーマルな資源が担う役割等も記載しておくことで家族を含めたケアチームが関わっているかを確認することができます。\n\t「週間サービス計画表」は、介護サービス利用の時間を1週間単位で確認できるので、生活全般の過ごし方を具体的にイメージすることができます。また、サービス提供者（例：ホームヘルパー等）も、曜日や時間帯ごとのサービス利用の状況を確認することにより、他のサービスとの役割分担と連携を認識することができるので、チームケアを行う上においても効果的です。"]
[45,"No.45【週間計画の整合性（インフォーマルサポート）】について面談時確認することをお勧めします。","第3表の週間サービス計画表がどのように記載されているかを確認します。","\t第2表のサービスや支援が、第3表を通してケアプランそのものの全体的なバランスを把握することができ、それぞれのサービスと利用者の生活における関連性が見えるものとなり、見落としや見誤りなどがないか確認できるものとなります。\n\t課題（ニーズ）を解決していくためには、介護サービスの利用だけに頼るのではなく、自分でできることや家族ができることなどを整理しておくことが必要です。\n\t介護サービス以外のセルフケアや家族介護などについても記載しておくことで、利用者を支える生活全体が見えやすくなります。また、遠方の家族や近隣、ボランティア等を含むインフォーマルな資源が担う役割等も記載しておくことで家族を含めたケアチームが関わっているかを確認することができます。\n\t「週間サービス計画表」は、介護サービス利用の時間を1週間単位で確認できるので、生活全般の過ごし方を具体的にイメージすることができます。また、サービス提供者（例：ホームヘルパー等）も、曜日や時間帯ごとのサービス利用の状況を確認することにより、他のサービスとの役割分担と連携を認識することができるので、チームケアを行う上においても効果的です。"]
[46,"No.46【週間計画の整合性（一日の習慣化された活動）】について面談時確認することをお勧めします。","第3表の週間サービス計画表がどのように記載されているかを確認します。","\t第2表のサービスや支援が、第3表を通してケアプランそのものの全体的なバランスを把握することができ、それぞれのサービスと利用者の生活における関連性が見えるものとなり、見落としや見誤りなどがないか確認できるものとなります。\n\t課題（ニーズ）を解決していくためには、介護サービスの利用だけに頼るのではなく、自分でできることや家族ができることなどを整理しておくことが必要です。\n\t介護サービス以外のセルフケアや家族介護などについても記載しておくことで、利用者を支える生活全体が見えやすくなります。また、遠方の家族や近隣、ボランティア等を含むインフォーマルな資源が担う役割等も記載しておくことで家族を含めたケアチームが関わっているかを確認することができます。\n\t「週間サービス計画表」は、介護サービス利用の時間を1週間単位で確認できるので、生活全般の過ごし方を具体的にイメージすることができます。また、サービス提供者（例：ホームヘルパー等）も、曜日や時間帯ごとのサービス利用の状況を確認することにより、他のサービスとの役割分担と連携を認識することができるので、チームケアを行う上においても効果的です。"]
[47,"No.47【家族の役割設定の整合性】について面談時確認することをお勧めします。","第3表の週間サービス計画表において、家族の役割がどのように記載されているかを確認します。","\t介護サービス以外のセルフケアや家族介護などについても記載しておくことで、利用者を支える生活全体が見えやすくなります。\n\t「週間サービス計画表」を作成する上においては、介護サービスの利用日と時間帯など利用者の希望や事情だけでなく、介護する家族側の事情も影響することに留意が必要です。"]
[48,"No.48【サービス担当者会議の開催】について面談時確認することをお勧めします。","第4表における、サービス担当者会議に関する記載内容を確認します。","\t介護支援専門員は、効果的かつ実現可能な質の高い居宅サービス計画を作成するため、利用者やその家族、ケアプランに位置付けられているサービス担当者等からなるサービス担当者会議を開催することが求められます。サービス担当者会議では、利用者の状況等に関する情報をサービス担当者等と共有するとともに、共通の目標の下、専門的な見地からの意見を収集し、サービスの調整を図ることが重要です。\n\t会議の参加者は、利用者、家族、主治医、ケアプランに位置付けられているサービスの担当者、近隣住民やボランティア等の関係者です。\n\t第4表には、開催したサービス担当者会議の要点を、第三者が読んでも内容を把握、理解できるように記載することが必要です。"]
[49,"No.49【サービス担当者会議への本人/家族の出席】について面談時確認することをお勧めします。","第4表における、サービス担当者会議に関する記載内容を確認します。"," 介護支援専門員は、効果的かつ実現可能な質の高い居宅サービス計画を作成するため、利用者やその家族、ケアプランに位置付けられているサービス担当者等からなるサービス担当者会議を開催することが求められます。サービス担当者会議では、利用者の状況等に関する情報をサービス担当者等と共有するとともに、共通の目標の下、専門的な見地からの意見を収集し、サービスの調整を図ることが重要です。\n 会議の参加者は、利用者、家族、主治医、ケアプランに位置付けられているサービスの担当者、近隣住民やボランティア等の関係者です。\n 第4表には、開催したサービス担当者会議の要点を、第三者が読んでも内容を把握、理解できるように記載することが必要です。"]
[50,"No.50【サービス担当者会議への家族の出席】について面談時確認することをお勧めします。","第4表における、サービス担当者会議に関する記載内容を確認します。"," 介護支援専門員は、効果的かつ実現可能な質の高い居宅サービス計画を作成するため、利用者やその家族、ケアプランに位置付けられているサービス担当者等からなるサービス担当者会議を開催することが求められます。サービス担当者会議では、利用者の状況等に関する情報をサービス担当者等と共有するとともに、共通の目標の下、専門的な見地からの意見を収集し、サービスの調整を図ることが重要です。\n 会議の参加者は、利用者、家族、主治医、ケアプランに位置付けられているサービスの担当者、近隣住民やボランティア等の関係者です。\n 第4表には、開催したサービス担当者会議の要点を、第三者が読んでも内容を把握、理解できるように記載することが必要です。"]
[51,"No.51【サービス担当者会議へのサービス担当者の出席】について面談時確認することをお勧めします。","第4表における、サービス担当者会議に関する記載内容を確認します。","\t介護支援専門員は、効果的かつ実現可能な質の高い居宅サービス計画を作成するため、利用者やその家族、ケアプランに位置付けられているサービス担当者等からなるサービス担当者会議を開催することが求められます。サービス担当者会議では、利用者の状況等に関する情報をサービス担当者等と共有するとともに、共通の目標の下、専門的な見地からの意見を収集し、サービスの調整を図ることが重要です。\n\t会議の参加者は、利用者、家族、主治医、ケアプランに位置付けられているサービスの担当者、近隣住民やボランティア等の関係者です。\n\t第4表には、開催したサービス担当者会議の要点を、第三者が読んでも内容を把握、理解できるように記載することが必要です。"]
[52,"No.52【サービス担当者会議の議題（検討項目）】について面談時確認することをお勧めします。","第4表における、サービス担当者会議に関する記載内容を確認します。"," 介護支援専門員は、効果的かつ実現可能な質の高い居宅サービス計画を作成するため、利用者やその家族、ケアプランに位置付けられているサービス担当者等からなるサービス担当者会議を開催することが求められます。サービス担当者会議では、利用者の状況等に関する情報をサービス担当者等と共有するとともに、共通の目標の下、専門的な見地からの意見を収集し、サービスの調整を図ることが重要です。\n 会議の参加者は、利用者、家族、主治医、ケアプランに位置付けられているサービスの担当者、近隣住民やボランティア等の関係者です。\n 第4表には、開催したサービス担当者会議の要点を、第三者が読んでも内容を把握、理解できるように記載することが必要です。"]
[53,"No.53【サービス担当者会議の検討内容】について面談時確認することをお勧めします。","第4表における、サービス担当者会議に関する記載内容を確認します。"," 介護支援専門員は、効果的かつ実現可能な質の高い居宅サービス計画を作成するため、利用者やその家族、ケアプランに位置付けられているサービス担当者等からなるサービス担当者会議を開催することが求められます。サービス担当者会議では、利用者の状況等に関する情報をサービス担当者等と共有するとともに、共通の目標の下、専門的な見地からの意見を収集し、サービスの調整を図ることが重要です。\n 会議の参加者は、利用者、家族、主治医、ケアプランに位置付けられているサービスの担当者、近隣住民やボランティア等の関係者です。\n 第4表には、開催したサービス担当者会議の要点を、第三者が読んでも内容を把握、理解できるように記載することが必要です。"]
[54,"No.54【サービス担当者会議で残された課題】について面談時確認することをお勧めします。","第4表における、サービス担当者会議に関する記載内容を確認します。"," 介護支援専門員は、効果的かつ実現可能な質の高い居宅サービス計画を作成するため、利用者やその家族、ケアプランに位置付けられているサービス担当者等からなるサービス担当者会議を開催することが求められます。サービス担当者会議では、利用者の状況等に関する情報をサービス担当者等と共有するとともに、共通の目標の下、専門的な見地からの意見を収集し、サービスの調整を図ることが重要です。\n 会議の参加者は、利用者、家族、主治医、ケアプランに位置付けられているサービスの担当者、近隣住民やボランティア等の関係者です。\n 第4表には、開催したサービス担当者会議の要点を、第三者が読んでも内容を把握、理解できるように記載することが必要です。"]
[55,"No.55【居宅サービス計画の交付の記録】について面談時確認することをお勧めします。","第5表における、モニタリングに関する記録の内容を確認します。","\tモニタリングとは、ケアプランの目標の達成状況やニーズの変化等を把握することであり、利用者の状況とサービスが合致しているかを確認します。モニタリングの結果、必要があればケアプランの変更を行う必要があります。\n\t第5表には、モニタリングを通じて把握した、利用者やその家族の意向・満足度等、目標の達成度、事業者との調整内容、居宅サービス計画の変更の必要性等について記載します。\n\t第5表は、介護支援専門員等がケアマネジメントを推進する上での判断の根拠や介護報酬請求に係る内容等を記録するものであることから、ケアプランの説明・同意・交付や、介護支援専門員が日頃の活動を通じて把握したことや判断したこと、持ち越された課題などを、日付や情報収集の手段やその内容について、時系列で誰もが理解できるように記載することが必要です。\n\t記載においては、わかりやすい記載を行うとともに、漫然と記載するのではなく、項目ごとに整理して記載することが重要です。"]
[56,"No.56【サービス担当者会議の招集】について面談時確認することをお勧めします。","第5表における、モニタリングに関する記録の内容を確認します。","\tモニタリングとは、ケアプランの目標の達成状況やニーズの変化等を把握することであり、利用者の状況とサービスが合致しているかを確認します。モニタリングの結果、必要があればケアプランの変更を行う必要があります。\n\t第5表には、モニタリングを通じて把握した、利用者やその家族の意向・満足度等、目標の達成度、事業者との調整内容、居宅サービス計画の変更の必要性等について記載します。\n\t第6表は、介護支援専門員等がケアマネジメントを推進する上での判断の根拠や介護報酬請求に係る内容等を記録するものであることから、ケアプランの説明・同意・交付や、介護支援専門員が日頃の活動を通じて把握したことや判断したこと、持ち越された課題などを、日付や情報収集の手段やその内容について、時系列で誰もが理解できるように記載することが必要です。\n\t記載においては、わかりやすい記載を行うとともに、漫然と記載するのではなく、項目ごとに整理して記載することが重要です。"]
[57,"No.57【利用者宅への月1回以上の訪問】について面談時確認することをお勧めします。","第5表における、モニタリングに関する記録の内容を確認します。","\tモニタリングとは、ケアプランの目標の達成状況やニーズの変化等を把握することであり、利用者の状況とサービスが合致しているかを確認します。モニタリングの結果、必要があればケアプランの変更を行う必要があります。\n\t第5表には、モニタリングを通じて把握した、利用者やその家族の意向・満足度等、目標の達成度、事業者との調整内容、居宅サービス計画の変更の必要性等について記載します。\n\t第7表は、介護支援専門員等がケアマネジメントを推進する上での判断の根拠や介護報酬請求に係る内容等を記録するものであることから、ケアプランの説明・同意・交付や、介護支援専門員が日頃の活動を通じて把握したことや判断したこと、持ち越された課題などを、日付や情報収集の手段やその内容について、時系列で誰もが理解できるように記載することが必要です。\n\t記載においては、わかりやすい記載を行うとともに、漫然と記載するのではなく、項目ごとに整理して記載することが重要です。"]
[58,"No.58【サービス事業所との連絡・モニタリング内容】について面談時確認することをお勧めします。","第5表における、モニタリングに関する記録の内容を確認します。","\tモニタリングとは、ケアプランの目標の達成状況やニーズの変化等を把握することであり、利用者の状況とサービスが合致しているかを確認します。モニタリングの結果、必要があればケアプランの変更を行う必要があります。\n\t第5表には、モニタリングを通じて把握した、利用者やその家族の意向・満足度等、目標の達成度、事業者との調整内容、居宅サービス計画の変更の必要性等について記載します。\n\t第8表は、介護支援専門員等がケアマネジメントを推進する上での判断の根拠や介護報酬請求に係る内容等を記録するものであることから、ケアプランの説明・同意・交付や、介護支援専門員が日頃の活動を通じて把握したことや判断したこと、持ち越された課題などを、日付や情報収集の手段やその内容について、時系列で誰もが理解できるように記載することが必要です。\n\t記載においては、わかりやすい記載を行うとともに、漫然と記載するのではなく、項目ごとに整理して記載することが重要です。"]
[59,"No.59【変化を捉える視点】について面談時確認することをお勧めします。","第5表における、モニタリングに関する記録の内容を確認します。","\tモニタリングとは、ケアプランの目標の達成状況やニーズの変化等を把握することであり、利用者の状況とサービスが合致しているかを確認します。モニタリングの結果、必要があればケアプランの変更を行う必要があります。\n\t第5表には、モニタリングを通じて把握した、利用者やその家族の意向・満足度等、目標の達成度、事業者との調整内容、居宅サービス計画の変更の必要性等について記載します。\n\t第9表は、介護支援専門員等がケアマネジメントを推進する上での判断の根拠や介護報酬請求に係る内容等を記録するものであることから、ケアプランの説明・同意・交付や、介護支援専門員が日頃の活動を通じて把握したことや判断したこと、持ち越された課題などを、日付や情報収集の手段やその内容について、時系列で誰もが理解できるように記載することが必要です。\n\t記載においては、わかりやすい記載を行うとともに、漫然と記載するのではなく、項目ごとに整理して記載することが重要です。"]
[60,"No.60【本人の心身状態に関する変化の医療者への報告】について面談時確認することをお勧めします。","第5表における、モニタリングに関する記録の内容を確認します。","\tモニタリングとは、ケアプランの目標の達成状況やニーズの変化等を把握することであり、利用者の状況とサービスが合致しているかを確認します。モニタリングの結果、必要があればケアプランの変更を行う必要があります。\n\t第5表には、モニタリングを通じて把握した、利用者やその家族の意向・満足度等、目標の達成度、事業者との調整内容、居宅サービス計画の変更の必要性等について記載します。\n\t第10表は、介護支援専門員等がケアマネジメントを推進する上での判断の根拠や介護報酬請求に係る内容等を記録するものであることから、ケアプランの説明・同意・交付や、介護支援専門員が日頃の活動を通じて把握したことや判断したこと、持ち越された課題などを、日付や情報収集の手段やその内容について、時系列で誰もが理解できるように記載することが必要です。\n\t記載においては、わかりやすい記載を行うとともに、漫然と記載するのではなく、項目ごとに整理して記載することが重要です。"]
[61,"No.61【ケアプランに位置付けられている多職種との連携】について面談時確認することをお勧めします。","ケアプラン作成～モニタリングの全般における、ケアプランに位置付けられている多職種との連携の状況がどのようになっているかを確認します。","\t利用者の支援の必要性を判断するための情報は、すべて介護支援専門員が一人で集めるのではなく、他の職種との連携によって収集することが必要です。また、支援の必要性の判断においても、療養に関わる点も含まれることから、すべて介護支援専門員が一人で判断するのではなく、内容に応じて、かかりつけ医をはじめ適切な職種の判断を仰ぐようにすることも留意が必要です。\n\tその際に大切なのは、一方的な意見聴取になるのではなく、双方向のやり取りを行うことです。例えば、他の職種における判断を円滑にするには、介護支援専門員から他の職種へ適切な情報提供を行うことが必要ですし、効果的・継続的に連携を行う上では、意見を収集した後にフィードバックを行うことも重要です。"]
[62,"No.62【ケアプランに位置付けられていない多職種との連携】について面談時確認することをお勧めします。","ケアプランに位置付けられていない多職種との連携の状況がどのようになっているかを確認します。","\t高齢者の生活を支えるためには、心身の状態に応じてその人らしい生活を送り、家庭や地域での役割を持つことができるような体制を整える視点（「活動と参加」の視点）も必要です。\n\tリハビリテーション職の視点など、多職種の知見を取り入れることで、利用者の自立支援・重度化防止の視点が強化された支援が可能となることがあります。そのため、自立支援型地域ケア会議など、ケアプランに位置付けられていない多職種の知見を得る機会があるか、確認を行いましょう。"]

{"sheet":"算出パラメータ","index":10,"n_rows":178,"n_cols":23,"rows_kept":178,"cut":false,"hidden":true,"merged":[]}
[]
[null,"凡例"]
[null,null,"設定値"]
[null,null,"算出値"]
[]
[null,"項目別最大の重み一覧",null,null,null,null,null,null,"項目別回答別重み一覧"]
[null,null,"項目No.","評価カテゴリ","項目","OneHotフラグ","項目別の最大重み",null,"項目No.","項目","回答","回答値","回答毎の重み","Key","OneHotフラグ","回答毎のポイント","影響の有無","影響度","最小値","最大値"]
[null,null,1,"課題の分析","課題分析の理由",0,{"$f":"IF(点検結果記載シート!E13=\"他\",0,MAX(P8:P9))","v":-5.8323337671490165E-2},null,1,"課題分析の理由",2,{"$f":"IF(O8=0,IF(Config!$X$7,(K8-S8)/(T8-S8),K8),\"-\")","v":2},1.0073765287757399E-3,{"$f":"I8&K8","v":"12"},{"$f":"VLOOKUP(I8,C:F,4,FALSE)","v":0},{"$f":"IF(O8=1,M8,L8*M8)+$W$16","v":-5.8323337671490165E-2},{"$f":"OR(K8=\"無\",K8=1)","v":false},{"$f":"IF(Q8,VLOOKUP(I8,C:G,5,)-P8,0)","v":0},{"$f":"MIN(K8:K9)","v":1},{"$f":"MAX(K8:K9)","v":2},null,{"$f":"算出シート!D22","v":"生活の全体像の把握"},{"$f":"COUNTIF(D:D,V8)","v":13}]
[null,null,2,"疾病・心身状態の把握","かかりつけ医",0,{"$f":"IF(点検結果記載シート!E14=\"他\",0,MAX(P10:P12))","v":3.5007744582495753E-2},null,1,"課題分析の理由",1,{"$f":"IF(O9=0,IF(Config!$X$7,(K9-S9)/(T9-S9),K9),\"-\")","v":1},1.0073765287757399E-3,"11",0,{"$f":"IF(O9=1,M9,L9*M9)+$W$16","v":-5.9330714200265901E-2},{"$f":"OR(K9=\"無\",K9=1)","v":true},{"$f":"IF(Q9,VLOOKUP(I9,C:G,5,)-P9,0)","v":1.0073765287757358E-3},{"$f":"MIN(K8:K9)","v":1},{"$f":"MAX(K8:K9)","v":2},null,{"$f":"算出シート!E22","v":"疾病・心身状態の把握"},10]
[null,null,3,"疾病・心身状態の把握","既往歴の有無・内容",0,{"$f":"IF(点検結果記載シート!E15=\"他\",0,MAX(P13:P15))","v":-9.0685502590084413E-3},null,2,"かかりつけ医",3,{"$f":"IF(O10=0,IF(Config!$X$7,(K10-S10)/(T10-S10),K10),\"-\")","v":3},3.1781945103845799E-2,"23",0,3.5007744582495753E-2,false,0,{"$f":"MIN(K10:K12)","v":1},{"$f":"MAX(K10:K12)","v":3},null,{"$f":"算出シート!F22","v":"主訴・意思の把握・尊重"},8]
[null,null,4,"疾病・心身状態の把握","主傷病",0,{"$f":"IF(点検結果記載シート!E16=\"他\",0,MAX(P16:P17))","v":0.10115941029746356},null,2,"かかりつけ医",2,{"$f":"IF(O11=0,IF(Config!$X$7,(K11-S11)/(T11-S11),K11),\"-\")","v":2},3.1781945103845799E-2,"22",0,3.2257994786499544E-3,false,0,{"$f":"MIN(K10:K12)","v":1},{"$f":"MAX(K10:K12)","v":3},null,{"$f":"算出シート!G22","v":"課題の分析"},7]
[null,null,5,"疾病・心身状態の把握","内服薬・処置",0,{"$f":"IF(点検結果記載シート!E17=\"他\",0,MAX(P18:P19))","v":0.14509311085700236},null,2,"かかりつけ医",1,{"$f":"IF(O12=0,IF(Config!$X$7,(K12-S12)/(T12-S12),K12),\"-\")","v":1},3.1781945103845799E-2,"21",0,-2.8556145625195845E-2,true,6.3563890207691598E-2,{"$f":"MIN(K10:K12)","v":1},{"$f":"MAX(K10:K12)","v":3},null,{"$f":"算出シート!H22","v":"課題を解決するためのサービス計画"},11]
[null,null,6,"生活の全体像の把握","ADL",0,{"$f":"IF(点検結果記載シート!E18=\"他\",0,MAX(P20:P22))","v":-6.0338090729041644E-2},null,3,"既往歴の有無・内容",2,{"$f":"IF(O13=0,IF(Config!$X$7,(K13-S13)/(T13-S13),K13),\"-\")","v":2},2.5634770235016601E-2,"32",0,-9.0685502590084413E-3,false,0,{"$f":"MIN(K13:K15)","v":1},{"$f":"MAX(K13:K15)","v":2},null,{"$f":"算出シート!I22","v":"家族の状況の把握と支援"},4]
[null,null,7,"生活の全体像の把握","IADL",0,{"$f":"IF(点検結果記載シート!E19=\"他\",0,MAX(P23:P25))","v":-6.0338090729041644E-2},null,3,"既往歴の有無・内容",1,{"$f":"IF(O14=0,IF(Config!$X$7,(K14-S14)/(T14-S14),K14),\"-\")","v":1},2.5634770235016601E-2,"31",0,-3.4703320494025039E-2,true,2.5634770235016598E-2,{"$f":"MIN(K13:K15)","v":1},{"$f":"MAX(K13:K15)","v":2},null,{"$f":"算出シート!J22","v":"多職種との連携"},8]
[null,null,8,"疾病・心身状態の把握","認知機能や判断能力",0,{"$f":"IF(点検結果記載シート!E20=\"他\",0,MAX(P26:P28))","v":-6.0338090729041644E-2},null,3,"既往歴の有無・内容","他",0,2.5634770235016601E-2,"3他",0,-6.0338090729041644E-2,false,0,{"$f":"MIN(K13:K15)","v":1},{"$f":"MAX(K13:K15)","v":2},null,"設問数",{"$f":"SUM(W8:W14)","v":61}]
[null,null,9,"疾病・心身状態の把握","コミュニケーションにおける理解と表出の状況",0,{"$f":"IF(点検結果記載シート!E21=\"他\",0,MAX(P29:P31))","v":0.38208494634539836},null,4,"主傷病",2,{"$f":"IF(O16=0,IF(Config!$X$7,(K16-S16)/(T16-S16),K16),\"-\")","v":2},8.0748750513252601E-2,"42",0,0.10115941029746356,false,0,{"$f":"MIN(K16:K17)","v":1},{"$f":"MAX(K16:K17)","v":2},null,"設問単位での切片の値",{"$f":"Config!$J$40/W15","v":-6.0338090729041644E-2}]
[null,null,10,"生活の全体像の把握","一日に摂取すべき水分量",0,{"$f":"IF(点検結果記載シート!E22=\"他\",0,MAX(P32:P33))","v":5.1361812260464754E-2},null,4,"主傷病",1,{"$f":"IF(O17=0,IF(Config!$X$7,(K17-S17)/(T17-S17),K17),\"-\")","v":1},8.0748750513252601E-2,"41",0,2.0410659784210958E-2,true,8.0748750513252601E-2,{"$f":"MIN(K16:K17)","v":1},{"$f":"MAX(K16:K17)","v":2}]
[null,null,11,"生活の全体像の把握","実際に摂取した水分量",0,{"$f":"IF(点検結果記載シート!E23=\"他\",0,MAX(P34:P35))","v":1.8814401087603752E-2},null,5,"内服薬・処置",2,{"$f":"IF(O18=0,IF(Config!$X$7,(K18-S18)/(T18-S18),K18),\"-\")","v":2},0.102715600793022,"52",0,0.14509311085700236,false,0,{"$f":"MIN(K18:K19)","v":1},{"$f":"MAX(K18:K19)","v":2}]
[null,null,12,"生活の全体像の把握","食事内容・カロリー数",0,{"$f":"IF(点検結果記載シート!E24=\"他\",0,MAX(P36:P38))","v":-6.0338090729041644E-2},null,5,"内服薬・処置",1,{"$f":"IF(O19=0,IF(Config!$X$7,(K19-S19)/(T19-S19),K19),\"-\")","v":1},0.102715600793022,"51",0,{"$f":"IF(O19=1,M19,L19*M19)+$W$16","v":4.2377510063980356E-2},true,0.102715600793022,{"$f":"MIN(K18:K19)","v":1},{"$f":"MAX(K18:K19)","v":2}]
[null,null,13,"疾病・心身状態の把握","BMI",0,{"$f":"IF(点検結果記載シート!E25=\"他\",0,MAX(P39:P40))","v":7.9409265436570564E-2},null,6,"ADL",3,{"$f":"IF(O20=0,IF(Config!$X$7,(K20-S20)/(T20-S20),K20),\"-\")","v":3},0,{"$f":"I20&K20","v":"63"},0,{"$f":"IF(O20=1,M20,L20*M20)+$W$16","v":-6.0338090729041644E-2},false,0,{"$f":"MIN(K20:K22)","v":1},{"$f":"MAX(K20:K22)","v":3}]
[null,null,14,"疾病・心身状態の把握","口腔衛生の状態",0,{"$f":"IF(点検結果記載シート!E26=\"他\",0,MAX(P41:P43))","v":-6.0338090729041644E-2},null,6,"ADL",2,{"$f":"IF(O21=0,IF(Config!$X$7,(K21-S21)/(T21-S21),K21),\"-\")","v":2},0,"62",0,{"$f":"IF(O21=1,M21,L21*M21)+$W$16","v":-6.0338090729041644E-2},false,0,{"$f":"MIN(K20:K22)","v":1},{"$f":"MAX(K20:K22)","v":3}]
[null,null,15,"生活の全体像の把握","排尿、排便の状態",0,{"$f":"IF(点検結果記載シート!E27=\"他\",0,MAX(P44:P46))","v":-6.0338090729041644E-2},null,6,"ADL",1,{"$f":"IF(O22=0,IF(Config!$X$7,(K22-S22)/(T22-S22),K22),\"-\")","v":1},0,{"$f":"I22&K22","v":"61"},0,-6.0338090729041644E-2,true,0,{"$f":"MIN(K20:K22)","v":1},{"$f":"MAX(K20:K22)","v":3}]
[null,null,16,"生活の全体像の把握","清潔の保持",0,{"$f":"IF(点検結果記載シート!E28=\"他\",0,MAX(P47:P49))","v":1.0909816128442336},null,7,"IADL",3,{"$f":"IF(O23=0,IF(Config!$X$7,(K23-S23)/(T23-S23),K23),\"-\")","v":3},0,"73",0,-6.0338090729041644E-2,false,0,{"$f":"MIN(K23:K25)","v":1},{"$f":"MAX(K23:K25)","v":3}]
[null,null,17,"疾病・心身状態の把握","「一部介助」項目の特記",0,{"$f":"IF(点検結果記載シート!E29=\"他\",0,MAX(P50:P52))","v":-6.0338090729041644E-2},null,7,"IADL",2,{"$f":"IF(O24=0,IF(Config!$X$7,(K24-S24)/(T24-S24),K24),\"-\")","v":2},0,"72",0,-6.0338090729041644E-2,false,0,{"$f":"MIN(K23:K25)","v":1},{"$f":"MAX(K23:K25)","v":3}]
[null,null,18,"疾病・心身状態の把握","「見守り」項目の特記",0,{"$f":"IF(点検結果記載シート!E30=\"他\",0,MAX(P53:P55))","v":0.14427249345892434},null,7,"IADL",1,{"$f":"IF(O25=0,IF(Config!$X$7,(K25-S25)/(T25-S25),K25),\"-\")","v":1},0,"71",0,-6.0338090729041644E-2,true,0,{"$f":"MIN(K23:K25)","v":1},{"$f":"MAX(K23:K25)","v":3}]
[null,null,19,"生活の全体像の把握","外出頻度、外出先",0,{"$f":"IF(点検結果記載シート!E31=\"他\",0,MAX(P56:P59))","v":-6.0338090729041644E-2},null,8,"認知機能や判断能力",3,{"$f":"IF(O26=0,IF(Config!$X$7,(K26-S26)/(T26-S26),K26),\"-\")","v":3},0,"83",0,-6.0338090729041644E-2,false,0,{"$f":"MIN(K26:K28)","v":1},{"$f":"MAX(K26:K28)","v":3}]
[null,null,20,"主訴・意思の把握・尊重","利用者の主訴・要望",0,{"$f":"IF(点検結果記載シート!E32=\"他\",0,MAX(P60:P62))","v":-6.0338090729041644E-2},null,8,"認知機能や判断能力",2,{"$f":"IF(O27=0,IF(Config!$X$7,(K27-S27)/(T27-S27),K27),\"-\")","v":2},0,"82",0,-6.0338090729041644E-2,false,0,{"$f":"MIN(K26:K28)","v":1},{"$f":"MAX(K26:K28)","v":3}]
[null,null,21,"生活の全体像の把握","一日の過ごし方",0,{"$f":"IF(点検結果記載シート!E33=\"他\",0,MAX(P63:P65))","v":0.11134762434335174},null,8,"認知機能や判断能力",1,{"$f":"IF(O28=0,IF(Config!$X$7,(K28-S28)/(T28-S28),K28),\"-\")","v":1},0,"81",0,-6.0338090729041644E-2,true,0,{"$f":"MIN(K26:K28)","v":1},{"$f":"MAX(K26:K28)","v":3}]
[null,null,22,"生活の全体像の把握","離床、臥床",0,{"$f":"IF(点検結果記載シート!E34=\"他\",0,MAX(P66:P68))","v":-6.0338090729041644E-2},null,9,"コミュニケーションにおける理解と表出の状況",3,{"$f":"IF(O29=0,IF(Config!$X$7,(K29-S29)/(T29-S29),K29),\"-\")","v":3},0.14747434569147999,"93",0,0.38208494634539836,false,0,{"$f":"MIN(K29:K31)","v":1},{"$f":"MAX(K29:K31)","v":3}]
[null,null,23,"生活の全体像の把握","現在の生活状況",0,{"$f":"IF(点検結果記載シート!E35=\"他\",0,MAX(P69:P71))","v":2.5329911324374954E-2},null,9,"コミュニケーションにおける理解と表出の状況",2,{"$f":"IF(O30=0,IF(Config!$X$7,(K30-S30)/(T30-S30),K30),\"-\")","v":2},0.14747434569147999,"92",0,0.23461060065391834,false,0,{"$f":"MIN(K29:K31)","v":1},{"$f":"MAX(K29:K31)","v":3}]
[null,null,24,"主訴・意思の把握・尊重","生活歴",0,{"$f":"IF(点検結果記載シート!E36=\"他\",0,MAX(P72:P74))","v":0.26444940488761037},null,9,"コミュニケーションにおける理解と表出の状況",1,{"$f":"IF(O31=0,IF(Config!$X$7,(K31-S31)/(T31-S31),K31),\"-\")","v":1},0.14747434569147999,"91",0,8.7136254962438348E-2,true,0.29494869138295998,{"$f":"MIN(K29:K31)","v":1},{"$f":"MAX(K29:K31)","v":3}]
[null,null,25,"家族の状況の把握と支援","家族の主訴・要望",0,{"$f":"IF(点検結果記載シート!E37=\"他\",0,MAX(P75:P78))","v":6.5073501343968748E-2},null,10,"一日に摂取すべき水分量",2,{"$f":"IF(O32=0,IF(Config!$X$7,(K32-S32)/(T32-S32),K32),\"-\")","v":2},5.5849951494753199E-2,"102",0,{"$f":"IF(O32=1,M32,L32*M32)+$W$16","v":5.1361812260464754E-2},false,0,{"$f":"MIN(K32:K33)","v":1},{"$f":"MAX(K32:K33)","v":2}]
[null,null,26,"生活の全体像の把握","経済状況",0,{"$f":"IF(点検結果記載シート!E38=\"他\",0,MAX(P79:P81))","v":-6.0338090729041644E-2},null,10,"一日に摂取すべき水分量",1,{"$f":"IF(O33=0,IF(Config!$X$7,(K33-S33)/(T33-S33),K33),\"-\")","v":1},5.5849951494753199E-2,"101",0,-4.4881392342884449E-3,true,5.5849951494753199E-2,{"$f":"MIN(K32:K33)","v":1},{"$f":"MAX(K32:K33)","v":2}]
[null,null,27,"主訴・意思の把握・尊重","本人の役割",0,{"$f":"IF(点検結果記載シート!E39=\"他\",0,MAX(P82:P84))","v":8.5118592632444257E-2},null,11,"実際に摂取した水分量",2,{"$f":"IF(O34=0,IF(Config!$X$7,(K34-S34)/(T34-S34),K34),\"-\")","v":2},3.9576245908322698E-2,"112",0,1.8814401087603752E-2,false,0,{"$f":"MIN(K34:K35)","v":1},{"$f":"MAX(K34:K35)","v":2}]
[null,null,28,"課題の分析","課題の確認",0,{"$f":"IF(点検結果記載シート!E40=\"他\",0,MAX(P85:P86))","v":0.2762301842693603},null,11,"実際に摂取した水分量",1,{"$f":"IF(O35=0,IF(Config!$X$7,(K35-S35)/(T35-S35),K35),\"-\")","v":1},3.9576245908322698E-2,"111",0,-2.0761844820718946E-2,true,3.9576245908322698E-2,{"$f":"MIN(K34:K35)","v":1},{"$f":"MAX(K34:K35)","v":2}]
[null,null,29,"課題の分析","課題の分析結果の文章化",0,{"$f":"IF(点検結果記載シート!E41=\"他\",0,MAX(P87:P89))","v":0.10118930381048177},null,12,"食事内容・カロリー数",3,{"$f":"IF(O36=0,IF(Config!$X$7,(K36-S36)/(T36-S36),K36),\"-\")","v":3},0,"123",0,-6.0338090729041644E-2,false,0,{"$f":"MIN(K36:K38)","v":1},{"$f":"MAX(K36:K38)","v":3}]
[null,null,30,"家族の状況の把握と支援","家族の状況",0,{"$f":"IF(点検結果記載シート!E42=\"他\",0,MAX(P90:P92))","v":0.27012328301398636},null,12,"食事内容・カロリー数",2,{"$f":"IF(O37=0,IF(Config!$X$7,(K37-S37)/(T37-S37),K37),\"-\")","v":2},0,"122",0,-6.0338090729041644E-2,false,0,{"$f":"MIN(K36:K38)","v":1},{"$f":"MAX(K36:K38)","v":3}]
[null,null,31,"生活の全体像の把握","家族関係や周辺の社会資源との状況",0,{"$f":"IF(点検結果記載シート!E43=\"他\",0,MAX(P93:P95))","v":0.20551623181864273},null,12,"食事内容・カロリー数",1,{"$f":"IF(O38=0,IF(Config!$X$7,(K38-S38)/(T38-S38),K38),\"-\")","v":1},0,"121",0,-6.0338090729041644E-2,true,0,{"$f":"MIN(K36:K38)","v":1},{"$f":"MAX(K36:K38)","v":3}]
[null,null,32,"課題の分析","留意すべき事項",0,{"$f":"IF(点検結果記載シート!E44=\"他\",0,MAX(P96:P98))","v":0.11100948956364015},null,13,"BMI",2,{"$f":"IF(O39=0,IF(Config!$X$7,(K39-S39)/(T39-S39),K39),\"-\")","v":2},6.9873678082806104E-2,"132",0,7.9409265436570564E-2,false,0,{"$f":"MIN(K39:K40)","v":1},{"$f":"MAX(K39:K40)","v":2}]
[null,null,33,"主訴・意思の把握・尊重","利用者及び家族の生活に対する意向を踏まえた課題分析の結果",0,{"$f":"IF(点検結果記載シート!E45=\"他\",0,MAX(P99:P101))","v":0.53244600451393642},null,13,"BMI",1,{"$f":"IF(O40=0,IF(Config!$X$7,(K40-S40)/(T40-S40),K40),\"-\")","v":1},6.9873678082806104E-2,"131",0,9.5355873537644603E-3,true,6.9873678082806104E-2,{"$f":"MIN(K39:K40)","v":1},{"$f":"MAX(K39:K40)","v":2}]
[null,null,34,"課題を解決するためのサービス計画","総合的な援助の方針における自立の具体性",0,{"$f":"IF(点検結果記載シート!E46=\"他\",0,MAX(P102:P104))","v":0.11812355516330836},null,14,"口腔衛生の状態",3,{"$f":"IF(O41=0,IF(Config!$X$7,(K41-S41)/(T41-S41),K41),\"-\")","v":3},0,"143",{"$f":"VLOOKUP(I41,C:F,4,FALSE)","v":0},-6.0338090729041644E-2,false,{"$f":"IF(Q41,VLOOKUP(I41,C:G,5,)-P41,0)","v":0},{"$f":"MIN(K41:K43)","v":1},{"$f":"MAX(K41:K43)","v":3}]
[null,null,35,"課題を解決するためのサービス計画","アセスメントで抽出した課題に基づくニーズの記載",0,{"$f":"IF(点検結果記載シート!E47=\"他\",0,MAX(P105:P107))","v":0.34443288479593037},null,14,"口腔衛生の状態",2,{"$f":"IF(O42=0,IF(Config!$X$7,(K42-S42)/(T42-S42),K42),\"-\")","v":2},0,"142",0,-6.0338090729041644E-2,false,0,{"$f":"MIN(K41:K43)","v":1},{"$f":"MAX(K41:K43)","v":3}]
[null,null,36,"主訴・意思の把握・尊重","利用者や多職種に理解できる表記",0,{"$f":"IF(点検結果記載シート!E48=\"他\",0,MAX(P108:P110))","v":-6.0338090729041644E-2},null,14,"口腔衛生の状態",1,{"$f":"IF(O43=0,IF(Config!$X$7,(K43-S43)/(T43-S43),K43),\"-\")","v":1},0,"141",0,-6.0338090729041644E-2,true,0,{"$f":"MIN(K41:K43)","v":1},{"$f":"MAX(K41:K43)","v":3}]
[null,null,37,"課題を解決するためのサービス計画","長期目標",0,{"$f":"IF(点検結果記載シート!E49=\"他\",0,MAX(P111:P113))","v":-6.0338090729041644E-2},null,15,"排尿、排便の状態",3,{"$f":"IF(O44=0,IF(Config!$X$7,(K44-S44)/(T44-S44),K44),\"-\")","v":3},0,"153",0,-6.0338090729041644E-2,false,0,{"$f":"MIN(K44:K46)","v":1},{"$f":"MAX(K44:K46)","v":3}]
[null,null,38,"課題を解決するためのサービス計画","短期目標",0,{"$f":"IF(点検結果記載シート!E50=\"他\",0,MAX(P114:P116))","v":-6.0338090729041644E-2},null,15,"排尿、排便の状態",2,{"$f":"IF(O45=0,IF(Config!$X$7,(K45-S45)/(T45-S45),K45),\"-\")","v":2},0,"152",0,-6.0338090729041644E-2,false,0,{"$f":"MIN(K44:K46)","v":1},{"$f":"MAX(K44:K46)","v":3}]
[null,null,39,"課題を解決するためのサービス計画","本人の役割設定",0,{"$f":"IF(点検結果記載シート!E51=\"他\",0,MAX(P117:P118))","v":0.40216464852653833},null,15,"排尿、排便の状態",1,{"$f":"IF(O46=0,IF(Config!$X$7,(K46-S46)/(T46-S46),K46),\"-\")","v":1},0,"151",0,-6.0338090729041644E-2,true,0,{"$f":"MIN(K44:K46)","v":1},{"$f":"MAX(K44:K46)","v":3}]
[null,null,40,"課題を解決するためのサービス計画","介護保険サービス",0,{"$f":"IF(点検結果記載シート!E52=\"他\",0,MAX(P119:P121))","v":0.2762520014650004},null,16,"清潔の保持",3,{"$f":"IF(O47=0,IF(Config!$X$7,(K47-S47)/(T47-S47),K47),\"-\")","v":3},0.38377323452442502,"163",0,1.0909816128442336,false,0,{"$f":"MIN(K47:K49)","v":1},{"$f":"MAX(K47:K49)","v":3}]
[null,null,41,"課題を解決するためのサービス計画","福祉用具貸与・販売の種類と利用の理由",0,{"$f":"IF(点検結果記載シート!E53=\"他\",0,MAX(P122:P124))","v":0.17532754830305436},null,16,"清潔の保持",2,{"$f":"IF(O48=0,IF(Config!$X$7,(K48-S48)/(T48-S48),K48),\"-\")","v":2},0.38377323452442502,"162",0,0.70720837831980843,false,0,{"$f":"MIN(K47:K49)","v":1},{"$f":"MAX(K47:K49)","v":3}]
[null,null,42,"課題を解決するためのサービス計画","介護保険外サービス",0,{"$f":"IF(点検結果記載シート!E54=\"他\",0,MAX(P125:P127))","v":-4.74222162151344E-2},null,16,"清潔の保持",1,{"$f":"IF(O49=0,IF(Config!$X$7,(K49-S49)/(T49-S49),K49),\"-\")","v":1},0.38377323452442502,"161",0,0.32343514379538341,true,0.76754646904885016,{"$f":"MIN(K47:K49)","v":1},{"$f":"MAX(K47:K49)","v":3}]
[null,null,43,"主訴・意思の把握・尊重","利用者の意思を反映したサービス事業所の利用",0,{"$f":"IF(点検結果記載シート!E55=\"他\",0,MAX(P128:P130))","v":-6.0338090729041644E-2},null,17,"「一部介助」項目の特記",3,{"$f":"IF(O50=0,IF(Config!$X$7,(K50-S50)/(T50-S50),K50),\"-\")","v":3},0,"173",0,-6.0338090729041644E-2,false,0,{"$f":"MIN(K50:K52)","v":1},{"$f":"MAX(K50:K52)","v":3}]
[null,null,44,"課題を解決するためのサービス計画","週間計画の整合性（介護保険サービス）",0,{"$f":"IF(点検結果記載シート!E56=\"他\",0,MAX(P131:P132))","v":-6.0338090729041644E-2},null,17,"「一部介助」項目の特記",2,{"$f":"IF(O51=0,IF(Config!$X$7,(K51-S51)/(T51-S51),K51),\"-\")","v":2},0,"172",0,-6.0338090729041644E-2,false,0,{"$f":"MIN(K50:K52)","v":1},{"$f":"MAX(K50:K52)","v":3}]
[null,null,45,"課題を解決するためのサービス計画","週間計画の整合性（インフォーマルサポート）",0,{"$f":"IF(点検結果記載シート!E57=\"他\",0,MAX(P133:P134))","v":-2.1434827294654242E-2},null,17,"「一部介助」項目の特記",1,{"$f":"IF(O52=0,IF(Config!$X$7,(K52-S52)/(T52-S52),K52),\"-\")","v":1},0,"171",0,-6.0338090729041644E-2,true,0,{"$f":"MIN(K50:K52)","v":1},{"$f":"MAX(K50:K52)","v":3}]
[null,null,46,"課題を解決するためのサービス計画","週間計画の整合性（一日の習慣化された活動）",0,{"$f":"IF(点検結果記載シート!E58=\"他\",0,MAX(P135:P136))","v":0.31820154030650838},null,18,"「見守り」項目の特記",2,{"$f":"IF(O53=0,IF(Config!$X$7,(K53-S53)/(T53-S53),K53),\"-\")","v":2},0.10230529209398299,"182",0,0.14427249345892434,false,0,{"$f":"MIN(K53:K55)","v":1},{"$f":"MAX(K53:K55)","v":2}]
[null,null,47,"家族の状況の把握と支援","家族の役割設定の整合性",0,{"$f":"IF(点検結果記載シート!E59=\"他\",0,MAX(P137:P139))","v":0.11574771286321694},null,18,"「見守り」項目の特記",1,{"$f":"IF(O54=0,IF(Config!$X$7,(K54-S54)/(T54-S54),K54),\"-\")","v":1},0.10230529209398299,"181",0,4.1967201364941351E-2,true,0.10230529209398299,{"$f":"MIN(K53:K55)","v":1},{"$f":"MAX(K53:K55)","v":2}]
[null,null,48,"多職種との連携","サービス担当者会議の開催",0,{"$f":"IF(点検結果記載シート!E60=\"他\",0,MAX(P140:P141))","v":-6.0338090729041644E-2},null,18,"「見守り」項目の特記","他",0,0.10230529209398299,"18他",0,-6.0338090729041644E-2,false,0,{"$f":"MIN(K53:K55)","v":1},{"$f":"MAX(K53:K55)","v":2}]
[null,null,49,"主訴・意思の把握・尊重","サービス担当者会議への本人の出席",0,{"$f":"IF(点検結果記載シート!E61=\"他\",0,MAX(P142:P143))","v":0.14339463879107636},null,19,"外出頻度、外出先",3,{"$f":"IF(O56=0,IF(Config!$X$7,(K56-S56)/(T56-S56),K56),\"-\")","v":3},0,{"$f":"I56&K56","v":"193"},0,-6.0338090729041644E-2,false,0,{"$f":"MIN(K56:K59)","v":1},{"$f":"MAX(K56:K59)","v":3}]
[null,null,50,"家族の状況の把握と支援","サービス担当者会議への家族の出席",0,{"$f":"IF(点検結果記載シート!E62=\"他\",0,MAX(P144:P146))","v":-6.0338090729041644E-2},null,19,"外出頻度、外出先",2,{"$f":"IF(O57=0,IF(Config!$X$7,(K57-S57)/(T57-S57),K57),\"-\")","v":2},0,"192",0,-6.0338090729041644E-2,false,0,{"$f":"MIN(K56:K59)","v":1},{"$f":"MAX(K56:K59)","v":3}]
[null,null,51,"多職種との連携","サービス担当者会議へのサービス担当者の出席",0,{"$f":"IF(点検結果記載シート!E63=\"他\",0,MAX(P147:P148))","v":6.589349013404161E-3},null,19,"外出頻度、外出先",1,{"$f":"IF(O58=0,IF(Config!$X$7,(K58-S58)/(T58-S58),K58),\"-\")","v":1},0,"191",0,-6.0338090729041644E-2,true,0,{"$f":"MIN(K56:K59)","v":1},{"$f":"MAX(K56:K59)","v":3}]
[null,null,52,"多職種との連携","サービス担当者会議の議題（検討項目）",0,{"$f":"IF(点検結果記載シート!E64=\"他\",0,MAX(P149:P151))","v":-6.0338090729041644E-2},null,19,"外出頻度、外出先","他",0,0,"19他",0,-6.0338090729041644E-2,false,0,{"$f":"MIN(K56:K59)","v":1},{"$f":"MAX(K56:K59)","v":3}]
[null,null,53,"多職種との連携","サービス担当者会議の検討内容",0,{"$f":"IF(点検結果記載シート!E65=\"他\",0,MAX(P152:P154))","v":0.34129941704926336},null,20,"利用者の主訴・要望",3,{"$f":"IF(O60=0,IF(Config!$X$7,(K60-S60)/(T60-S60),K60),\"-\")","v":3},0,"203",0,-6.0338090729041644E-2,false,0,{"$f":"MIN(K60:K62)","v":1},{"$f":"MAX(K60:K62)","v":3}]
[null,null,54,"課題の分析","サービス担当者会議で残された課題",0,{"$f":"IF(点検結果記載シート!E66=\"他\",0,MAX(P155:P156))","v":-6.0338090729041644E-2},null,20,"利用者の主訴・要望",2,{"$f":"IF(O61=0,IF(Config!$X$7,(K61-S61)/(T61-S61),K61),\"-\")","v":2},0,"202",0,-6.0338090729041644E-2,false,0,{"$f":"MIN(K60:K62)","v":1},{"$f":"MAX(K60:K62)","v":3}]
[null,null,55,"主訴・意思の把握・尊重","居宅サービス計画の交付の記録",0,{"$f":"IF(点検結果記載シート!E67=\"他\",0,MAX(P157:P159))","v":-6.0338090729041644E-2},null,20,"利用者の主訴・要望",1,{"$f":"IF(O62=0,IF(Config!$X$7,(K62-S62)/(T62-S62),K62),\"-\")","v":1},0,"201",0,-6.0338090729041644E-2,true,0,{"$f":"MIN(K60:K62)","v":1},{"$f":"MAX(K60:K62)","v":3}]
[null,null,56,"多職種との連携","サービス担当者会議の招集",0,{"$f":"IF(点検結果記載シート!E68=\"他\",0,MAX(P160:P162))","v":-6.0338090729041644E-2},null,21,"一日の過ごし方",3,{"$f":"IF(O63=0,IF(Config!$X$7,(K63-S63)/(T63-S63),K63),\"-\")","v":3},5.72285716907978E-2,"213",0,0.11134762434335174,false,0,{"$f":"MIN(K63:K65)","v":1},{"$f":"MAX(K63:K65)","v":3}]
[null,null,57,"課題の分析","利用者宅への月1回以上の訪問",0,{"$f":"IF(点検結果記載シート!E69=\"他\",0,MAX(P163:P165))","v":0.36564340126162231},null,21,"一日の過ごし方",2,{"$f":"IF(O64=0,IF(Config!$X$7,(K64-S64)/(T64-S64),K64),\"-\")","v":2},5.72285716907978E-2,"212",0,5.4119052652553956E-2,false,0,{"$f":"MIN(K63:K65)","v":1},{"$f":"MAX(K63:K65)","v":3}]
[null,null,58,"多職種との連携","サービス事業所との連絡・モニタリング内容",0,{"$f":"IF(点検結果記載シート!E70=\"他\",0,MAX(P166:P168))","v":3.007230123832666E-2},null,21,"一日の過ごし方",1,{"$f":"IF(O65=0,IF(Config!$X$7,(K65-S65)/(T65-S65),K65),\"-\")","v":1},5.72285716907978E-2,"211",0,-3.1095190382438437E-3,true,0.11445714338159559,{"$f":"MIN(K63:K65)","v":1},{"$f":"MAX(K63:K65)","v":3}]
[null,null,59,"課題の分析","変化を捉える視点",0,{"$f":"IF(点検結果記載シート!E71=\"他\",0,MAX(P169:P170))","v":-2.5324970618118843E-2},null,22,"離床、臥床",2,{"$f":"IF(O66=0,IF(Config!$X$7,(K66-S66)/(T66-S66),K66),\"-\")","v":2},0,"222",0,-6.0338090729041644E-2,false,0,{"$f":"MIN(K66:K68)","v":1},{"$f":"MAX(K66:K68)","v":2}]
[null,null,60,"多職種との連携","本人の心身状態に関する変化の医療者への報告",0,{"$f":"IF(点検結果記載シート!E72=\"他\",0,MAX(P171:P173))","v":4.3823271541313963E-2},null,22,"離床、臥床",1,{"$f":"IF(O67=0,IF(Config!$X$7,(K67-S67)/(T67-S67),K67),\"-\")","v":1},0,"221",0,-6.0338090729041644E-2,true,0,{"$f":"MIN(K66:K68)","v":1},{"$f":"MAX(K66:K68)","v":2}]
[null,null,61,"多職種との連携","ケアプランに位置付けられている多職種との連携",0,{"$f":"IF(点検結果記載シート!E73=\"他\",0,MAX(P174:P176))","v":0.21970741651447875},null,22,"離床、臥床","他",0,0,"22他",0,-6.0338090729041644E-2,false,0,{"$f":"MIN(K66:K68)","v":1},{"$f":"MAX(K66:K68)","v":2}]
[null,null,62,"その他","ケアプランに位置付けられていない多職種との連携",0,{"$f":"IF(点検結果記載シート!E74=\"他\",0,MAX(P177:P178))","v":-6.0338090729041644E-2},null,23,"現在の生活状況",3,{"$f":"IF(O69=0,IF(Config!$X$7,(K69-S69)/(T69-S69),K69),\"-\")","v":3},2.8556000684472199E-2,"233",0,2.5329911324374954E-2,false,0,{"$f":"MIN(K69:K71)","v":1},{"$f":"MAX(K69:K71)","v":3}]
[null,null,null,null,null,null,null,null,23,"現在の生活状況",2,{"$f":"IF(O70=0,IF(Config!$X$7,(K70-S70)/(T70-S70),K70),\"-\")","v":2},2.8556000684472199E-2,"232",0,-3.2260893600972451E-3,false,0,{"$f":"MIN(K69:K71)","v":1},{"$f":"MAX(K69:K71)","v":3}]
[null,null,null,null,null,null,null,null,23,"現在の生活状況",1,{"$f":"IF(O71=0,IF(Config!$X$7,(K71-S71)/(T71-S71),K71),\"-\")","v":1},2.8556000684472199E-2,"231",0,-3.1782090044569444E-2,true,5.7112001368944398E-2,{"$f":"MIN(K69:K71)","v":1},{"$f":"MAX(K69:K71)","v":3}]
[null,null,null,null,null,null,null,null,24,"生活歴",3,{"$f":"IF(O72=0,IF(Config!$X$7,(K72-S72)/(T72-S72),K72),\"-\")","v":3},0.10826249853888401,"243",0,0.26444940488761037,false,0,{"$f":"MIN(K72:K74)","v":1},{"$f":"MAX(K72:K74)","v":3}]
[null,null,null,null,null,null,null,null,24,"生活歴",2,{"$f":"IF(O73=0,IF(Config!$X$7,(K73-S73)/(T73-S73),K73),\"-\")","v":2},0.10826249853888401,"242",{"$f":"VLOOKUP(I73,C:F,4,FALSE)","v":0},0.15618690634872637,false,{"$f":"IF(Q73,VLOOKUP(I73,C:G,5,)-P73,0)","v":0},{"$f":"MIN(K72:K74)","v":1},{"$f":"MAX(K72:K74)","v":3}]
[null,null,null,null,null,null,null,null,24,"生活歴",1,{"$f":"IF(O74=0,IF(Config!$X$7,(K74-S74)/(T74-S74),K74),\"-\")","v":1},0.10826249853888401,"241",0,4.7924407809842362E-2,true,0.21652499707776801,{"$f":"MIN(K72:K74)","v":1},{"$f":"MAX(K72:K74)","v":3}]
[null,null,null,null,null,null,null,null,25,"家族の主訴・要望",3,{"$f":"IF(O75=0,IF(Config!$X$7,(K75-S75)/(T75-S75),K75),\"-\")","v":3},4.18038640243368E-2,"253",0,6.5073501343968748E-2,false,0,{"$f":"MIN(K75:K78)","v":1},{"$f":"MAX(K75:K78)","v":3}]
[null,null,null,null,null,null,null,null,25,"家族の主訴・要望",2,{"$f":"IF(O76=0,IF(Config!$X$7,(K76-S76)/(T76-S76),K76),\"-\")","v":2},4.18038640243368E-2,"252",0,2.3269637319631956E-2,false,0,{"$f":"MIN(K75:K78)","v":1},{"$f":"MAX(K75:K78)","v":3}]
[null,null,null,null,null,null,null,null,25,"家族の主訴・要望",1,{"$f":"IF(O77=0,IF(Config!$X$7,(K77-S77)/(T77-S77),K77),\"-\")","v":1},4.18038640243368E-2,"251",0,-1.8534226704704844E-2,true,8.3607728048673585E-2,{"$f":"MIN(K75:K78)","v":1},{"$f":"MAX(K75:K78)","v":3}]
[null,null,null,null,null,null,null,null,25,"家族の主訴・要望","他",0,4.18038640243368E-2,"25他",0,-6.0338090729041644E-2,false,0,{"$f":"MIN(K75:K78)","v":1},{"$f":"MAX(K75:K78)","v":3}]
[null,null,null,null,null,null,null,null,26,"経済状況",3,{"$f":"IF(O79=0,IF(Config!$X$7,(K79-S79)/(T79-S79),K79),\"-\")","v":3},0,"263",0,-6.0338090729041644E-2,false,0,{"$f":"MIN(K79:K81)","v":1},{"$f":"MAX(K79:K81)","v":3}]
[null,null,null,null,null,null,null,null,26,"経済状況",2,{"$f":"IF(O80=0,IF(Config!$X$7,(K80-S80)/(T80-S80),K80),\"-\")","v":2},0,"262",0,-6.0338090729041644E-2,false,0,{"$f":"MIN(K79:K81)","v":1},{"$f":"MAX(K79:K81)","v":3}]
[null,null,null,null,null,null,null,null,26,"経済状況",1,{"$f":"IF(O81=0,IF(Config!$X$7,(K81-S81)/(T81-S81),K81),\"-\")","v":1},0,"261",0,-6.0338090729041644E-2,true,0,{"$f":"MIN(K79:K81)","v":1},{"$f":"MAX(K79:K81)","v":3}]
[null,null,null,null,null,null,null,null,27,"本人の役割",3,{"$f":"IF(O82=0,IF(Config!$X$7,(K82-S82)/(T82-S82),K82),\"-\")","v":3},4.8485561120495298E-2,"273",0,8.5118592632444257E-2,false,0,{"$f":"MIN(K82:K84)","v":1},{"$f":"MAX(K82:K84)","v":3}]
[null,null,null,null,null,null,null,null,27,"本人の役割",2,{"$f":"IF(O83=0,IF(Config!$X$7,(K83-S83)/(T83-S83),K83),\"-\")","v":2},4.8485561120495298E-2,"272",0,3.6633031511948952E-2,false,0,{"$f":"MIN(K82:K84)","v":1},{"$f":"MAX(K82:K84)","v":3}]
[null,null,null,null,null,null,null,null,27,"本人の役割",1,{"$f":"IF(O84=0,IF(Config!$X$7,(K84-S84)/(T84-S84),K84),\"-\")","v":1},4.8485561120495298E-2,"271",0,-1.1852529608546346E-2,true,9.6971122240990609E-2,{"$f":"MIN(K82:K84)","v":1},{"$f":"MAX(K82:K84)","v":3}]
[null,null,null,null,null,null,null,null,28,"課題の確認",2,{"$f":"IF(O85=0,IF(Config!$X$7,(K85-S85)/(T85-S85),K85),\"-\")","v":2},0.16828413749920099,"282",0,0.2762301842693603,false,0,{"$f":"MIN(K85:K86)","v":1},{"$f":"MAX(K85:K86)","v":2}]
[null,null,null,null,null,null,null,null,28,"課題の確認",1,{"$f":"IF(O86=0,IF(Config!$X$7,(K86-S86)/(T86-S86),K86),\"-\")","v":1},0.16828413749920099,"281",0,0.10794604677015934,true,0.16828413749920096,{"$f":"MIN(K85:K86)","v":1},{"$f":"MAX(K85:K86)","v":2}]
[null,null,null,null,null,null,null,null,29,"課題の分析結果の文章化",3,{"$f":"IF(O87=0,IF(Config!$X$7,(K87-S87)/(T87-S87),K87),\"-\")","v":3},5.3842464846507801E-2,"293",0,0.10118930381048177,false,0,{"$f":"MIN(K87:K89)","v":1},{"$f":"MAX(K87:K89)","v":3}]
[null,null,null,null,null,null,null,null,29,"課題の分析結果の文章化",2,{"$f":"IF(O88=0,IF(Config!$X$7,(K88-S88)/(T88-S88),K88),\"-\")","v":2},5.3842464846507801E-2,"292",0,4.7346838963973958E-2,false,0,{"$f":"MIN(K87:K89)","v":1},{"$f":"MAX(K87:K89)","v":3}]
[null,null,null,null,null,null,null,null,29,"課題の分析結果の文章化",1,{"$f":"IF(O89=0,IF(Config!$X$7,(K89-S89)/(T89-S89),K89),\"-\")","v":1},5.3842464846507801E-2,{"$f":"I89&K89","v":"291"},0,-6.4956258825338425E-3,true,0.10768492969301562,{"$f":"MIN(K87:K89)","v":1},{"$f":"MAX(K87:K89)","v":3}]
[null,null,null,null,null,null,null,null,30,"家族の状況",3,{"$f":"IF(O90=0,IF(Config!$X$7,(K90-S90)/(T90-S90),K90),\"-\")","v":3},0.11015379124767601,"303",0,{"$f":"IF(O90=1,M90,L90*M90)+$W$16","v":0.27012328301398636},{"$f":"OR(K90=\"無\",K90=1)","v":false},0,{"$f":"MIN(K90:K92)","v":1},{"$f":"MAX(K90:K92)","v":3}]
[null,null,null,null,null,null,null,null,30,"家族の状況",2,{"$f":"IF(O91=0,IF(Config!$X$7,(K91-S91)/(T91-S91),K91),\"-\")","v":2},0.11015379124767601,"302",0,0.15996949176631037,false,0,{"$f":"MIN(K90:K92)","v":1},{"$f":"MAX(K90:K92)","v":3}]
[null,null,null,null,null,null,null,null,30,"家族の状況",1,{"$f":"IF(O92=0,IF(Config!$X$7,(K92-S92)/(T92-S92),K92),\"-\")","v":1},0.11015379124767601,"301",0,4.9815700518634362E-2,true,0.22030758249535198,{"$f":"MIN(K90:K92)","v":1},{"$f":"MAX(K90:K92)","v":3}]
[null,null,null,null,null,null,null,null,31,"家族関係や周辺の社会資源との状況",3,{"$f":"IF(O93=0,IF(Config!$X$7,(K93-S93)/(T93-S93),K93),\"-\")","v":3},8.8618107515894801E-2,"313",0,0.20551623181864273,false,0,{"$f":"MIN(K93:K95)","v":1},{"$f":"MAX(K93:K95)","v":3}]
[null,null,null,null,null,null,null,null,31,"家族関係や周辺の社会資源との状況",2,{"$f":"IF(O94=0,IF(Config!$X$7,(K94-S94)/(T94-S94),K94),\"-\")","v":2},8.8618107515894801E-2,"312",0,0.11689812430274796,false,0,{"$f":"MIN(K93:K95)","v":1},{"$f":"MAX(K93:K95)","v":3}]
[null,null,null,null,null,null,null,null,31,"家族関係や周辺の社会資源との状況",1,{"$f":"IF(O95=0,IF(Config!$X$7,(K95-S95)/(T95-S95),K95),\"-\")","v":1},8.8618107515894801E-2,"311",0,2.8280016786853157E-2,true,0.17723621503178957,{"$f":"MIN(K93:K95)","v":1},{"$f":"MAX(K93:K95)","v":3}]
[null,null,null,null,null,null,null,null,32,"留意すべき事項",2,{"$f":"IF(O96=0,IF(Config!$X$7,(K96-S96)/(T96-S96),K96),\"-\")","v":2},8.5673790146340897E-2,"322",0,0.11100948956364015,false,0,{"$f":"MIN(K96:K98)","v":1},{"$f":"MAX(K96:K98)","v":2}]
[null,null,null,null,null,null,null,null,32,"留意すべき事項",1,{"$f":"IF(O97=0,IF(Config!$X$7,(K97-S97)/(T97-S97),K97),\"-\")","v":1},8.5673790146340897E-2,"321",0,2.5335699417299254E-2,true,{"$f":"IF(Q97,VLOOKUP(I97,C:G,5,)-P97,0)","v":8.5673790146340897E-2},{"$f":"MIN(K96:K98)","v":1},{"$f":"MAX(K96:K98)","v":2}]
[null,null,null,null,null,null,null,null,32,"留意すべき事項","他",0,8.5673790146340897E-2,"32他",0,-6.0338090729041644E-2,false,0,{"$f":"MIN(K96:K98)","v":1},{"$f":"MAX(K96:K98)","v":2}]
[null,null,null,null,null,null,null,null,33,"利用者及び家族の生活に対する意向を踏まえた課題分析の結果",3,{"$f":"IF(O99=0,IF(Config!$X$7,(K99-S99)/(T99-S99),K99),\"-\")","v":3},0.197594698414326,"333",0,0.53244600451393642,false,{"$f":"IF(Q99,VLOOKUP(I99,C:G,5,)-P99,0)","v":0},{"$f":"MIN(K99:K101)","v":1},{"$f":"MAX(K99:K101)","v":3}]
[null,null,null,null,null,null,null,null,33,"利用者及び家族の生活に対する意向を踏まえた課題分析の結果",2,{"$f":"IF(O100=0,IF(Config!$X$7,(K100-S100)/(T100-S100),K100),\"-\")","v":2},0.197594698414326,"332",0,0.33485130609961034,false,0,{"$f":"MIN(K99:K101)","v":1},{"$f":"MAX(K99:K101)","v":3}]
[null,null,null,null,null,null,null,null,33,"利用者及び家族の生活に対する意向を踏まえた課題分析の結果",1,{"$f":"IF(O101=0,IF(Config!$X$7,(K101-S101)/(T101-S101),K101),\"-\")","v":1},0.197594698414326,"331",0,0.13725660768528436,true,0.39518939682865206,{"$f":"MIN(K99:K101)","v":1},{"$f":"MAX(K99:K101)","v":3}]
[null,null,null,null,null,null,null,null,34,"総合的な援助の方針における自立の具体性",3,{"$f":"IF(O102=0,IF(Config!$X$7,(K102-S102)/(T102-S102),K102),\"-\")","v":3},5.9487215297449998E-2,"343",0,0.11812355516330836,false,0,{"$f":"MIN(K102:K104)","v":1},{"$f":"MAX(K102:K104)","v":3}]
[null,null,null,null,null,null,null,null,34,"総合的な援助の方針における自立の具体性",2,{"$f":"IF(O103=0,IF(Config!$X$7,(K103-S103)/(T103-S103),K103),\"-\")","v":2},5.9487215297449998E-2,"342",0,5.8636339865858353E-2,false,0,{"$f":"MIN(K102:K104)","v":1},{"$f":"MAX(K102:K104)","v":3}]
[null,null,null,null,null,null,null,null,34,"総合的な援助の方針における自立の具体性",1,{"$f":"IF(O104=0,IF(Config!$X$7,(K104-S104)/(T104-S104),K104),\"-\")","v":1},5.9487215297449998E-2,"341",0,-8.508754315916453E-4,true,0.11897443059490001,{"$f":"MIN(K102:K104)","v":1},{"$f":"MAX(K102:K104)","v":3}]
[null,null,null,null,null,null,null,null,35,"アセスメントで抽出した課題に基づくニーズの記載",3,{"$f":"IF(O105=0,IF(Config!$X$7,(K105-S105)/(T105-S105),K105),\"-\")","v":3},0.134923658508324,"353",0,0.34443288479593037,false,0,{"$f":"MIN(K105:K107)","v":1},{"$f":"MAX(K105:K107)","v":3}]
[null,null,null,null,null,null,null,null,35,"アセスメントで抽出した課題に基づくニーズの記載",2,{"$f":"IF(O106=0,IF(Config!$X$7,(K106-S106)/(T106-S106),K106),\"-\")","v":2},0.134923658508324,"352",{"$f":"VLOOKUP(I106,C:F,4,FALSE)","v":0},0.20950922628760635,false,0,{"$f":"MIN(K105:K107)","v":1},{"$f":"MAX(K105:K107)","v":3}]
[null,null,null,null,null,null,null,null,35,"アセスメントで抽出した課題に基づくニーズの記載",1,{"$f":"IF(O107=0,IF(Config!$X$7,(K107-S107)/(T107-S107),K107),\"-\")","v":1},0.134923658508324,"351",0,7.4585567779282352E-2,true,0.26984731701664799,{"$f":"MIN(K105:K107)","v":1},{"$f":"MAX(K105:K107)","v":3}]
[null,null,null,null,null,null,null,null,36,"利用者や多職種に理解できる表記",3,{"$f":"IF(O108=0,IF(Config!$X$7,(K108-S108)/(T108-S108),K108),\"-\")","v":3},0,"363",0,-6.0338090729041644E-2,false,0,{"$f":"MIN(K108:K110)","v":1},{"$f":"MAX(K108:K110)","v":3}]
[null,null,null,null,null,null,null,null,36,"利用者や多職種に理解できる表記",2,{"$f":"IF(O109=0,IF(Config!$X$7,(K109-S109)/(T109-S109),K109),\"-\")","v":2},0,"362",0,-6.0338090729041644E-2,false,0,{"$f":"MIN(K108:K110)","v":1},{"$f":"MAX(K108:K110)","v":3}]
[null,null,null,null,null,null,null,null,36,"利用者や多職種に理解できる表記",1,{"$f":"IF(O110=0,IF(Config!$X$7,(K110-S110)/(T110-S110),K110),\"-\")","v":1},0,"361",0,-6.0338090729041644E-2,true,0,{"$f":"MIN(K108:K110)","v":1},{"$f":"MAX(K108:K110)","v":3}]
[null,null,null,null,null,null,null,null,37,"長期目標",3,{"$f":"IF(O111=0,IF(Config!$X$7,(K111-S111)/(T111-S111),K111),\"-\")","v":3},0,"373",0,-6.0338090729041644E-2,false,0,{"$f":"MIN(K111:K113)","v":1},{"$f":"MAX(K111:K113)","v":3}]
[null,null,null,null,null,null,null,null,37,"長期目標",2,{"$f":"IF(O112=0,IF(Config!$X$7,(K112-S112)/(T112-S112),K112),\"-\")","v":2},0,"372",0,-6.0338090729041644E-2,false,0,{"$f":"MIN(K111:K113)","v":1},{"$f":"MAX(K111:K113)","v":3}]
[null,null,null,null,null,null,null,null,37,"長期目標",1,{"$f":"IF(O113=0,IF(Config!$X$7,(K113-S113)/(T113-S113),K113),\"-\")","v":1},0,"371",0,-6.0338090729041644E-2,true,0,{"$f":"MIN(K111:K113)","v":1},{"$f":"MAX(K111:K113)","v":3}]
[null,null,null,null,null,null,null,null,38,"短期目標",3,{"$f":"IF(O114=0,IF(Config!$X$7,(K114-S114)/(T114-S114),K114),\"-\")","v":3},0,"383",0,-6.0338090729041644E-2,false,0,{"$f":"MIN(K114:K116)","v":1},{"$f":"MAX(K114:K116)","v":3}]
[null,null,null,null,null,null,null,null,38,"短期目標",2,{"$f":"IF(O115=0,IF(Config!$X$7,(K115-S115)/(T115-S115),K115),\"-\")","v":2},0,"382",0,-6.0338090729041644E-2,false,0,{"$f":"MIN(K114:K116)","v":1},{"$f":"MAX(K114:K116)","v":3}]
[null,null,null,null,null,null,null,null,38,"短期目標",1,{"$f":"IF(O116=0,IF(Config!$X$7,(K116-S116)/(T116-S116),K116),\"-\")","v":1},0,"381",0,-6.0338090729041644E-2,true,0,{"$f":"MIN(K114:K116)","v":1},{"$f":"MAX(K114:K116)","v":3}]
[null,null,null,null,null,null,null,null,39,"本人の役割設定",2,{"$f":"IF(O117=0,IF(Config!$X$7,(K117-S117)/(T117-S117),K117),\"-\")","v":2},0.23125136962779,"392",0,0.40216464852653833,false,0,{"$f":"MIN(K117:K118)","v":1},{"$f":"MAX(K117:K118)","v":2}]
[null,null,null,null,null,null,null,null,39,"本人の役割設定",1,{"$f":"IF(O118=0,IF(Config!$X$7,(K118-S118)/(T118-S118),K118),\"-\")","v":1},0.23125136962779,"391",0,0.17091327889874836,true,0.23125136962778997,{"$f":"MIN(K117:K118)","v":1},{"$f":"MAX(K117:K118)","v":2}]
[null,null,null,null,null,null,null,null,40,"介護保険サービス",2,{"$f":"IF(O119=0,IF(Config!$X$7,(K119-S119)/(T119-S119),K119),\"-\")","v":2},0.16829504609702101,"402",0,0.2762520014650004,false,0,{"$f":"MIN(K119:K121)","v":1},{"$f":"MAX(K119:K121)","v":2}]
[null,null,null,null,null,null,null,null,40,"介護保険サービス",1,{"$f":"IF(O120=0,IF(Config!$X$7,(K120-S120)/(T120-S120),K120),\"-\")","v":1},0.16829504609702101,"401",0,0.10795695536797936,true,0.16829504609702103,{"$f":"MIN(K119:K121)","v":1},{"$f":"MAX(K119:K121)","v":2}]
[null,null,null,null,null,null,null,null,40,"介護保険サービス","他",0,0.16829504609702101,"40他",0,-6.0338090729041644E-2,false,0,{"$f":"MIN(K119:K121)","v":1},{"$f":"MAX(K119:K121)","v":2}]
[null,null,null,null,null,null,null,null,41,"福祉用具貸与・販売の種類と利用の理由",2,{"$f":"IF(O122=0,IF(Config!$X$7,(K122-S122)/(T122-S122),K122),\"-\")","v":2},0.117832819516048,"412",0,0.17532754830305436,false,0,{"$f":"MIN(K122:K124)","v":1},{"$f":"MAX(K122:K124)","v":2}]
[null,null,null,null,null,null,null,null,41,"福祉用具貸与・販売の種類と利用の理由",1,{"$f":"IF(O123=0,IF(Config!$X$7,(K123-S123)/(T123-S123),K123),\"-\")","v":1},0.117832819516048,"411",0,5.7494728787006358E-2,true,0.117832819516048,1,{"$f":"MAX(K122:K124)","v":2}]
[null,null,null,null,null,null,null,null,41,"福祉用具貸与・販売の種類と利用の理由","他",0,0.117832819516048,"41他",0,{"$f":"IF(O124=1,M124,L124*M124)+$W$16","v":-6.0338090729041644E-2},false,0,{"$f":"MIN(K122:K124)","v":1},{"$f":"MAX(K122:K124)","v":2}]
[null,null,null,null,null,null,null,null,42,"介護保険外サービス",2,{"$f":"IF(O125=0,IF(Config!$X$7,(K125-S125)/(T125-S125),K125),\"-\")","v":2},6.4579372569536202E-3,"422",0,-4.74222162151344E-2,false,0,{"$f":"MIN(K125:K127)","v":1},{"$f":"MAX(K125:K127)","v":2}]
[null,null,null,null,null,null,null,null,42,"介護保険外サービス",1,{"$f":"IF(O126=0,IF(Config!$X$7,(K126-S126)/(T126-S126),K126),\"-\")","v":1},6.4579372569536202E-3,"421",0,-5.3880153472088022E-2,true,6.457937256953622E-3,{"$f":"MIN(K125:K127)","v":1},{"$f":"MAX(K125:K127)","v":2}]
[null,null,null,null,null,null,null,null,42,"介護保険外サービス","他",0,6.4579372569536202E-3,"42他",0,-6.0338090729041644E-2,false,0,{"$f":"MIN(K125:K127)","v":1},{"$f":"MAX(K125:K127)","v":2}]
[null,null,null,null,null,null,null,null,43,"利用者の意思を反映したサービス事業所の利用",3,{"$f":"IF(O128=0,IF(Config!$X$7,(K128-S128)/(T128-S128),K128),\"-\")","v":3},0,{"$f":"I128&K128","v":"433"},0,-6.0338090729041644E-2,false,0,{"$f":"MIN(K128:K130)","v":1},{"$f":"MAX(K128:K130)","v":3}]
[null,null,null,null,null,null,null,null,43,"利用者の意思を反映したサービス事業所の利用",2,{"$f":"IF(O129=0,IF(Config!$X$7,(K129-S129)/(T129-S129),K129),\"-\")","v":2},0,"432",0,-6.0338090729041644E-2,false,0,{"$f":"MIN(K128:K130)","v":1},{"$f":"MAX(K128:K130)","v":3}]
[null,null,null,null,null,null,null,null,43,"利用者の意思を反映したサービス事業所の利用",1,{"$f":"IF(O130=0,IF(Config!$X$7,(K130-S130)/(T130-S130),K130),\"-\")","v":1},0,"431",0,-6.0338090729041644E-2,true,0,{"$f":"MIN(K128:K130)","v":1},{"$f":"MAX(K128:K130)","v":3}]
[null,null,null,null,null,null,null,null,44,"週間計画の整合性（介護保険サービス）",2,{"$f":"IF(O131=0,IF(Config!$X$7,(K131-S131)/(T131-S131),K131),\"-\")","v":2},0,"442",0,-6.0338090729041644E-2,false,{"$f":"IF(Q131,VLOOKUP(I131,C:G,5,)-P131,0)","v":0},{"$f":"MIN(K131:K132)","v":1},{"$f":"MAX(K131:K132)","v":2}]
[null,null,null,null,null,null,null,null,44,"週間計画の整合性（介護保険サービス）",1,{"$f":"IF(O132=0,IF(Config!$X$7,(K132-S132)/(T132-S132),K132),\"-\")","v":1},0,"441",0,-6.0338090729041644E-2,true,0,{"$f":"MIN(K131:K132)","v":1},{"$f":"MAX(K131:K132)","v":2}]
[null,null,null,null,null,null,null,null,45,"週間計画の整合性（インフォーマルサポート）",2,{"$f":"IF(O133=0,IF(Config!$X$7,(K133-S133)/(T133-S133),K133),\"-\")","v":2},1.9451631717193701E-2,"452",0,-2.1434827294654242E-2,false,0,{"$f":"MIN(K133:K134)","v":1},{"$f":"MAX(K133:K134)","v":2}]
[null,null,null,null,null,null,null,null,45,"週間計画の整合性（インフォーマルサポート）",1,{"$f":"IF(O134=0,IF(Config!$X$7,(K134-S134)/(T134-S134),K134),\"-\")","v":1},1.9451631717193701E-2,"451",0,-4.0886459011847939E-2,true,1.9451631717193697E-2,{"$f":"MIN(K133:K134)","v":1},{"$f":"MAX(K133:K134)","v":2}]
[null,null,null,null,null,null,null,null,46,"週間計画の整合性（一日の習慣化された活動）",2,{"$f":"IF(O135=0,IF(Config!$X$7,(K135-S135)/(T135-S135),K135),\"-\")","v":2},0.189269815517775,"462",0,0.31820154030650838,false,0,{"$f":"MIN(K135:K136)","v":1},{"$f":"MAX(K135:K136)","v":2}]
[null,null,null,null,null,null,null,null,46,"週間計画の整合性（一日の習慣化された活動）",1,{"$f":"IF(O136=0,IF(Config!$X$7,(K136-S136)/(T136-S136),K136),\"-\")","v":1},0.189269815517775,"461",0,0.12893172478873335,true,0.18926981551777503,{"$f":"MIN(K135:K136)","v":1},{"$f":"MAX(K135:K136)","v":2}]
[null,null,null,null,null,null,null,null,47,"家族の役割設定の整合性",2,{"$f":"IF(O137=0,IF(Config!$X$7,(K137-S137)/(T137-S137),K137),\"-\")","v":2},8.8042901796129294E-2,"472",0,0.11574771286321694,false,0,{"$f":"MIN(K137:K139)","v":1},{"$f":"MAX(K137:K139)","v":2}]
[null,null,null,null,null,null,null,null,47,"家族の役割設定の整合性",1,{"$f":"IF(O138=0,IF(Config!$X$7,(K138-S138)/(T138-S138),K138),\"-\")","v":1},8.8042901796129294E-2,{"$f":"I138&K138","v":"471"},{"$f":"VLOOKUP(I138,C:F,4,FALSE)","v":0},2.7704811067087651E-2,{"$f":"OR(K138=\"無\",K138=1)","v":true},8.8042901796129294E-2,{"$f":"MIN(K137:K139)","v":1},{"$f":"MAX(K137:K139)","v":2}]
[null,null,null,null,null,null,null,null,47,"家族の役割設定の整合性","他",0,8.8042901796129294E-2,"47他",0,-6.0338090729041644E-2,false,0,{"$f":"MIN(K137:K139)","v":1},{"$f":"MAX(K137:K139)","v":2}]
[null,null,null,null,null,null,null,null,48,"サービス担当者会議の開催",2,{"$f":"IF(O140=0,IF(Config!$X$7,(K140-S140)/(T140-S140),K140),\"-\")","v":2},0,"482",0,-6.0338090729041644E-2,false,0,{"$f":"MIN(K140:K141)","v":1},{"$f":"MAX(K140:K141)","v":2}]
[null,null,null,null,null,null,null,null,48,"サービス担当者会議の開催",1,{"$f":"IF(O141=0,IF(Config!$X$7,(K141-S141)/(T141-S141),K141),\"-\")","v":1},0,"481",0,-6.0338090729041644E-2,true,0,{"$f":"MIN(K140:K141)","v":1},{"$f":"MAX(K140:K141)","v":2}]
[null,null,null,null,null,null,null,null,49,"サービス担当者会議への本人の出席",2,{"$f":"IF(O142=0,IF(Config!$X$7,(K142-S142)/(T142-S142),K142),\"-\")","v":2},0.101866364760059,"492",0,0.14339463879107636,false,0,{"$f":"MIN(K142:K143)","v":1},{"$f":"MAX(K142:K143)","v":2}]
[null,null,null,null,null,null,null,null,49,"サービス担当者会議への本人の出席",1,{"$f":"IF(O143=0,IF(Config!$X$7,(K143-S143)/(T143-S143),K143),\"-\")","v":1},0.101866364760059,"491",0,4.1528274031017359E-2,true,0.101866364760059,{"$f":"MIN(K142:K143)","v":1},{"$f":"MAX(K142:K143)","v":2}]
[null,null,null,null,null,null,null,null,50,"サービス担当者会議への家族の出席",2,{"$f":"IF(O144=0,IF(Config!$X$7,(K144-S144)/(T144-S144),K144),\"-\")","v":2},0,"502",0,-6.0338090729041644E-2,false,0,{"$f":"MIN(K144:K146)","v":1},{"$f":"MAX(K144:K146)","v":2}]
[null,null,null,null,null,null,null,null,50,"サービス担当者会議への家族の出席",1,{"$f":"IF(O145=0,IF(Config!$X$7,(K145-S145)/(T145-S145),K145),\"-\")","v":1},0,"501",0,-6.0338090729041644E-2,true,0,{"$f":"MIN(K144:K146)","v":1},{"$f":"MAX(K144:K146)","v":2}]
[null,null,null,null,null,null,null,null,50,"サービス担当者会議への家族の出席","他",0,0,"50他",0,-6.0338090729041644E-2,false,0,{"$f":"MIN(K144:K146)","v":1},{"$f":"MAX(K144:K146)","v":2}]
[null,null,null,null,null,null,null,null,51,"サービス担当者会議へのサービス担当者の出席",2,{"$f":"IF(O147=0,IF(Config!$X$7,(K147-S147)/(T147-S147),K147),\"-\")","v":2},3.3463719871222902E-2,"512",0,6.589349013404161E-3,false,0,{"$f":"MIN(K147:K148)","v":1},{"$f":"MAX(K147:K148)","v":2}]
[null,null,null,null,null,null,null,null,51,"サービス担当者会議へのサービス担当者の出席",1,{"$f":"IF(O148=0,IF(Config!$X$7,(K148-S148)/(T148-S148),K148),\"-\")","v":1},3.3463719871222902E-2,"511",0,-2.6874370857818741E-2,true,3.3463719871222902E-2,{"$f":"MIN(K147:K148)","v":1},{"$f":"MAX(K147:K148)","v":2}]
[null,null,null,null,null,null,null,null,52,"サービス担当者会議の議題（検討項目）",3,{"$f":"IF(O149=0,IF(Config!$X$7,(K149-S149)/(T149-S149),K149),\"-\")","v":3},0,"523",0,-6.0338090729041644E-2,false,0,{"$f":"MIN(K149:K151)","v":1},{"$f":"MAX(K149:K151)","v":3}]
[null,null,null,null,null,null,null,null,52,"サービス担当者会議の議題（検討項目）",2,{"$f":"IF(O150=0,IF(Config!$X$7,(K150-S150)/(T150-S150),K150),\"-\")","v":2},0,"522",0,-6.0338090729041644E-2,false,0,{"$f":"MIN(K149:K151)","v":1},{"$f":"MAX(K149:K151)","v":3}]
[null,null,null,null,null,null,null,null,52,"サービス担当者会議の議題（検討項目）",1,{"$f":"IF(O151=0,IF(Config!$X$7,(K151-S151)/(T151-S151),K151),\"-\")","v":1},0,"521",0,-6.0338090729041644E-2,true,0,{"$f":"MIN(K149:K151)","v":1},{"$f":"MAX(K149:K151)","v":3}]
[null,null,null,null,null,null,null,null,53,"サービス担当者会議の検討内容",3,{"$f":"IF(O152=0,IF(Config!$X$7,(K152-S152)/(T152-S152),K152),\"-\")","v":3},0.13387916925943499,"533",0,0.34129941704926336,false,0,{"$f":"MIN(K152:K154)","v":1},{"$f":"MAX(K152:K154)","v":3}]
[null,null,null,null,null,null,null,null,53,"サービス担当者会議の検討内容",2,{"$f":"IF(O153=0,IF(Config!$X$7,(K153-S153)/(T153-S153),K153),\"-\")","v":2},0.13387916925943499,"532",0,0.20742024778982834,false,0,{"$f":"MIN(K152:K154)","v":1},{"$f":"MAX(K152:K154)","v":3}]
[null,null,null,null,null,null,null,null,53,"サービス担当者会議の検討内容",1,{"$f":"IF(O154=0,IF(Config!$X$7,(K154-S154)/(T154-S154),K154),\"-\")","v":1},0.13387916925943499,"531",0,7.354107853039335E-2,true,0.26775833851886999,{"$f":"MIN(K152:K154)","v":1},{"$f":"MAX(K152:K154)","v":3}]
[null,null,null,null,null,null,null,null,54,"サービス担当者会議で残された課題",2,{"$f":"IF(O155=0,IF(Config!$X$7,(K155-S155)/(T155-S155),K155),\"-\")","v":2},0,"542",0,-6.0338090729041644E-2,false,0,{"$f":"MIN(K155:K156)","v":1},{"$f":"MAX(K155:K156)","v":2}]
[null,null,null,null,null,null,null,null,54,"サービス担当者会議で残された課題",1,{"$f":"IF(O156=0,IF(Config!$X$7,(K156-S156)/(T156-S156),K156),\"-\")","v":1},0,"541",0,-6.0338090729041644E-2,true,0,{"$f":"MIN(K155:K156)","v":1},{"$f":"MAX(K155:K156)","v":2}]
[null,null,null,null,null,null,null,null,55,"居宅サービス計画の交付の記録",3,{"$f":"IF(O157=0,IF(Config!$X$7,(K157-S157)/(T157-S157),K157),\"-\")","v":3},0,"553",0,-6.0338090729041644E-2,false,0,{"$f":"MIN(K157:K159)","v":1},{"$f":"MAX(K157:K159)","v":3}]
[null,null,null,null,null,null,null,null,55,"居宅サービス計画の交付の記録",2,{"$f":"IF(O158=0,IF(Config!$X$7,(K158-S158)/(T158-S158),K158),\"-\")","v":2},0,"552",0,-6.0338090729041644E-2,false,0,{"$f":"MIN(K157:K159)","v":1},{"$f":"MAX(K157:K159)","v":3}]
[null,null,null,null,null,null,null,null,55,"居宅サービス計画の交付の記録",1,{"$f":"IF(O159=0,IF(Config!$X$7,(K159-S159)/(T159-S159),K159),\"-\")","v":1},0,"551",0,-6.0338090729041644E-2,true,0,{"$f":"MIN(K157:K159)","v":1},{"$f":"MAX(K157:K159)","v":3}]
[null,null,null,null,null,null,null,null,56,"サービス担当者会議の招集",2,{"$f":"IF(O160=0,IF(Config!$X$7,(K160-S160)/(T160-S160),K160),\"-\")","v":2},0,"562",0,-6.0338090729041644E-2,false,0,{"$f":"MIN(K160:K162)","v":1},{"$f":"MAX(K160:K162)","v":2}]
[null,null,null,null,null,null,null,null,56,"サービス担当者会議の招集",1,{"$f":"IF(O161=0,IF(Config!$X$7,(K161-S161)/(T161-S161),K161),\"-\")","v":1},0,"561",0,{"$f":"IF(O161=1,M161,L161*M161)+$W$16","v":-6.0338090729041644E-2},true,0,{"$f":"MIN(K160:K162)","v":1},{"$f":"MAX(K160:K162)","v":2}]
[null,null,null,null,null,null,null,null,56,"サービス担当者会議の招集","他",0,0,"56他",0,-6.0338090729041644E-2,{"$f":"OR(K162=\"無\",K162=1)","v":false},0,{"$f":"MIN(K160:K162)","v":1},{"$f":"MAX(K160:K162)","v":2}]
[null,null,null,null,null,null,null,null,57,"利用者宅への月1回以上の訪問",2,{"$f":"IF(O163=0,IF(Config!$X$7,(K163-S163)/(T163-S163),K163),\"-\")","v":2},0.21299074599533199,"572",0,0.36564340126162231,false,{"$f":"IF(Q163,VLOOKUP(I163,C:G,5,)-P163,0)","v":0},{"$f":"MIN(K163:K165)","v":1},{"$f":"MAX(K163:K165)","v":2}]
[null,null,null,null,null,null,null,null,57,"利用者宅への月1回以上の訪問",1,{"$f":"IF(O164=0,IF(Config!$X$7,(K164-S164)/(T164-S164),K164),\"-\")","v":1},0.21299074599533199,{"$f":"I164&K164","v":"571"},0,0.15265265526629035,{"$f":"OR(K164=\"無\",K164=1)","v":true},0.21299074599533196,{"$f":"MIN(K163:K165)","v":1},{"$f":"MAX(K163:K165)","v":2}]
[null,null,null,null,null,null,null,null,57,"利用者宅への月1回以上の訪問","他",0,0.21299074599533199,"57他",0,-6.0338090729041644E-2,false,0,{"$f":"MIN(K163:K165)","v":1},{"$f":"MAX(K163:K165)","v":2}]
[null,null,null,null,null,null,null,null,58,"サービス事業所との連絡・モニタリング内容",3,{"$f":"IF(O166=0,IF(Config!$X$7,(K166-S166)/(T166-S166),K166),\"-\")","v":3},3.01367973224561E-2,{"$f":"I166&K166","v":"583"},0,3.007230123832666E-2,{"$f":"OR(K166=\"無\",K166=1)","v":false},0,{"$f":"MIN(K166:K168)","v":1},{"$f":"MAX(K166:K168)","v":3}]
[null,null,null,null,null,null,null,null,58,"サービス事業所との連絡・モニタリング内容",2,{"$f":"IF(O167=0,IF(Config!$X$7,(K167-S167)/(T167-S167),K167),\"-\")","v":2},3.01367973224561E-2,"582",0,-6.4496084129443687E-5,false,0,{"$f":"MIN(K166:K168)","v":1},{"$f":"MAX(K166:K168)","v":3}]
[null,null,null,null,null,null,null,null,58,"サービス事業所との連絡・モニタリング内容",1,{"$f":"IF(O168=0,IF(Config!$X$7,(K168-S168)/(T168-S168),K168),\"-\")","v":1},3.01367973224561E-2,"581",0,-3.0201293406585544E-2,true,6.0273594644912207E-2,{"$f":"MIN(K166:K168)","v":1},{"$f":"MAX(K166:K168)","v":3}]
[null,null,null,null,null,null,null,null,59,"変化を捉える視点",2,{"$f":"IF(O169=0,IF(Config!$X$7,(K169-S169)/(T169-S169),K169),\"-\")","v":2},1.75065600554614E-2,"592",0,-2.5324970618118843E-2,false,0,{"$f":"MIN(K169:K170)","v":1},{"$f":"MAX(K169:K170)","v":2}]
[null,null,null,null,null,null,null,null,59,"変化を捉える視点",1,{"$f":"IF(O170=0,IF(Config!$X$7,(K170-S170)/(T170-S170),K170),\"-\")","v":1},1.75065600554614E-2,"591",{"$f":"VLOOKUP(I170,C:F,4,FALSE)","v":0},-4.283153067358024E-2,true,1.7506560055461397E-2,{"$f":"MIN(K169:K170)","v":1},{"$f":"MAX(K169:K170)","v":2}]
[null,null,null,null,null,null,null,null,60,"本人の心身状態に関する変化の医療者への報告",2,{"$f":"IF(O171=0,IF(Config!$X$7,(K171-S171)/(T171-S171),K171),\"-\")","v":2},5.2080681135177803E-2,"602",0,4.3823271541313963E-2,false,0,{"$f":"MIN(K171:K173)","v":1},{"$f":"MAX(K171:K173)","v":2}]
[null,null,null,null,null,null,null,null,60,"本人の心身状態に関する変化の医療者への報告",1,{"$f":"IF(O172=0,IF(Config!$X$7,(K172-S172)/(T172-S172),K172),\"-\")","v":1},5.2080681135177803E-2,"601",0,-8.2574095938638403E-3,true,5.2080681135177803E-2,{"$f":"MIN(K171:K173)","v":1},{"$f":"MAX(K171:K173)","v":2}]
[null,null,null,null,null,null,null,null,60,"本人の心身状態に関する変化の医療者への報告","他",0,5.2080681135177803E-2,"60他",0,-6.0338090729041644E-2,false,0,{"$f":"MIN(K171:K173)","v":1},{"$f":"MAX(K171:K173)","v":2}]
[null,null,null,null,null,null,null,null,61,"ケアプランに位置付けられている多職種との連携",3,{"$f":"IF(O174=0,IF(Config!$X$7,(K174-S174)/(T174-S174),K174),\"-\")","v":3},9.3348502414506804E-2,"613",0,0.21970741651447875,false,0,{"$f":"MIN(K174:K176)","v":1},{"$f":"MAX(K174:K176)","v":3}]
[null,null,null,null,null,null,null,null,61,"ケアプランに位置付けられている多職種との連携",2,{"$f":"IF(O175=0,IF(Config!$X$7,(K175-S175)/(T175-S175),K175),\"-\")","v":2},9.3348502414506804E-2,"612",0,0.12635891409997196,false,0,{"$f":"MIN(K174:K176)","v":1},{"$f":"MAX(K174:K176)","v":3}]
[null,null,null,null,null,null,null,null,61,"ケアプランに位置付けられている多職種との連携",1,{"$f":"IF(O176=0,IF(Config!$X$7,(K176-S176)/(T176-S176),K176),\"-\")","v":1},9.3348502414506804E-2,"611",0,3.301041168546516E-2,true,0.18669700482901358,{"$f":"MIN(K174:K176)","v":1},{"$f":"MAX(K174:K176)","v":3}]
[null,null,null,null,null,null,null,null,62,"ケアプランに位置付けられていない多職種との連携",2,{"$f":"IF(O177=0,IF(Config!$X$7,(K177-S177)/(T177-S177),K177),\"-\")","v":2},0,"622",0,-6.0338090729041644E-2,false,0,{"$f":"MIN(K177:K178)","v":1},{"$f":"MAX(K177:K178)","v":2}]
[null,null,null,null,null,null,null,null,62,"ケアプランに位置付けられていない多職種との連携",1,{"$f":"IF(O178=0,IF(Config!$X$7,(K178-S178)/(T178-S178),K178),\"-\")","v":1},0,"621",0,-6.0338090729041644E-2,true,0,{"$f":"MIN(K177:K178)","v":1},{"$f":"MAX(K177:K178)","v":2}]

{"sheet":"算出シート","index":11,"n_rows":108,"n_cols":79,"rows_kept":108,"cut":false,"hidden":true,"merged":[[105,31,106,31],[105,32,106,32],[105,33,106,33],[105,41,106,41],[105,25,106,25],[105,26,106,26],[105,27,106,27],[105,39,106,39],[105,34,106,34],[105,21,106,21],[105,18,106,18],[105,19,106,19],[105,20,106,20],[105,30,106,30],[105,22,106,22],[105,24,106,24],[105,23,106,23],[105,28,106,28],[105,29,106,29],[105,3,106,3],[105,4,106,4],[105,5,106,5],[105,7,106,7],[105,8,106,8],[105,9,106,9],[105,10,106,10],[105,11,106,11],[105,12,106,12],[105,17,106,17],[105,15,106,15],[105,16,106,16],[105,13,106,13],[105,14,106,14],[105,57,106,57],[105,58,106,58],[105,59,106,59],[105,48,106,48],[105,51,106,51],[105,52,106,52],[105,53,106,53],[105,54,106,54],[105,55,106,55],[104,70,104,78],[105,2,106,2],[105,6,106,6],[105,66,106,66],[105,67,106,67],[105,68,106,68],[105,69,106,69],[105,61,106,61],[105,62,106,62],[105,63,106,63],[105,64,106,64],[105,65,106,65],[105,60,106,60],[105,49,106,49],[105,50,106,50],[105,56,106,56],[105,47,106,47],[105,44,106,44],[105,45,106,45],[105,35,106,35],[105,36,106,36],[105,37,106,37],[105,38,106,38],[105,40,106,40],[105,46,106,46],[105,42,106,42],[105,43,106,43]]}
[]
[null,"凡例"]
[null,null,"自動算出項目"]
[null,null,"手動設定項目"]
[]
[null,"算出ロック"]
[null,null,"算出ロック",false]
[null,null,null," "]
[null,"エラー判定(TRUE：エラー、FALSE：正常)"]
[null,null,"必須チェック",{"$f":"OR(E40:E101)","v":true}]
[null,null,"質問エラー判定結果",{"$f":"OR(F40:F101)","v":false}]
[null,null,"カテゴリ設定エラー判定",{"$f":"OR(H40:H101)","v":false}]
[null,null,"係数設定エラー判定",{"$f":"OR(J40:J101)","v":false}]
[null,null,"総合エラー判定",{"$f":"OR(D10:D13)","v":true}]
[]
[null,"運用判定基準(TRUE：エラー、FALSE：正常)"]
[null,null,"基準の入力値",{"$f":"点検結果記載シート!E54&点検結果記載シート!E55&点検結果記載シート!E60&点検結果記載シート!E63&点検結果記載シート!E64&点検結果記載シート!E65&点検結果記載シート!E67&点検結果記載シート!E68&点検結果記載シート!E69&点検結果記載シート!E70","v":""}]
[null,null,"全ての項目が入力されているか",{"$f":"LEN(D17)<>COUNTIF(点検結果記載シート!G:G,Config!J46)","v":true}]
[null,null,"無の項目が存在しないか",{"$f":"ISERROR(FIND(Config!J47,D17,1))=FALSE","v":false}]
[]
[null,"項目別算出結果"]
[null,null,"項目","生活の全体像の把握","疾病・心身状態の把握","主訴・意思の把握・尊重","課題の分析","課題を解決するためのサービス計画","家族の状況の把握と支援","多職種との連携","その他","総合判定","運用判定基準"]
[null,null,"項目毎の最大点数",{"$f":"SUMIF(算出パラメータ!$D:$D,算出シート!D22,算出パラメータ!$G:$G)","v":1.0809849585753801},{"$f":"SUMIF(算出パラメータ!$D:$D,算出シート!E22,算出パラメータ!$G:$G)","v":0.6969441485317216},{"$f":"SUMIF(算出パラメータ!$D:$D,算出シート!F22,算出パラメータ!$G:$G)","v":0.78405627790890098},{"$f":"SUMIF(算出パラメータ!$D:$D,算出シート!G22,算出パラメータ!$G:$G)","v":0.71008597988645383},{"$f":"SUMIF(算出パラメータ!$D:$D,算出シート!H22,算出パラメータ!$G:$G)","v":1.3846308628634265},{"$f":"SUMIF(算出パラメータ!$D:$D,算出シート!I22,算出パラメータ!$G:$G)","v":0.39060640649213041},{"$f":"SUMIF(算出パラメータ!$D:$D,算出シート!J22,算出パラメータ!$G:$G)","v":0.46047748316966197},{"$f":"SUM(算出パラメータ!G8:G69)-SUM(D23:J23)","v":-6.0338090729043614E-2},{"$f":"SUM(D23:J23)","v":5.507786117427675}]
[null,null,"配点割合",{"$f":"D23/$L$23","v":0.19626487585546207},0.12653798344246861,0.14235416212477803,0.12892402950063869,0.25139517645432763,7.0918949676745432E-2,8.3604822945579582E-2,-1.0955053344958787E-2,1]
[null,null,"得点",{"$f":"SUMIF($G$40:$G$101,D22,$I$40:$I$101)","v":0},0,0,0,0,0,0,{"$f":"SUM(I40:I101)-SUM(D25:J25)","v":0},{"$f":"SUM(D25:J25)","v":0}]
[null,null,"総合判定A＝評価5相当","-","-","-","-","-","-","-","-","-"]
[null,null,null,{"$f":"L28*$D$24","v":0.88319194134957935},{"$f":"L28*$E$24","v":0.56942092549110879},{"$f":"L28*$F$24","v":0.64059372956150118},{"$f":"L28*$G$24","v":0.58015813275287409},{"$f":"L28*$H$24","v":1.1312782940444743},{"$f":"L28*$I$24","v":0.31913527354535443},{"$f":"L28*$J$24","v":0.37622170325510812},{"$f":"$K$24*L27","v":-4.9297740052314541E-2},{"$f":"Config!L35","v":4.5}]
[null,null,"総合判定B＝評価4相当",{"$f":"L28*$D$24","v":0.88319194134957935},{"$f":"L28*$E$24","v":0.56942092549110879},{"$f":"L28*$F$24","v":0.64059372956150118},{"$f":"L28*$G$24","v":0.58015813275287409},{"$f":"L28*$H$24","v":1.1312782940444743},{"$f":"L28*$I$24","v":0.31913527354535443},{"$f":"L28*$J$24","v":0.37622170325510812},{"$f":"$K$24*L28","v":-4.9297740052314541E-2},{"$f":"Config!K36","v":4.5}]
[null,null,null,{"$f":"L30*$D$24","v":0.68692706549411719},{"$f":"L30*$E$24","v":0.44288294204864015},{"$f":"L30*$F$24","v":0.4982395674367231},{"$f":"L30*$G$24","v":0.45123410325223545},{"$f":"L30*$H$24","v":0.8798831175901467},{"$f":"L30*$I$24","v":0.24821632386860901},{"$f":"L30*$J$24","v":0.29261688030952854},-3.8342686707355751E-2,{"$f":"Config!L36","v":3.5}]
[null,null,"総合判定C＝評価3相当",{"$f":"L30*$D$24","v":0.68692706549411719},{"$f":"L30*$E$24","v":0.44288294204864015},{"$f":"L30*$F$24","v":0.4982395674367231},{"$f":"L30*$G$24","v":0.45123410325223545},{"$f":"L30*$H$24","v":0.8798831175901467},{"$f":"L30*$I$24","v":0.24821632386860901},{"$f":"L30*$J$24","v":0.29261688030952854},-3.8342686707355751E-2,{"$f":"Config!K37","v":3.5}]
[null,null,null,{"$f":"L32*$D$24","v":0.49066218963865516},{"$f":"L32*$E$24","v":0.31634495860617151},{"$f":"L32*$F$24","v":0.35588540531194507},{"$f":"L32*$G$24","v":0.3223100737515967},{"$f":"L32*$H$24","v":0.62848794113581907},{"$f":"L32*$I$24","v":0.17729737419186359},{"$f":"L32*$J$24","v":0.20901205736394896},-2.7387633362396968E-2,{"$f":"Config!L37","v":2.5}]
[null,null,"総合判定D＝評価2相当",{"$f":"L32*$D$24","v":0.49066218963865516},{"$f":"L32*$E$24","v":0.31634495860617151},{"$f":"L32*$F$24","v":0.35588540531194507},{"$f":"L32*$G$24","v":0.3223100737515967},{"$f":"L32*$H$24","v":0.62848794113581907},{"$f":"L32*$I$24","v":0.17729737419186359},{"$f":"L32*$J$24","v":0.20901205736394896},-2.7387633362396968E-2,{"$f":"Config!K38","v":2.5}]
[null,null,null,{"$f":"L34*$D$24","v":0.29439731378319312},{"$f":"L34*$E$24","v":0.18980697516370293},{"$f":"L34*$F$24","v":0.21353124318716704},{"$f":"L34*$G$24","v":0.19338604425095804},{"$f":"L34*$H$24","v":0.37709276468149144},{"$f":"L34*$I$24","v":0.10637842451511814},{"$f":"L34*$J$24","v":0.12540723441836937},-1.6432580017438178E-2,{"$f":"Config!L38","v":1.5}]
[null,null,"総合判定E＝評価1相当",{"$f":"L34*$D$24","v":0.29439731378319312},{"$f":"L34*$E$24","v":0.18980697516370293},{"$f":"L34*$F$24","v":0.21353124318716704},{"$f":"L34*$G$24","v":0.19338604425095804},{"$f":"L34*$H$24","v":0.37709276468149144},{"$f":"L34*$I$24","v":0.10637842451511814},{"$f":"L34*$J$24","v":0.12540723441836937},-1.6432580017438178E-2,{"$f":"Config!K39","v":1.5}]
[null,null,null,"-","-","-","-","-","-","-","-","-"]
[null,null,"評価",{"$f":"IF(D25>=D27,Config!$J$41,IF(AND(D25<D28,D25>=D29),Config!$J$42,IF(AND(D25<D30,D25>=D31),Config!$J$43,IF(AND(D25<D32,D25>=D33),Config!$J$44,Config!$J$45))))","v":1},{"$f":"IF(E25>=E27,Config!$J$41,IF(AND(E25<E28,E25>=E29),Config!$J$42,IF(AND(E25<E30,E25>=E31),Config!$J$43,IF(AND(E25<E32,E25>=E33),Config!$J$44,Config!$J$45))))","v":1},{"$f":"IF(F25>=F27,Config!$J$41,IF(AND(F25<F28,F25>=F29),Config!$J$42,IF(AND(F25<F30,F25>=F31),Config!$J$43,IF(AND(F25<F32,F25>=F33),Config!$J$44,Config!$J$45))))","v":1},{"$f":"IF(G25>=G27,Config!$J$41,IF(AND(G25<G28,G25>=G29),Config!$J$42,IF(AND(G25<G30,G25>=G31),Config!$J$43,IF(AND(G25<G32,G25>=G33),Config!$J$44,Config!$J$45))))","v":1},{"$f":"IF(H25>=H27,Config!$J$41,IF(AND(H25<H28,H25>=H29),Config!$J$42,IF(AND(H25<H30,H25>=H31),Config!$J$43,IF(AND(H25<H32,H25>=H33),Config!$J$44,Config!$J$45))))","v":1},{"$f":"IF(I25>=I27,Config!$J$41,IF(AND(I25<I28,I25>=I29),Config!$J$42,IF(AND(I25<I30,I25>=I31),Config!$J$43,IF(AND(I25<I32,I25>=I33),Config!$J$44,Config!$J$45))))","v":1},{"$f":"IF(J25>=J27,Config!$J$41,IF(AND(J25<J28,J25>=J29),Config!$J$42,IF(AND(J25<J30,J25>=J31),Config!$J$43,IF(AND(J25<J32,J25>=J33),Config!$J$44,Config!$J$45))))","v":1},{"$f":"IF(K25>=K27,Config!$J$41,IF(AND(K25<K28,K25>=K29),Config!$J$42,IF(AND(K25<K30,K25>=K31),Config!$J$43,IF(AND(K25<K32,K25>=K33),Config!$J$44,Config!$J$45))))","v":5},{"$f":"IF(L25>=L27,Config!J35,IF(AND(L25<L28,L25>=L29),Config!$J$36,IF(AND(L25<L30,L25>=L31),Config!$J$37,IF(AND(L25<L32,L25>=L33),Config!$J$38,Config!$J$39))))","v":"E"},{"$f":"IF(OR(D18:D19),Config!J49,Config!J48)","v":"要確認"}]
[]
[null,"回答別算出結果"]
[null,null,"項目No","回答内容","必須チェック","質問エラー判定","評価カテゴリ","カテゴリ設定エラー判定","回答の重み","係数設定エラー判定","影響度","リンク","アドバイス","運用判定基準","アドバイス表示優先度","アドバイス影響度"]
[null,null,30,{"$f":"IF($D$7,VLOOKUP(C40,点検結果記載シート!C:E,3,FALSE)&\"\",\"\")","v":""},{"$f":"IFERROR(D40=\"\",FALSE)","v":true},{"$f":"ISERROR(D40)","v":false},{"$f":"IF($D$7,VLOOKUP(C40,算出パラメータ!C:G,2,FALSE),\"\")","v":""},{"$f":"ISERROR(G40)","v":false},{"$f":"IF(ISERROR(D40),0,IF(OR(D40=\"\",NOT($D$7)),0,VLOOKUP(C40&D40,算出パラメータ!N:P,3,FALSE)))","v":0},{"$f":"ISERROR(I40)","v":false},{"$f":"IF(ISERROR(D40),0,IF(OR(D40=\"\",NOT($D$7)),0,VLOOKUP(C40&D40,算出パラメータ!N:R,5,FALSE)))","v":0},{"$f":"IFERROR(MATCH(C40,アドバイス文に関する追加説明!A:A,0),\"\")","v":36},{"$f":"IFERROR(VLOOKUP(C40,アドバイス文に関する追加説明!A:D,2,FALSE)&\"\",\"\")","v":"No.30【家族の状況】について面談時確認することをお勧めします。"},{"$f":"IF(IFERROR(VLOOKUP(C40,点検結果記載シート!C:G,5,FALSE)&\"\",\"\")=Config!$J$46,D40=Config!$J$47,\"\")","v":""},0.22030758249535198,{"$f":"IF(ISERROR(D40),0,IF(OR(D40=\"\",NOT($D$7)),0,IF(D40=\"1\",O40,-1)))","v":0}]
[null,null,28,{"$f":"IF($D$7,VLOOKUP(C41,点検結果記載シート!C:E,3,FALSE)&\"\",\"\")","v":""},true,false,{"$f":"IF($D$7,VLOOKUP(C41,算出パラメータ!C:G,2,FALSE),\"\")","v":""},false,{"$f":"IF(ISERROR(D41),0,IF(OR(D41=\"\",NOT($D$7)),0,VLOOKUP(C41&D41,算出パラメータ!N:P,3,FALSE)))","v":0},false,{"$f":"IF(ISERROR(D41),0,IF(OR(D41=\"\",NOT($D$7)),0,VLOOKUP(C41&D41,算出パラメータ!N:R,5,FALSE)))","v":0},{"$f":"IFERROR(MATCH(C41,アドバイス文に関する追加説明!A:A,0),\"\")","v":34},{"$f":"IFERROR(VLOOKUP(C41,アドバイス文に関する追加説明!A:D,2,FALSE)&\"\",\"\")","v":"No.28【課題の確認】について面談時確認することをお勧めします。"},{"$f":"IF(IFERROR(VLOOKUP(C41,点検結果記載シート!C:G,5,FALSE)&\"\",\"\")=Config!$J$46,D41=Config!$J$47,\"\")","v":""},0.16828413749920096,0]
[null,null,51,{"$f":"IF($D$7,VLOOKUP(C42,点検結果記載シート!C:E,3,FALSE)&\"\",\"\")","v":""},true,false,{"$f":"IF($D$7,VLOOKUP(C42,算出パラメータ!C:G,2,FALSE),\"\")","v":""},false,{"$f":"IF(ISERROR(D42),0,IF(OR(D42=\"\",NOT($D$7)),0,VLOOKUP(C42&D42,算出パラメータ!N:P,3,FALSE)))","v":0},false,{"$f":"IF(ISERROR(D42),0,IF(OR(D42=\"\",NOT($D$7)),0,VLOOKUP(C42&D42,算出パラメータ!N:R,5,FALSE)))","v":0},{"$f":"IFERROR(MATCH(C42,アドバイス文に関する追加説明!A:A,0),\"\")","v":57},{"$f":"IFERROR(VLOOKUP(C42,アドバイス文に関する追加説明!A:D,2,FALSE)&\"\",\"\")","v":"No.51【サービス担当者会議へのサービス担当者の出席】について面談時確認することをお勧めします。"},{"$f":"IF(IFERROR(VLOOKUP(C42,点検結果記載シート!C:G,5,FALSE)&\"\",\"\")=Config!$J$46,D42=Config!$J$47,\"\")","v":false},3.3463719871222902E-2,0]
[null,null,3,{"$f":"IF($D$7,VLOOKUP(C43,点検結果記載シート!C:E,3,FALSE)&\"\",\"\")","v":""},true,false,{"$f":"IF($D$7,VLOOKUP(C43,算出パラメータ!C:G,2,FALSE),\"\")","v":""},false,{"$f":"IF(ISERROR(D43),0,IF(OR(D43=\"\",NOT($D$7)),0,VLOOKUP(C43&D43,算出パラメータ!N:P,3,FALSE)))","v":0},false,{"$f":"IF(ISERROR(D43),0,IF(OR(D43=\"\",NOT($D$7)),0,VLOOKUP(C43&D43,算出パラメータ!N:R,5,FALSE)))","v":0},{"$f":"IFERROR(MATCH(C43,アドバイス文に関する追加説明!A:A,0),\"\")","v":9},{"$f":"IFERROR(VLOOKUP(C43,アドバイス文に関する追加説明!A:D,2,FALSE)&\"\",\"\")","v":"No.3【既往歴の有無・内容】について面談時確認することをお勧めします。"},{"$f":"IF(IFERROR(VLOOKUP(C43,点検結果記載シート!C:G,5,FALSE)&\"\",\"\")=Config!$J$46,D43=Config!$J$47,\"\")","v":""},2.5634770235016598E-2,0]
[null,null,42,{"$f":"IF($D$7,VLOOKUP(C44,点検結果記載シート!C:E,3,FALSE)&\"\",\"\")","v":""},true,false,{"$f":"IF($D$7,VLOOKUP(C44,算出パラメータ!C:G,2,FALSE),\"\")","v":""},false,{"$f":"IF(ISERROR(D44),0,IF(OR(D44=\"\",NOT($D$7)),0,VLOOKUP(C44&D44,算出パラメータ!N:P,3,FALSE)))","v":0},false,{"$f":"IF(ISERROR(D44),0,IF(OR(D44=\"\",NOT($D$7)),0,VLOOKUP(C44&D44,算出パラメータ!N:R,5,FALSE)))","v":0},{"$f":"IFERROR(MATCH(C44,アドバイス文に関する追加説明!A:A,0),\"\")","v":48},{"$f":"IFERROR(VLOOKUP(C44,アドバイス文に関する追加説明!A:D,2,FALSE)&\"\",\"\")","v":"No.42【介護保険外サービス】について面談時確認することをお勧めします。"},{"$f":"IF(IFERROR(VLOOKUP(C44,点検結果記載シート!C:G,5,FALSE)&\"\",\"\")=Config!$J$46,D44=Config!$J$47,\"\")","v":false},6.457937256953622E-3,0]
[null,null,6,{"$f":"IF($D$7,VLOOKUP(C45,点検結果記載シート!C:E,3,FALSE)&\"\",\"\")","v":""},true,false,{"$f":"IF($D$7,VLOOKUP(C45,算出パラメータ!C:G,2,FALSE),\"\")","v":""},false,{"$f":"IF(ISERROR(D45),0,IF(OR(D45=\"\",NOT($D$7)),0,VLOOKUP(C45&D45,算出パラメータ!N:P,3,FALSE)))","v":0},false,{"$f":"IF(ISERROR(D45),0,IF(OR(D45=\"\",NOT($D$7)),0,VLOOKUP(C45&D45,算出パラメータ!N:R,5,FALSE)))","v":0},{"$f":"IFERROR(MATCH(C45,アドバイス文に関する追加説明!A:A,0),\"\")","v":12},{"$f":"IFERROR(VLOOKUP(C45,アドバイス文に関する追加説明!A:D,2,FALSE)&\"\",\"\")","v":"No.6【ADL】について面談時確認することをお勧めします。"},{"$f":"IF(IFERROR(VLOOKUP(C45,点検結果記載シート!C:G,5,FALSE)&\"\",\"\")=Config!$J$46,D45=Config!$J$47,\"\")","v":""},0,0]
[null,null,20,{"$f":"IF($D$7,VLOOKUP(C46,点検結果記載シート!C:E,3,FALSE)&\"\",\"\")","v":""},true,false,{"$f":"IF($D$7,VLOOKUP(C46,算出パラメータ!C:G,2,FALSE),\"\")","v":""},false,{"$f":"IF(ISERROR(D46),0,IF(OR(D46=\"\",NOT($D$7)),0,VLOOKUP(C46&D46,算出パラメータ!N:P,3,FALSE)))","v":0},false,{"$f":"IF(ISERROR(D46),0,IF(OR(D46=\"\",NOT($D$7)),0,VLOOKUP(C46&D46,算出パラメータ!N:R,5,FALSE)))","v":0},{"$f":"IFERROR(MATCH(C46,アドバイス文に関する追加説明!A:A,0),\"\")","v":26},{"$f":"IFERROR(VLOOKUP(C46,アドバイス文に関する追加説明!A:D,2,FALSE)&\"\",\"\")","v":"No.20【利用者の主訴・要望】について面談時確認することをお勧めします。"},{"$f":"IF(IFERROR(VLOOKUP(C46,点検結果記載シート!C:G,5,FALSE)&\"\",\"\")=Config!$J$46,D46=Config!$J$47,\"\")","v":""},0,0]
[null,null,1,{"$f":"IF($D$7,VLOOKUP(C47,点検結果記載シート!C:E,3,FALSE)&\"\",\"\")","v":""},true,false,{"$f":"IF($D$7,VLOOKUP(C47,算出パラメータ!C:G,2,FALSE),\"\")","v":""},false,{"$f":"IF(ISERROR(D47),0,IF(OR(D47=\"\",NOT($D$7)),0,VLOOKUP(C47&D47,算出パラメータ!N:P,3,FALSE)))","v":0},false,{"$f":"IF(ISERROR(D47),0,IF(OR(D47=\"\",NOT($D$7)),0,VLOOKUP(C47&D47,算出パラメータ!N:R,5,FALSE)))","v":0},{"$f":"IFERROR(MATCH(C47,アドバイス文に関する追加説明!A:A,0),\"\")","v":7},{"$f":"IFERROR(VLOOKUP(C47,アドバイス文に関する追加説明!A:D,2,FALSE)&\"\",\"\")","v":"No.1【課題分析の理由】について面談時確認することをお勧めします。"},{"$f":"IF(IFERROR(VLOOKUP(C47,点検結果記載シート!C:G,5,FALSE)&\"\",\"\")=Config!$J$46,D47=Config!$J$47,\"\")","v":""},1.0073765287757358E-3,0]
[null,null,2,{"$f":"IF($D$7,VLOOKUP(C48,点検結果記載シート!C:E,3,FALSE)&\"\",\"\")","v":""},true,false,{"$f":"IF($D$7,VLOOKUP(C48,算出パラメータ!C:G,2,FALSE),\"\")","v":""},false,{"$f":"IF(ISERROR(D48),0,IF(OR(D48=\"\",NOT($D$7)),0,VLOOKUP(C48&D48,算出パラメータ!N:P,3,FALSE)))","v":0},false,{"$f":"IF(ISERROR(D48),0,IF(OR(D48=\"\",NOT($D$7)),0,VLOOKUP(C48&D48,算出パラメータ!N:R,5,FALSE)))","v":0},{"$f":"IFERROR(MATCH(C48,アドバイス文に関する追加説明!A:A,0),\"\")","v":8},{"$f":"IFERROR(VLOOKUP(C48,アドバイス文に関する追加説明!A:D,2,FALSE)&\"\",\"\")","v":"No.2【かかりつけ医】について面談時確認することをお勧めします。"},{"$f":"IF(IFERROR(VLOOKUP(C48,点検結果記載シート!C:G,5,FALSE)&\"\",\"\")=Config!$J$46,D48=Config!$J$47,\"\")","v":""},6.3563890207691598E-2,0]
[null,null,4,{"$f":"IF($D$7,VLOOKUP(C49,点検結果記載シート!C:E,3,FALSE)&\"\",\"\")","v":""},true,false,{"$f":"IF($D$7,VLOOKUP(C49,算出パラメータ!C:G,2,FALSE),\"\")","v":""},false,{"$f":"IF(ISERROR(D49),0,IF(OR(D49=\"\",NOT($D$7)),0,VLOOKUP(C49&D49,算出パラメータ!N:P,3,FALSE)))","v":0},false,{"$f":"IF(ISERROR(D49),0,IF(OR(D49=\"\",NOT($D$7)),0,VLOOKUP(C49&D49,算出パラメータ!N:R,5,FALSE)))","v":0},{"$f":"IFERROR(MATCH(C49,アドバイス文に関する追加説明!A:A,0),\"\")","v":10},{"$f":"IFERROR(VLOOKUP(C49,アドバイス文に関する追加説明!A:D,2,FALSE)&\"\",\"\")","v":"No.4【主傷病】について面談時確認することをお勧めします。"},{"$f":"IF(IFERROR(VLOOKUP(C49,点検結果記載シート!C:G,5,FALSE)&\"\",\"\")=Config!$J$46,D49=Config!$J$47,\"\")","v":""},8.0748750513252601E-2,0]
[null,null,5,{"$f":"IF($D$7,VLOOKUP(C50,点検結果記載シート!C:E,3,FALSE)&\"\",\"\")","v":""},true,false,{"$f":"IF($D$7,VLOOKUP(C50,算出パラメータ!C:G,2,FALSE),\"\")","v":""},false,{"$f":"IF(ISERROR(D50),0,IF(OR(D50=\"\",NOT($D$7)),0,VLOOKUP(C50&D50,算出パラメータ!N:P,3,FALSE)))","v":0},false,{"$f":"IF(ISERROR(D50),0,IF(OR(D50=\"\",NOT($D$7)),0,VLOOKUP(C50&D50,算出パラメータ!N:R,5,FALSE)))","v":0},{"$f":"IFERROR(MATCH(C50,アドバイス文に関する追加説明!A:A,0),\"\")","v":11},{"$f":"IFERROR(VLOOKUP(C50,アドバイス文に関する追加説明!A:D,2,FALSE)&\"\",\"\")","v":"No.5【内服薬・処置】について面談時確認することをお勧めします。"},{"$f":"IF(IFERROR(VLOOKUP(C50,点検結果記載シート!C:G,5,FALSE)&\"\",\"\")=Config!$J$46,D50=Config!$J$47,\"\")","v":""},0.102715600793022,0]
[null,null,7,{"$f":"IF($D$7,VLOOKUP(C51,点検結果記載シート!C:E,3,FALSE)&\"\",\"\")","v":""},true,false,{"$f":"IF($D$7,VLOOKUP(C51,算出パラメータ!C:G,2,FALSE),\"\")","v":""},false,{"$f":"IF(ISERROR(D51),0,IF(OR(D51=\"\",NOT($D$7)),0,VLOOKUP(C51&D51,算出パラメータ!N:P,3,FALSE)))","v":0},false,{"$f":"IF(ISERROR(D51),0,IF(OR(D51=\"\",NOT($D$7)),0,VLOOKUP(C51&D51,算出パラメータ!N:R,5,FALSE)))","v":0},{"$f":"IFERROR(MATCH(C51,アドバイス文に関する追加説明!A:A,0),\"\")","v":13},{"$f":"IFERROR(VLOOKUP(C51,アドバイス文に関する追加説明!A:D,2,FALSE)&\"\",\"\")","v":"No.7【IADL】について面談時確認することをお勧めします。"},{"$f":"IF(IFERROR(VLOOKUP(C51,点検結果記載シート!C:G,5,FALSE)&\"\",\"\")=Config!$J$46,D51=Config!$J$47,\"\")","v":""},0,0]
[null,null,8,{"$f":"IF($D$7,VLOOKUP(C52,点検結果記載シート!C:E,3,FALSE)&\"\",\"\")","v":""},true,false,{"$f":"IF($D$7,VLOOKUP(C52,算出パラメータ!C:G,2,FALSE),\"\")","v":""},false,{"$f":"IF(ISERROR(D52),0,IF(OR(D52=\"\",NOT($D$7)),0,VLOOKUP(C52&D52,算出パラメータ!N:P,3,FALSE)))","v":0},false,{"$f":"IF(ISERROR(D52),0,IF(OR(D52=\"\",NOT($D$7)),0,VLOOKUP(C52&D52,算出パラメータ!N:R,5,FALSE)))","v":0},{"$f":"IFERROR(MATCH(C52,アドバイス文に関する追加説明!A:A,0),\"\")","v":14},{"$f":"IFERROR(VLOOKUP(C52,アドバイス文に関する追加説明!A:D,2,FALSE)&\"\",\"\")","v":"No.8【認知機能や判断能力】について面談時確認することをお勧めします。"},{"$f":"IF(IFERROR(VLOOKUP(C52,点検結果記載シート!C:G,5,FALSE)&\"\",\"\")=Config!$J$46,D52=Config!$J$47,\"\")","v":""},0,0]
[null,null,9,{"$f":"IF($D$7,VLOOKUP(C53,点検結果記載シート!C:E,3,FALSE)&\"\",\"\")","v":""},true,false,{"$f":"IF($D$7,VLOOKUP(C53,算出パラメータ!C:G,2,FALSE),\"\")","v":""},false,{"$f":"IF(ISERROR(D53),0,IF(OR(D53=\"\",NOT($D$7)),0,VLOOKUP(C53&D53,算出パラメータ!N:P,3,FALSE)))","v":0},false,{"$f":"IF(ISERROR(D53),0,IF(OR(D53=\"\",NOT($D$7)),0,VLOOKUP(C53&D53,算出パラメータ!N:R,5,FALSE)))","v":0},{"$f":"IFERROR(MATCH(C53,アドバイス文に関する追加説明!A:A,0),\"\")","v":15},{"$f":"IFERROR(VLOOKUP(C53,アドバイス文に関する追加説明!A:D,2,FALSE)&\"\",\"\")","v":"No.9【コミュニケーションにおける理解と表出の状況】について面談時確認することをお勧めします。"},{"$f":"IF(IFERROR(VLOOKUP(C53,点検結果記載シート!C:G,5,FALSE)&\"\",\"\")=Config!$J$46,D53=Config!$J$47,\"\")","v":""},0.29494869138295998,0]
[null,null,10,{"$f":"IF($D$7,VLOOKUP(C54,点検結果記載シート!C:E,3,FALSE)&\"\",\"\")","v":""},true,false,{"$f":"IF($D$7,VLOOKUP(C54,算出パラメータ!C:G,2,FALSE),\"\")","v":""},false,{"$f":"IF(ISERROR(D54),0,IF(OR(D54=\"\",NOT($D$7)),0,VLOOKUP(C54&D54,算出パラメータ!N:P,3,FALSE)))","v":0},false,{"$f":"IF(ISERROR(D54),0,IF(OR(D54=\"\",NOT($D$7)),0,VLOOKUP(C54&D54,算出パラメータ!N:R,5,FALSE)))","v":0},{"$f":"IFERROR(MATCH(C54,アドバイス文に関する追加説明!A:A,0),\"\")","v":16},{"$f":"IFERROR(VLOOKUP(C54,アドバイス文に関する追加説明!A:D,2,FALSE)&\"\",\"\")","v":"No.10【一日に摂取すべき水分量】について面談時確認することをお勧めします。"},{"$f":"IF(IFERROR(VLOOKUP(C54,点検結果記載シート!C:G,5,FALSE)&\"\",\"\")=Config!$J$46,D54=Config!$J$47,\"\")","v":""},5.5849951494753199E-2,0]
[null,null,11,{"$f":"IF($D$7,VLOOKUP(C55,点検結果記載シート!C:E,3,FALSE)&\"\",\"\")","v":""},true,false,{"$f":"IF($D$7,VLOOKUP(C55,算出パラメータ!C:G,2,FALSE),\"\")","v":""},false,{"$f":"IF(ISERROR(D55),0,IF(OR(D55=\"\",NOT($D$7)),0,VLOOKUP(C55&D55,算出パラメータ!N:P,3,FALSE)))","v":0},false,{"$f":"IF(ISERROR(D55),0,IF(OR(D55=\"\",NOT($D$7)),0,VLOOKUP(C55&D55,算出パラメータ!N:R,5,FALSE)))","v":0},{"$f":"IFERROR(MATCH(C55,アドバイス文に関する追加説明!A:A,0),\"\")","v":17},{"$f":"IFERROR(VLOOKUP(C55,アドバイス文に関する追加説明!A:D,2,FALSE)&\"\",\"\")","v":"No.11【実際に摂取した水分量】について面談時確認することをお勧めします。"},{"$f":"IF(IFERROR(VLOOKUP(C55,点検結果記載シート!C:G,5,FALSE)&\"\",\"\")=Config!$J$46,D55=Config!$J$47,\"\")","v":""},3.9576245908322698E-2,0]
[null,null,12,{"$f":"IF($D$7,VLOOKUP(C56,点検結果記載シート!C:E,3,FALSE)&\"\",\"\")","v":""},true,false,{"$f":"IF($D$7,VLOOKUP(C56,算出パラメータ!C:G,2,FALSE),\"\")","v":""},false,{"$f":"IF(ISERROR(D56),0,IF(OR(D56=\"\",NOT($D$7)),0,VLOOKUP(C56&D56,算出パラメータ!N:P,3,FALSE)))","v":0},false,{"$f":"IF(ISERROR(D56),0,IF(OR(D56=\"\",NOT($D$7)),0,VLOOKUP(C56&D56,算出パラメータ!N:R,5,FALSE)))","v":0},{"$f":"IFERROR(MATCH(C56,アドバイス文に関する追加説明!A:A,0),\"\")","v":18},{"$f":"IFERROR(VLOOKUP(C56,アドバイス文に関する追加説明!A:D,2,FALSE)&\"\",\"\")","v":"No.12【食事内容・カロリー数】について面談時確認することをお勧めします。"},{"$f":"IF(IFERROR(VLOOKUP(C56,点検結果記載シート!C:G,5,FALSE)&\"\",\"\")=Config!$J$46,D56=Config!$J$47,\"\")","v":""},0,0]
[null,null,13,{"$f":"IF($D$7,VLOOKUP(C57,点検結果記載シート!C:E,3,FALSE)&\"\",\"\")","v":""},true,false,{"$f":"IF($D$7,VLOOKUP(C57,算出パラメータ!C:G,2,FALSE),\"\")","v":""},false,{"$f":"IF(ISERROR(D57),0,IF(OR(D57=\"\",NOT($D$7)),0,VLOOKUP(C57&D57,算出パラメータ!N:P,3,FALSE)))","v":0},false,{"$f":"IF(ISERROR(D57),0,IF(OR(D57=\"\",NOT($D$7)),0,VLOOKUP(C57&D57,算出パラメータ!N:R,5,FALSE)))","v":0},{"$f":"IFERROR(MATCH(C57,アドバイス文に関する追加説明!A:A,0),\"\")","v":19},{"$f":"IFERROR(VLOOKUP(C57,アドバイス文に関する追加説明!A:D,2,FALSE)&\"\",\"\")","v":"No.13【BMI】について面談時確認することをお勧めします。"},{"$f":"IF(IFERROR(VLOOKUP(C57,点検結果記載シート!C:G,5,FALSE)&\"\",\"\")=Config!$J$46,D57=Config!$J$47,\"\")","v":""},6.9873678082806104E-2,0]
[null,null,14,{"$f":"IF($D$7,VLOOKUP(C58,点検結果記載シート!C:E,3,FALSE)&\"\",\"\")","v":""},true,false,{"$f":"IF($D$7,VLOOKUP(C58,算出パラメータ!C:G,2,FALSE),\"\")","v":""},false,{"$f":"IF(ISERROR(D58),0,IF(OR(D58=\"\",NOT($D$7)),0,VLOOKUP(C58&D58,算出パラメータ!N:P,3,FALSE)))","v":0},false,{"$f":"IF(ISERROR(D58),0,IF(OR(D58=\"\",NOT($D$7)),0,VLOOKUP(C58&D58,算出パラメータ!N:R,5,FALSE)))","v":0},{"$f":"IFERROR(MATCH(C58,アドバイス文に関する追加説明!A:A,0),\"\")","v":20},{"$f":"IFERROR(VLOOKUP(C58,アドバイス文に関する追加説明!A:D,2,FALSE)&\"\",\"\")","v":"No.14【口腔衛生の状態】について面談時確認することをお勧めします。"},{"$f":"IF(IFERROR(VLOOKUP(C58,点検結果記載シート!C:G,5,FALSE)&\"\",\"\")=Config!$J$46,D58=Config!$J$47,\"\")","v":""},0,0]
[null,null,15,{"$f":"IF($D$7,VLOOKUP(C59,点検結果記載シート!C:E,3,FALSE)&\"\",\"\")","v":""},true,false,{"$f":"IF($D$7,VLOOKUP(C59,算出パラメータ!C:G,2,FALSE),\"\")","v":""},false,{"$f":"IF(ISERROR(D59),0,IF(OR(D59=\"\",NOT($D$7)),0,VLOOKUP(C59&D59,算出パラメータ!N:P,3,FALSE)))","v":0},false,{"$f":"IF(ISERROR(D59),0,IF(OR(D59=\"\",NOT($D$7)),0,VLOOKUP(C59&D59,算出パラメータ!N:R,5,FALSE)))","v":0},{"$f":"IFERROR(MATCH(C59,アドバイス文に関する追加説明!A:A,0),\"\")","v":21},{"$f":"IFERROR(VLOOKUP(C59,アドバイス文に関する追加説明!A:D,2,FALSE)&\"\",\"\")","v":"No.15【排尿、排便の状態】について面談時確認することをお勧めします。"},{"$f":"IF(IFERROR(VLOOKUP(C59,点検結果記載シート!C:G,5,FALSE)&\"\",\"\")=Config!$J$46,D59=Config!$J$47,\"\")","v":""},0,0]
[null,null,16,{"$f":"IF($D$7,VLOOKUP(C60,点検結果記載シート!C:E,3,FALSE)&\"\",\"\")","v":""},true,false,{"$f":"IF($D$7,VLOOKUP(C60,算出パラメータ!C:G,2,FALSE),\"\")","v":""},false,{"$f":"IF(ISERROR(D60),0,IF(OR(D60=\"\",NOT($D$7)),0,VLOOKUP(C60&D60,算出パラメータ!N:P,3,FALSE)))","v":0},false,{"$f":"IF(ISERROR(D60),0,IF(OR(D60=\"\",NOT($D$7)),0,VLOOKUP(C60&D60,算出パラメータ!N:R,5,FALSE)))","v":0},{"$f":"IFERROR(MATCH(C60,アドバイス文に関する追加説明!A:A,0),\"\")","v":22},{"$f":"IFERROR(VLOOKUP(C60,アドバイス文に関する追加説明!A:D,2,FALSE)&\"\",\"\")","v":"No.16【清潔の保持】について面談時確認することをお勧めします。"},{"$f":"IF(IFERROR(VLOOKUP(C60,点検結果記載シート!C:G,5,FALSE)&\"\",\"\")=Config!$J$46,D60=Config!$J$47,\"\")","v":""},0.76754646904885016,0]
[null,null,17,{"$f":"IF($D$7,VLOOKUP(C61,点検結果記載シート!C:E,3,FALSE)&\"\",\"\")","v":""},true,false,{"$f":"IF($D$7,VLOOKUP(C61,算出パラメータ!C:G,2,FALSE),\"\")","v":""},false,{"$f":"IF(ISERROR(D61),0,IF(OR(D61=\"\",NOT($D$7)),0,VLOOKUP(C61&D61,算出パラメータ!N:P,3,FALSE)))","v":0},false,{"$f":"IF(ISERROR(D61),0,IF(OR(D61=\"\",NOT($D$7)),0,VLOOKUP(C61&D61,算出パラメータ!N:R,5,FALSE)))","v":0},{"$f":"IFERROR(MATCH(C61,アドバイス文に関する追加説明!A:A,0),\"\")","v":23},{"$f":"IFERROR(VLOOKUP(C61,アドバイス文に関する追加説明!A:D,2,FALSE)&\"\",\"\")","v":"No.17【「一部介助」項目の特記】について面談時確認することをお勧めします。"},{"$f":"IF(IFERROR(VLOOKUP(C61,点検結果記載シート!C:G,5,FALSE)&\"\",\"\")=Config!$J$46,D61=Config!$J$47,\"\")","v":""},0,0]
[null,null,18,{"$f":"IF($D$7,VLOOKUP(C62,点検結果記載シート!C:E,3,FALSE)&\"\",\"\")","v":""},true,false,{"$f":"IF($D$7,VLOOKUP(C62,算出パラメータ!C:G,2,FALSE),\"\")","v":""},false,{"$f":"IF(ISERROR(D62),0,IF(OR(D62=\"\",NOT($D$7)),0,VLOOKUP(C62&D62,算出パラメータ!N:P,3,FALSE)))","v":0},false,{"$f":"IF(ISERROR(D62),0,IF(OR(D62=\"\",NOT($D$7)),0,VLOOKUP(C62&D62,算出パラメータ!N:R,5,FALSE)))","v":0},{"$f":"IFERROR(MATCH(C62,アドバイス文に関する追加説明!A:A,0),\"\")","v":24},{"$f":"IFERROR(VLOOKUP(C62,アドバイス文に関する追加説明!A:D,2,FALSE)&\"\",\"\")","v":"No.18【「見守り」項目の特記】について面談時確認することをお勧めします。"},{"$f":"IF(IFERROR(VLOOKUP(C62,点検結果記載シート!C:G,5,FALSE)&\"\",\"\")=Config!$J$46,D62=Config!$J$47,\"\")","v":""},0.10230529209398299,0]
[null,null,19,{"$f":"IF($D$7,VLOOKUP(C63,点検結果記載シート!C:E,3,FALSE)&\"\",\"\")","v":""},true,false,{"$f":"IF($D$7,VLOOKUP(C63,算出パラメータ!C:G,2,FALSE),\"\")","v":""},false,{"$f":"IF(ISERROR(D63),0,IF(OR(D63=\"\",NOT($D$7)),0,VLOOKUP(C63&D63,算出パラメータ!N:P,3,FALSE)))","v":0},false,{"$f":"IF(ISERROR(D63),0,IF(OR(D63=\"\",NOT($D$7)),0,VLOOKUP(C63&D63,算出パラメータ!N:R,5,FALSE)))","v":0},{"$f":"IFERROR(MATCH(C63,アドバイス文に関する追加説明!A:A,0),\"\")","v":25},{"$f":"IFERROR(VLOOKUP(C63,アドバイス文に関する追加説明!A:D,2,FALSE)&\"\",\"\")","v":"No.19【外出頻度、外出先】について面談時確認することをお勧めします。"},{"$f":"IF(IFERROR(VLOOKUP(C63,点検結果記載シート!C:G,5,FALSE)&\"\",\"\")=Config!$J$46,D63=Config!$J$47,\"\")","v":""},0,0]
[null,null,21,{"$f":"IF($D$7,VLOOKUP(C64,点検結果記載シート!C:E,3,FALSE)&\"\",\"\")","v":""},true,false,{"$f":"IF($D$7,VLOOKUP(C64,算出パラメータ!C:G,2,FALSE),\"\")","v":""},false,{"$f":"IF(ISERROR(D64),0,IF(OR(D64=\"\",NOT($D$7)),0,VLOOKUP(C64&D64,算出パラメータ!N:P,3,FALSE)))","v":0},false,{"$f":"IF(ISERROR(D64),0,IF(OR(D64=\"\",NOT($D$7)),0,VLOOKUP(C64&D64,算出パラメータ!N:R,5,FALSE)))","v":0},{"$f":"IFERROR(MATCH(C64,アドバイス文に関する追加説明!A:A,0),\"\")","v":27},{"$f":"IFERROR(VLOOKUP(C64,アドバイス文に関する追加説明!A:D,2,FALSE)&\"\",\"\")","v":"No.21【一日の過ごし方】について面談時確認することをお勧めします。"},{"$f":"IF(IFERROR(VLOOKUP(C64,点検結果記載シート!C:G,5,FALSE)&\"\",\"\")=Config!$J$46,D64=Config!$J$47,\"\")","v":""},0.11445714338159559,0]
[null,null,22,{"$f":"IF($D$7,VLOOKUP(C65,点検結果記載シート!C:E,3,FALSE)&\"\",\"\")","v":""},true,false,{"$f":"IF($D$7,VLOOKUP(C65,算出パラメータ!C:G,2,FALSE),\"\")","v":""},false,{"$f":"IF(ISERROR(D65),0,IF(OR(D65=\"\",NOT($D$7)),0,VLOOKUP(C65&D65,算出パラメータ!N:P,3,FALSE)))","v":0},false,{"$f":"IF(ISERROR(D65),0,IF(OR(D65=\"\",NOT($D$7)),0,VLOOKUP(C65&D65,算出パラメータ!N:R,5,FALSE)))","v":0},{"$f":"IFERROR(MATCH(C65,アドバイス文に関する追加説明!A:A,0),\"\")","v":28},{"$f":"IFERROR(VLOOKUP(C65,アドバイス文に関する追加説明!A:D,2,FALSE)&\"\",\"\")","v":"No.22【離床、臥床】について面談時確認することをお勧めします。"},{"$f":"IF(IFERROR(VLOOKUP(C65,点検結果記載シート!C:G,5,FALSE)&\"\",\"\")=Config!$J$46,D65=Config!$J$47,\"\")","v":""},0,0]
[null,null,23,{"$f":"IF($D$7,VLOOKUP(C66,点検結果記載シート!C:E,3,FALSE)&\"\",\"\")","v":""},true,false,{"$f":"IF($D$7,VLOOKUP(C66,算出パラメータ!C:G,2,FALSE),\"\")","v":""},false,{"$f":"IF(ISERROR(D66),0,IF(OR(D66=\"\",NOT($D$7)),0,VLOOKUP(C66&D66,算出パラメータ!N:P,3,FALSE)))","v":0},false,{"$f":"IF(ISERROR(D66),0,IF(OR(D66=\"\",NOT($D$7)),0,VLOOKUP(C66&D66,算出パラメータ!N:R,5,FALSE)))","v":0},{"$f":"IFERROR(MATCH(C66,アドバイス文に関する追加説明!A:A,0),\"\")","v":29},{"$f":"IFERROR(VLOOKUP(C66,アドバイス文に関する追加説明!A:D,2,FALSE)&\"\",\"\")","v":"No.23【現在の生活状況】について面談時確認することをお勧めします。"},{"$f":"IF(IFERROR(VLOOKUP(C66,点検結果記載シート!C:G,5,FALSE)&\"\",\"\")=Config!$J$46,D66=Config!$J$47,\"\")","v":""},5.7112001368944398E-2,0]
[null,null,24,{"$f":"IF($D$7,VLOOKUP(C67,点検結果記載シート!C:E,3,FALSE)&\"\",\"\")","v":""},true,false,{"$f":"IF($D$7,VLOOKUP(C67,算出パラメータ!C:G,2,FALSE),\"\")","v":""},false,{"$f":"IF(ISERROR(D67),0,IF(OR(D67=\"\",NOT($D$7)),0,VLOOKUP(C67&D67,算出パラメータ!N:P,3,FALSE)))","v":0},false,{"$f":"IF(ISERROR(D67),0,IF(OR(D67=\"\",NOT($D$7)),0,VLOOKUP(C67&D67,算出パラメータ!N:R,5,FALSE)))","v":0},{"$f":"IFERROR(MATCH(C67,アドバイス文に関する追加説明!A:A,0),\"\")","v":30},{"$f":"IFERROR(VLOOKUP(C67,アドバイス文に関する追加説明!A:D,2,FALSE)&\"\",\"\")","v":"No.24【生活歴】について面談時確認することをお勧めします。"},{"$f":"IF(IFERROR(VLOOKUP(C67,点検結果記載シート!C:G,5,FALSE)&\"\",\"\")=Config!$J$46,D67=Config!$J$47,\"\")","v":""},0.21652499707776801,0]
[null,null,25,{"$f":"IF($D$7,VLOOKUP(C68,点検結果記載シート!C:E,3,FALSE)&\"\",\"\")","v":""},true,false,{"$f":"IF($D$7,VLOOKUP(C68,算出パラメータ!C:G,2,FALSE),\"\")","v":""},false,{"$f":"IF(ISERROR(D68),0,IF(OR(D68=\"\",NOT($D$7)),0,VLOOKUP(C68&D68,算出パラメータ!N:P,3,FALSE)))","v":0},false,{"$f":"IF(ISERROR(D68),0,IF(OR(D68=\"\",NOT($D$7)),0,VLOOKUP(C68&D68,算出パラメータ!N:R,5,FALSE)))","v":0},{"$f":"IFERROR(MATCH(C68,アドバイス文に関する追加説明!A:A,0),\"\")","v":31},{"$f":"IFERROR(VLOOKUP(C68,アドバイス文に関する追加説明!A:D,2,FALSE)&\"\",\"\")","v":"No.25【家族の主訴・要望】について面談時確認することをお勧めします。"},{"$f":"IF(IFERROR(VLOOKUP(C68,点検結果記載シート!C:G,5,FALSE)&\"\",\"\")=Config!$J$46,D68=Config!$J$47,\"\")","v":""},8.3607728048673585E-2,0]
[null,null,26,{"$f":"IF($D$7,VLOOKUP(C69,点検結果記載シート!C:E,3,FALSE)&\"\",\"\")","v":""},true,false,{"$f":"IF($D$7,VLOOKUP(C69,算出パラメータ!C:G,2,FALSE),\"\")","v":""},false,{"$f":"IF(ISERROR(D69),0,IF(OR(D69=\"\",NOT($D$7)),0,VLOOKUP(C69&D69,算出パラメータ!N:P,3,FALSE)))","v":0},false,{"$f":"IF(ISERROR(D69),0,IF(OR(D69=\"\",NOT($D$7)),0,VLOOKUP(C69&D69,算出パラメータ!N:R,5,FALSE)))","v":0},{"$f":"IFERROR(MATCH(C69,アドバイス文に関する追加説明!A:A,0),\"\")","v":32},{"$f":"IFERROR(VLOOKUP(C69,アドバイス文に関する追加説明!A:D,2,FALSE)&\"\",\"\")","v":"No.26【経済状況】について面談時確認することをお勧めします。"},{"$f":"IF(IFERROR(VLOOKUP(C69,点検結果記載シート!C:G,5,FALSE)&\"\",\"\")=Config!$J$46,D69=Config!$J$47,\"\")","v":""},0,0]
[null,null,27,{"$f":"IF($D$7,VLOOKUP(C70,点検結果記載シート!C:E,3,FALSE)&\"\",\"\")","v":""},true,false,{"$f":"IF($D$7,VLOOKUP(C70,算出パラメータ!C:G,2,FALSE),\"\")","v":""},false,{"$f":"IF(ISERROR(D70),0,IF(OR(D70=\"\",NOT($D$7)),0,VLOOKUP(C70&D70,算出パラメータ!N:P,3,FALSE)))","v":0},false,{"$f":"IF(ISERROR(D70),0,IF(OR(D70=\"\",NOT($D$7)),0,VLOOKUP(C70&D70,算出パラメータ!N:R,5,FALSE)))","v":0},{"$f":"IFERROR(MATCH(C70,アドバイス文に関する追加説明!A:A,0),\"\")","v":33},{"$f":"IFERROR(VLOOKUP(C70,アドバイス文に関する追加説明!A:D,2,FALSE)&\"\",\"\")","v":"No.27【本人の役割】について面談時確認することをお勧めします。"},{"$f":"IF(IFERROR(VLOOKUP(C70,点検結果記載シート!C:G,5,FALSE)&\"\",\"\")=Config!$J$46,D70=Config!$J$47,\"\")","v":""},9.6971122240990609E-2,0]
[null,null,29,{"$f":"IF($D$7,VLOOKUP(C71,点検結果記載シート!C:E,3,FALSE)&\"\",\"\")","v":""},true,false,{"$f":"IF($D$7,VLOOKUP(C71,算出パラメータ!C:G,2,FALSE),\"\")","v":""},false,{"$f":"IF(ISERROR(D71),0,IF(OR(D71=\"\",NOT($D$7)),0,VLOOKUP(C71&D71,算出パラメータ!N:P,3,FALSE)))","v":0},false,{"$f":"IF(ISERROR(D71),0,IF(OR(D71=\"\",NOT($D$7)),0,VLOOKUP(C71&D71,算出パラメータ!N:R,5,FALSE)))","v":0},{"$f":"IFERROR(MATCH(C71,アドバイス文に関する追加説明!A:A,0),\"\")","v":35},{"$f":"IFERROR(VLOOKUP(C71,アドバイス文に関する追加説明!A:D,2,FALSE)&\"\",\"\")","v":"No.29【課題の分析結果の文章化】について面談時確認することをお勧めします。"},{"$f":"IF(IFERROR(VLOOKUP(C71,点検結果記載シート!C:G,5,FALSE)&\"\",\"\")=Config!$J$46,D71=Config!$J$47,\"\")","v":""},0.10768492969301562,0]
[null,null,31,{"$f":"IF($D$7,VLOOKUP(C72,点検結果記載シート!C:E,3,FALSE)&\"\",\"\")","v":""},{"$f":"IFERROR(D72=\"\",FALSE)","v":true},{"$f":"ISERROR(D72)","v":false},{"$f":"IF($D$7,VLOOKUP(C72,算出パラメータ!C:G,2,FALSE),\"\")","v":""},{"$f":"ISERROR(G72)","v":false},{"$f":"IF(ISERROR(D72),0,IF(OR(D72=\"\",NOT($D$7)),0,VLOOKUP(C72&D72,算出パラメータ!N:P,3,FALSE)))","v":0},{"$f":"ISERROR(I72)","v":false},{"$f":"IF(ISERROR(D72),0,IF(OR(D72=\"\",NOT($D$7)),0,VLOOKUP(C72&D72,算出パラメータ!N:R,5,FALSE)))","v":0},{"$f":"IFERROR(MATCH(C72,アドバイス文に関する追加説明!A:A,0),\"\")","v":37},{"$f":"IFERROR(VLOOKUP(C72,アドバイス文に関する追加説明!A:D,2,FALSE)&\"\",\"\")","v":"No.31【家族関係や周辺の社会資源との状況】について面談時確認することをお勧めします。"},{"$f":"IF(IFERROR(VLOOKUP(C72,点検結果記載シート!C:G,5,FALSE)&\"\",\"\")=Config!$J$46,D72=Config!$J$47,\"\")","v":""},0.17723621503178957,{"$f":"IF(ISERROR(D72),0,IF(OR(D72=\"\",NOT($D$7)),0,IF(D72=\"1\",O72,-1)))","v":0}]
[null,null,32,{"$f":"IF($D$7,VLOOKUP(C73,点検結果記載シート!C:E,3,FALSE)&\"\",\"\")","v":""},true,false,{"$f":"IF($D$7,VLOOKUP(C73,算出パラメータ!C:G,2,FALSE),\"\")","v":""},false,{"$f":"IF(ISERROR(D73),0,IF(OR(D73=\"\",NOT($D$7)),0,VLOOKUP(C73&D73,算出パラメータ!N:P,3,FALSE)))","v":0},false,{"$f":"IF(ISERROR(D73),0,IF(OR(D73=\"\",NOT($D$7)),0,VLOOKUP(C73&D73,算出パラメータ!N:R,5,FALSE)))","v":0},{"$f":"IFERROR(MATCH(C73,アドバイス文に関する追加説明!A:A,0),\"\")","v":38},{"$f":"IFERROR(VLOOKUP(C73,アドバイス文に関する追加説明!A:D,2,FALSE)&\"\",\"\")","v":"No.32【留意すべき事項】について面談時確認することをお勧めします。"},{"$f":"IF(IFERROR(VLOOKUP(C73,点検結果記載シート!C:G,5,FALSE)&\"\",\"\")=Config!$J$46,D73=Config!$J$47,\"\")","v":""},8.5673790146340897E-2,0]
[null,null,33,{"$f":"IF($D$7,VLOOKUP(C74,点検結果記載シート!C:E,3,FALSE)&\"\",\"\")","v":""},true,false,{"$f":"IF($D$7,VLOOKUP(C74,算出パラメータ!C:G,2,FALSE),\"\")","v":""},false,{"$f":"IF(ISERROR(D74),0,IF(OR(D74=\"\",NOT($D$7)),0,VLOOKUP(C74&D74,算出パラメータ!N:P,3,FALSE)))","v":0},false,{"$f":"IF(ISERROR(D74),0,IF(OR(D74=\"\",NOT($D$7)),0,VLOOKUP(C74&D74,算出パラメータ!N:R,5,FALSE)))","v":0},{"$f":"IFERROR(MATCH(C74,アドバイス文に関する追加説明!A:A,0),\"\")","v":39},{"$f":"IFERROR(VLOOKUP(C74,アドバイス文に関する追加説明!A:D,2,FALSE)&\"\",\"\")","v":"No.33【利用者及び家族の生活に対する意向を踏まえた課題分析の結果】について面談時確認することをお勧めします。"},{"$f":"IF(IFERROR(VLOOKUP(C74,点検結果記載シート!C:G,5,FALSE)&\"\",\"\")=Config!$J$46,D74=Config!$J$47,\"\")","v":""},0.39518939682865206,0]
[null,null,34,{"$f":"IF($D$7,VLOOKUP(C75,点検結果記載シート!C:E,3,FALSE)&\"\",\"\")","v":""},true,false,{"$f":"IF($D$7,VLOOKUP(C75,算出パラメータ!C:G,2,FALSE),\"\")","v":""},false,{"$f":"IF(ISERROR(D75),0,IF(OR(D75=\"\",NOT($D$7)),0,VLOOKUP(C75&D75,算出パラメータ!N:P,3,FALSE)))","v":0},false,{"$f":"IF(ISERROR(D75),0,IF(OR(D75=\"\",NOT($D$7)),0,VLOOKUP(C75&D75,算出パラメータ!N:R,5,FALSE)))","v":0},{"$f":"IFERROR(MATCH(C75,アドバイス文に関する追加説明!A:A,0),\"\")","v":40},{"$f":"IFERROR(VLOOKUP(C75,アドバイス文に関する追加説明!A:D,2,FALSE)&\"\",\"\")","v":"No.34【総合的な援助の方針における自立の具体性】について面談時確認することをお勧めします。"},{"$f":"IF(IFERROR(VLOOKUP(C75,点検結果記載シート!C:G,5,FALSE)&\"\",\"\")=Config!$J$46,D75=Config!$J$47,\"\")","v":""},0.11897443059490001,0]
[null,null,35,{"$f":"IF($D$7,VLOOKUP(C76,点検結果記載シート!C:E,3,FALSE)&\"\",\"\")","v":""},true,false,{"$f":"IF($D$7,VLOOKUP(C76,算出パラメータ!C:G,2,FALSE),\"\")","v":""},false,{"$f":"IF(ISERROR(D76),0,IF(OR(D76=\"\",NOT($D$7)),0,VLOOKUP(C76&D76,算出パラメータ!N:P,3,FALSE)))","v":0},false,{"$f":"IF(ISERROR(D76),0,IF(OR(D76=\"\",NOT($D$7)),0,VLOOKUP(C76&D76,算出パラメータ!N:R,5,FALSE)))","v":0},{"$f":"IFERROR(MATCH(C76,アドバイス文に関する追加説明!A:A,0),\"\")","v":41},{"$f":"IFERROR(VLOOKUP(C76,アドバイス文に関する追加説明!A:D,2,FALSE)&\"\",\"\")","v":"No.35【アセスメントで抽出した課題に基づくニーズの記載】について面談時確認することをお勧めします。"},{"$f":"IF(IFERROR(VLOOKUP(C76,点検結果記載シート!C:G,5,FALSE)&\"\",\"\")=Config!$J$46,D76=Config!$J$47,\"\")","v":""},0.26984731701664799,0]
[null,null,36,{"$f":"IF($D$7,VLOOKUP(C77,点検結果記載シート!C:E,3,FALSE)&\"\",\"\")","v":""},true,false,{"$f":"IF($D$7,VLOOKUP(C77,算出パラメータ!C:G,2,FALSE),\"\")","v":""},false,{"$f":"IF(ISERROR(D77),0,IF(OR(D77=\"\",NOT($D$7)),0,VLOOKUP(C77&D77,算出パラメータ!N:P,3,FALSE)))","v":0},false,{"$f":"IF(ISERROR(D77),0,IF(OR(D77=\"\",NOT($D$7)),0,VLOOKUP(C77&D77,算出パラメータ!N:R,5,FALSE)))","v":0},{"$f":"IFERROR(MATCH(C77,アドバイス文に関する追加説明!A:A,0),\"\")","v":42},{"$f":"IFERROR(VLOOKUP(C77,アドバイス文に関する追加説明!A:D,2,FALSE)&\"\",\"\")","v":"No.36【利用者や多職種に理解できる表記】について面談時確認することをお勧めします。"},{"$f":"IF(IFERROR(VLOOKUP(C77,点検結果記載シート!C:G,5,FALSE)&\"\",\"\")=Config!$J$46,D77=Config!$J$47,\"\")","v":""},0,0]
[null,null,37,{"$f":"IF($D$7,VLOOKUP(C78,点検結果記載シート!C:E,3,FALSE)&\"\",\"\")","v":""},true,false,{"$f":"IF($D$7,VLOOKUP(C78,算出パラメータ!C:G,2,FALSE),\"\")","v":""},false,{"$f":"IF(ISERROR(D78),0,IF(OR(D78=\"\",NOT($D$7)),0,VLOOKUP(C78&D78,算出パラメータ!N:P,3,FALSE)))","v":0},false,{"$f":"IF(ISERROR(D78),0,IF(OR(D78=\"\",NOT($D$7)),0,VLOOKUP(C78&D78,算出パラメータ!N:R,5,FALSE)))","v":0},{"$f":"IFERROR(MATCH(C78,アドバイス文に関する追加説明!A:A,0),\"\")","v":43},{"$f":"IFERROR(VLOOKUP(C78,アドバイス文に関する追加説明!A:D,2,FALSE)&\"\",\"\")","v":"No.37【長期目標】について面談時確認することをお勧めします。"},{"$f":"IF(IFERROR(VLOOKUP(C78,点検結果記載シート!C:G,5,FALSE)&\"\",\"\")=Config!$J$46,D78=Config!$J$47,\"\")","v":""},0,0]
[null,null,38,{"$f":"IF($D$7,VLOOKUP(C79,点検結果記載シート!C:E,3,FALSE)&\"\",\"\")","v":""},true,false,{"$f":"IF($D$7,VLOOKUP(C79,算出パラメータ!C:G,2,FALSE),\"\")","v":""},false,{"$f":"IF(ISERROR(D79),0,IF(OR(D79=\"\",NOT($D$7)),0,VLOOKUP(C79&D79,算出パラメータ!N:P,3,FALSE)))","v":0},false,{"$f":"IF(ISERROR(D79),0,IF(OR(D79=\"\",NOT($D$7)),0,VLOOKUP(C79&D79,算出パラメータ!N:R,5,FALSE)))","v":0},{"$f":"IFERROR(MATCH(C79,アドバイス文に関する追加説明!A:A,0),\"\")","v":44},{"$f":"IFERROR(VLOOKUP(C79,アドバイス文に関する追加説明!A:D,2,FALSE)&\"\",\"\")","v":"No.38【短期目標】について面談時確認することをお勧めします。"},{"$f":"IF(IFERROR(VLOOKUP(C79,点検結果記載シート!C:G,5,FALSE)&\"\",\"\")=Config!$J$46,D79=Config!$J$47,\"\")","v":""},0,0]
[null,null,39,{"$f":"IF($D$7,VLOOKUP(C80,点検結果記載シート!C:E,3,FALSE)&\"\",\"\")","v":""},true,false,{"$f":"IF($D$7,VLOOKUP(C80,算出パラメータ!C:G,2,FALSE),\"\")","v":""},false,{"$f":"IF(ISERROR(D80),0,IF(OR(D80=\"\",NOT($D$7)),0,VLOOKUP(C80&D80,算出パラメータ!N:P,3,FALSE)))","v":0},false,{"$f":"IF(ISERROR(D80),0,IF(OR(D80=\"\",NOT($D$7)),0,VLOOKUP(C80&D80,算出パラメータ!N:R,5,FALSE)))","v":0},{"$f":"IFERROR(MATCH(C80,アドバイス文に関する追加説明!A:A,0),\"\")","v":45},{"$f":"IFERROR(VLOOKUP(C80,アドバイス文に関する追加説明!A:D,2,FALSE)&\"\",\"\")","v":"No.39【本人の役割設定】について面談時確認することをお勧めします。"},{"$f":"IF(IFERROR(VLOOKUP(C80,点検結果記載シート!C:G,5,FALSE)&\"\",\"\")=Config!$J$46,D80=Config!$J$47,\"\")","v":""},0.23125136962778997,0]
[null,null,40,{"$f":"IF($D$7,VLOOKUP(C81,点検結果記載シート!C:E,3,FALSE)&\"\",\"\")","v":""},true,false,{"$f":"IF($D$7,VLOOKUP(C81,算出パラメータ!C:G,2,FALSE),\"\")","v":""},false,{"$f":"IF(ISERROR(D81),0,IF(OR(D81=\"\",NOT($D$7)),0,VLOOKUP(C81&D81,算出パラメータ!N:P,3,FALSE)))","v":0},false,{"$f":"IF(ISERROR(D81),0,IF(OR(D81=\"\",NOT($D$7)),0,VLOOKUP(C81&D81,算出パラメータ!N:R,5,FALSE)))","v":0},{"$f":"IFERROR(MATCH(C81,アドバイス文に関する追加説明!A:A,0),\"\")","v":46},{"$f":"IFERROR(VLOOKUP(C81,アドバイス文に関する追加説明!A:D,2,FALSE)&\"\",\"\")","v":"No.40【介護保険サービス】について面談時確認することをお勧めします。"},{"$f":"IF(IFERROR(VLOOKUP(C81,点検結果記載シート!C:G,5,FALSE)&\"\",\"\")=Config!$J$46,D81=Config!$J$47,\"\")","v":""},0.16829504609702103,0]
[null,null,41,{"$f":"IF($D$7,VLOOKUP(C82,点検結果記載シート!C:E,3,FALSE)&\"\",\"\")","v":""},true,false,{"$f":"IF($D$7,VLOOKUP(C82,算出パラメータ!C:G,2,FALSE),\"\")","v":""},false,{"$f":"IF(ISERROR(D82),0,IF(OR(D82=\"\",NOT($D$7)),0,VLOOKUP(C82&D82,算出パラメータ!N:P,3,FALSE)))","v":0},false,{"$f":"IF(ISERROR(D82),0,IF(OR(D82=\"\",NOT($D$7)),0,VLOOKUP(C82&D82,算出パラメータ!N:R,5,FALSE)))","v":0},{"$f":"IFERROR(MATCH(C82,アドバイス文に関する追加説明!A:A,0),\"\")","v":47},{"$f":"IFERROR(VLOOKUP(C82,アドバイス文に関する追加説明!A:D,2,FALSE)&\"\",\"\")","v":"No.41【福祉用具貸与・販売の種類と利用の理由】について面談時確認することをお勧めします。"},{"$f":"IF(IFERROR(VLOOKUP(C82,点検結果記載シート!C:G,5,FALSE)&\"\",\"\")=Config!$J$46,D82=Config!$J$47,\"\")","v":""},0.117832819516048,0]
[null,null,43,{"$f":"IF($D$7,VLOOKUP(C83,点検結果記載シート!C:E,3,FALSE)&\"\",\"\")","v":""},true,false,{"$f":"IF($D$7,VLOOKUP(C83,算出パラメータ!C:G,2,FALSE),\"\")","v":""},false,{"$f":"IF(ISERROR(D83),0,IF(OR(D83=\"\",NOT($D$7)),0,VLOOKUP(C83&D83,算出パラメータ!N:P,3,FALSE)))","v":0},false,{"$f":"IF(ISERROR(D83),0,IF(OR(D83=\"\",NOT($D$7)),0,VLOOKUP(C83&D83,算出パラメータ!N:R,5,FALSE)))","v":0},{"$f":"IFERROR(MATCH(C83,アドバイス文に関する追加説明!A:A,0),\"\")","v":49},{"$f":"IFERROR(VLOOKUP(C83,アドバイス文に関する追加説明!A:D,2,FALSE)&\"\",\"\")","v":"No.43【利用者の意思を反映したサービス事業所の利用】について面談時確認することをお勧めします。"},{"$f":"IF(IFERROR(VLOOKUP(C83,点検結果記載シート!C:G,5,FALSE)&\"\",\"\")=Config!$J$46,D83=Config!$J$47,\"\")","v":false},0,0]
[null,null,44,{"$f":"IF($D$7,VLOOKUP(C84,点検結果記載シート!C:E,3,FALSE)&\"\",\"\")","v":""},true,false,{"$f":"IF($D$7,VLOOKUP(C84,算出パラメータ!C:G,2,FALSE),\"\")","v":""},false,{"$f":"IF(ISERROR(D84),0,IF(OR(D84=\"\",NOT($D$7)),0,VLOOKUP(C84&D84,算出パラメータ!N:P,3,FALSE)))","v":0},false,{"$f":"IF(ISERROR(D84),0,IF(OR(D84=\"\",NOT($D$7)),0,VLOOKUP(C84&D84,算出パラメータ!N:R,5,FALSE)))","v":0},{"$f":"IFERROR(MATCH(C84,アドバイス文に関する追加説明!A:A,0),\"\")","v":50},{"$f":"IFERROR(VLOOKUP(C84,アドバイス文に関する追加説明!A:D,2,FALSE)&\"\",\"\")","v":"No.44【週間計画の整合性（介護保険サービス）】について面談時確認することをお勧めします。"},{"$f":"IF(IFERROR(VLOOKUP(C84,点検結果記載シート!C:G,5,FALSE)&\"\",\"\")=Config!$J$46,D84=Config!$J$47,\"\")","v":""},0,0]
[null,null,45,{"$f":"IF($D$7,VLOOKUP(C85,点検結果記載シート!C:E,3,FALSE)&\"\",\"\")","v":""},true,false,{"$f":"IF($D$7,VLOOKUP(C85,算出パラメータ!C:G,2,FALSE),\"\")","v":""},false,{"$f":"IF(ISERROR(D85),0,IF(OR(D85=\"\",NOT($D$7)),0,VLOOKUP(C85&D85,算出パラメータ!N:P,3,FALSE)))","v":0},false,{"$f":"IF(ISERROR(D85),0,IF(OR(D85=\"\",NOT($D$7)),0,VLOOKUP(C85&D85,算出パラメータ!N:R,5,FALSE)))","v":0},{"$f":"IFERROR(MATCH(C85,アドバイス文に関する追加説明!A:A,0),\"\")","v":51},{"$f":"IFERROR(VLOOKUP(C85,アドバイス文に関する追加説明!A:D,2,FALSE)&\"\",\"\")","v":"No.45【週間計画の整合性（インフォーマルサポート）】について面談時確認することをお勧めします。"},{"$f":"IF(IFERROR(VLOOKUP(C85,点検結果記載シート!C:G,5,FALSE)&\"\",\"\")=Config!$J$46,D85=Config!$J$47,\"\")","v":""},1.9451631717193697E-2,0]
[null,null,46,{"$f":"IF($D$7,VLOOKUP(C86,点検結果記載シート!C:E,3,FALSE)&\"\",\"\")","v":""},true,false,{"$f":"IF($D$7,VLOOKUP(C86,算出パラメータ!C:G,2,FALSE),\"\")","v":""},false,{"$f":"IF(ISERROR(D86),0,IF(OR(D86=\"\",NOT($D$7)),0,VLOOKUP(C86&D86,算出パラメータ!N:P,3,FALSE)))","v":0},false,{"$f":"IF(ISERROR(D86),0,IF(OR(D86=\"\",NOT($D$7)),0,VLOOKUP(C86&D86,算出パラメータ!N:R,5,FALSE)))","v":0},{"$f":"IFERROR(MATCH(C86,アドバイス文に関する追加説明!A:A,0),\"\")","v":52},{"$f":"IFERROR(VLOOKUP(C86,アドバイス文に関する追加説明!A:D,2,FALSE)&\"\",\"\")","v":"No.46【週間計画の整合性（一日の習慣化された活動）】について面談時確認することをお勧めします。"},{"$f":"IF(IFERROR(VLOOKUP(C86,点検結果記載シート!C:G,5,FALSE)&\"\",\"\")=Config!$J$46,D86=Config!$J$47,\"\")","v":""},0.18926981551777503,0]
[null,null,47,{"$f":"IF($D$7,VLOOKUP(C87,点検結果記載シート!C:E,3,FALSE)&\"\",\"\")","v":""},true,false,{"$f":"IF($D$7,VLOOKUP(C87,算出パラメータ!C:G,2,FALSE),\"\")","v":""},false,{"$f":"IF(ISERROR(D87),0,IF(OR(D87=\"\",NOT($D$7)),0,VLOOKUP(C87&D87,算出パラメータ!N:P,3,FALSE)))","v":0},false,{"$f":"IF(ISERROR(D87),0,IF(OR(D87=\"\",NOT($D$7)),0,VLOOKUP(C87&D87,算出パラメータ!N:R,5,FALSE)))","v":0},{"$f":"IFERROR(MATCH(C87,アドバイス文に関する追加説明!A:A,0),\"\")","v":53},{"$f":"IFERROR(VLOOKUP(C87,アドバイス文に関する追加説明!A:D,2,FALSE)&\"\",\"\")","v":"No.47【家族の役割設定の整合性】について面談時確認することをお勧めします。"},{"$f":"IF(IFERROR(VLOOKUP(C87,点検結果記載シート!C:G,5,FALSE)&\"\",\"\")=Config!$J$46,D87=Config!$J$47,\"\")","v":""},8.8042901796129294E-2,0]
[null,null,48,{"$f":"IF($D$7,VLOOKUP(C88,点検結果記載シート!C:E,3,FALSE)&\"\",\"\")","v":""},true,false,{"$f":"IF($D$7,VLOOKUP(C88,算出パラメータ!C:G,2,FALSE),\"\")","v":""},false,{"$f":"IF(ISERROR(D88),0,IF(OR(D88=\"\",NOT($D$7)),0,VLOOKUP(C88&D88,算出パラメータ!N:P,3,FALSE)))","v":0},false,{"$f":"IF(ISERROR(D88),0,IF(OR(D88=\"\",NOT($D$7)),0,VLOOKUP(C88&D88,算出パラメータ!N:R,5,FALSE)))","v":0},{"$f":"IFERROR(MATCH(C88,アドバイス文に関する追加説明!A:A,0),\"\")","v":54},{"$f":"IFERROR(VLOOKUP(C88,アドバイス文に関する追加説明!A:D,2,FALSE)&\"\",\"\")","v":"No.48【サービス担当者会議の開催】について面談時確認することをお勧めします。"},{"$f":"IF(IFERROR(VLOOKUP(C88,点検結果記載シート!C:G,5,FALSE)&\"\",\"\")=Config!$J$46,D88=Config!$J$47,\"\")","v":false},0,0]
[null,null,49,{"$f":"IF($D$7,VLOOKUP(C89,点検結果記載シート!C:E,3,FALSE)&\"\",\"\")","v":""},true,false,{"$f":"IF($D$7,VLOOKUP(C89,算出パラメータ!C:G,2,FALSE),\"\")","v":""},false,{"$f":"IF(ISERROR(D89),0,IF(OR(D89=\"\",NOT($D$7)),0,VLOOKUP(C89&D89,算出パラメータ!N:P,3,FALSE)))","v":0},false,{"$f":"IF(ISERROR(D89),0,IF(OR(D89=\"\",NOT($D$7)),0,VLOOKUP(C89&D89,算出パラメータ!N:R,5,FALSE)))","v":0},{"$f":"IFERROR(MATCH(C89,アドバイス文に関する追加説明!A:A,0),\"\")","v":55},{"$f":"IFERROR(VLOOKUP(C89,アドバイス文に関する追加説明!A:D,2,FALSE)&\"\",\"\")","v":"No.49【サービス担当者会議への本人/家族の出席】について面談時確認することをお勧めします。"},{"$f":"IF(IFERROR(VLOOKUP(C89,点検結果記載シート!C:G,5,FALSE)&\"\",\"\")=Config!$J$46,D89=Config!$J$47,\"\")","v":""},0.101866364760059,0]
[null,null,50,{"$f":"IF($D$7,VLOOKUP(C90,点検結果記載シート!C:E,3,FALSE)&\"\",\"\")","v":""},true,false,{"$f":"IF($D$7,VLOOKUP(C90,算出パラメータ!C:G,2,FALSE),\"\")","v":""},false,{"$f":"IF(ISERROR(D90),0,IF(OR(D90=\"\",NOT($D$7)),0,VLOOKUP(C90&D90,算出パラメータ!N:P,3,FALSE)))","v":0},false,{"$f":"IF(ISERROR(D90),0,IF(OR(D90=\"\",NOT($D$7)),0,VLOOKUP(C90&D90,算出パラメータ!N:R,5,FALSE)))","v":0},{"$f":"IFERROR(MATCH(C90,アドバイス文に関する追加説明!A:A,0),\"\")","v":56},{"$f":"IFERROR(VLOOKUP(C90,アドバイス文に関する追加説明!A:D,2,FALSE)&\"\",\"\")","v":"No.50【サービス担当者会議への家族の出席】について面談時確認することをお勧めします。"},{"$f":"IF(IFERROR(VLOOKUP(C90,点検結果記載シート!C:G,5,FALSE)&\"\",\"\")=Config!$J$46,D90=Config!$J$47,\"\")","v":""},0,0]
[null,null,52,{"$f":"IF($D$7,VLOOKUP(C91,点検結果記載シート!C:E,3,FALSE)&\"\",\"\")","v":""},true,false,{"$f":"IF($D$7,VLOOKUP(C91,算出パラメータ!C:G,2,FALSE),\"\")","v":""},false,{"$f":"IF(ISERROR(D91),0,IF(OR(D91=\"\",NOT($D$7)),0,VLOOKUP(C91&D91,算出パラメータ!N:P,3,FALSE)))","v":0},false,{"$f":"IF(ISERROR(D91),0,IF(OR(D91=\"\",NOT($D$7)),0,VLOOKUP(C91&D91,算出パラメータ!N:R,5,FALSE)))","v":0},{"$f":"IFERROR(MATCH(C91,アドバイス文に関する追加説明!A:A,0),\"\")","v":58},{"$f":"IFERROR(VLOOKUP(C91,アドバイス文に関する追加説明!A:D,2,FALSE)&\"\",\"\")","v":"No.52【サービス担当者会議の議題（検討項目）】について面談時確認することをお勧めします。"},{"$f":"IF(IFERROR(VLOOKUP(C91,点検結果記載シート!C:G,5,FALSE)&\"\",\"\")=Config!$J$46,D91=Config!$J$47,\"\")","v":false},0,0]
[null,null,53,{"$f":"IF($D$7,VLOOKUP(C92,点検結果記載シート!C:E,3,FALSE)&\"\",\"\")","v":""},true,false,{"$f":"IF($D$7,VLOOKUP(C92,算出パラメータ!C:G,2,FALSE),\"\")","v":""},false,{"$f":"IF(ISERROR(D92),0,IF(OR(D92=\"\",NOT($D$7)),0,VLOOKUP(C92&D92,算出パラメータ!N:P,3,FALSE)))","v":0},false,{"$f":"IF(ISERROR(D92),0,IF(OR(D92=\"\",NOT($D$7)),0,VLOOKUP(C92&D92,算出パラメータ!N:R,5,FALSE)))","v":0},{"$f":"IFERROR(MATCH(C92,アドバイス文に関する追加説明!A:A,0),\"\")","v":59},{"$f":"IFERROR(VLOOKUP(C92,アドバイス文に関する追加説明!A:D,2,FALSE)&\"\",\"\")","v":"No.53【サービス担当者会議の検討内容】について面談時確認することをお勧めします。"},{"$f":"IF(IFERROR(VLOOKUP(C92,点検結果記載シート!C:G,5,FALSE)&\"\",\"\")=Config!$J$46,D92=Config!$J$47,\"\")","v":false},0.26775833851886999,0]
[null,null,54,{"$f":"IF($D$7,VLOOKUP(C93,点検結果記載シート!C:E,3,FALSE)&\"\",\"\")","v":""},true,false,{"$f":"IF($D$7,VLOOKUP(C93,算出パラメータ!C:G,2,FALSE),\"\")","v":""},false,{"$f":"IF(ISERROR(D93),0,IF(OR(D93=\"\",NOT($D$7)),0,VLOOKUP(C93&D93,算出パラメータ!N:P,3,FALSE)))","v":0},false,{"$f":"IF(ISERROR(D93),0,IF(OR(D93=\"\",NOT($D$7)),0,VLOOKUP(C93&D93,算出パラメータ!N:R,5,FALSE)))","v":0},{"$f":"IFERROR(MATCH(C93,アドバイス文に関する追加説明!A:A,0),\"\")","v":60},{"$f":"IFERROR(VLOOKUP(C93,アドバイス文に関する追加説明!A:D,2,FALSE)&\"\",\"\")","v":"No.54【サービス担当者会議で残された課題】について面談時確認することをお勧めします。"},{"$f":"IF(IFERROR(VLOOKUP(C93,点検結果記載シート!C:G,5,FALSE)&\"\",\"\")=Config!$J$46,D93=Config!$J$47,\"\")","v":""},0,0]
[null,null,55,{"$f":"IF($D$7,VLOOKUP(C94,点検結果記載シート!C:E,3,FALSE)&\"\",\"\")","v":""},true,false,{"$f":"IF($D$7,VLOOKUP(C94,算出パラメータ!C:G,2,FALSE),\"\")","v":""},false,{"$f":"IF(ISERROR(D94),0,IF(OR(D94=\"\",NOT($D$7)),0,VLOOKUP(C94&D94,算出パラメータ!N:P,3,FALSE)))","v":0},false,{"$f":"IF(ISERROR(D94),0,IF(OR(D94=\"\",NOT($D$7)),0,VLOOKUP(C94&D94,算出パラメータ!N:R,5,FALSE)))","v":0},{"$f":"IFERROR(MATCH(C94,アドバイス文に関する追加説明!A:A,0),\"\")","v":61},{"$f":"IFERROR(VLOOKUP(C94,アドバイス文に関する追加説明!A:D,2,FALSE)&\"\",\"\")","v":"No.55【居宅サービス計画の交付の記録】について面談時確認することをお勧めします。"},{"$f":"IF(IFERROR(VLOOKUP(C94,点検結果記載シート!C:G,5,FALSE)&\"\",\"\")=Config!$J$46,D94=Config!$J$47,\"\")","v":false},0,0]
[null,null,56,{"$f":"IF($D$7,VLOOKUP(C95,点検結果記載シート!C:E,3,FALSE)&\"\",\"\")","v":""},true,false,{"$f":"IF($D$7,VLOOKUP(C95,算出パラメータ!C:G,2,FALSE),\"\")","v":""},false,{"$f":"IF(ISERROR(D95),0,IF(OR(D95=\"\",NOT($D$7)),0,VLOOKUP(C95&D95,算出パラメータ!N:P,3,FALSE)))","v":0},false,{"$f":"IF(ISERROR(D95),0,IF(OR(D95=\"\",NOT($D$7)),0,VLOOKUP(C95&D95,算出パラメータ!N:R,5,FALSE)))","v":0},{"$f":"IFERROR(MATCH(C95,アドバイス文に関する追加説明!A:A,0),\"\")","v":62},{"$f":"IFERROR(VLOOKUP(C95,アドバイス文に関する追加説明!A:D,2,FALSE)&\"\",\"\")","v":"No.56【サービス担当者会議の招集】について面談時確認することをお勧めします。"},{"$f":"IF(IFERROR(VLOOKUP(C95,点検結果記載シート!C:G,5,FALSE)&\"\",\"\")=Config!$J$46,D95=Config!$J$47,\"\")","v":false},0,0]
[null,null,57,{"$f":"IF($D$7,VLOOKUP(C96,点検結果記載シート!C:E,3,FALSE)&\"\",\"\")","v":""},true,false,{"$f":"IF($D$7,VLOOKUP(C96,算出パラメータ!C:G,2,FALSE),\"\")","v":""},false,{"$f":"IF(ISERROR(D96),0,IF(OR(D96=\"\",NOT($D$7)),0,VLOOKUP(C96&D96,算出パラメータ!N:P,3,FALSE)))","v":0},false,{"$f":"IF(ISERROR(D96),0,IF(OR(D96=\"\",NOT($D$7)),0,VLOOKUP(C96&D96,算出パラメータ!N:R,5,FALSE)))","v":0},{"$f":"IFERROR(MATCH(C96,アドバイス文に関する追加説明!A:A,0),\"\")","v":63},{"$f":"IFERROR(VLOOKUP(C96,アドバイス文に関する追加説明!A:D,2,FALSE)&\"\",\"\")","v":"No.57【利用者宅への月1回以上の訪問】について面談時確認することをお勧めします。"},{"$f":"IF(IFERROR(VLOOKUP(C96,点検結果記載シート!C:G,5,FALSE)&\"\",\"\")=Config!$J$46,D96=Config!$J$47,\"\")","v":false},0.21299074599533196,0]
[null,null,58,{"$f":"IF($D$7,VLOOKUP(C97,点検結果記載シート!C:E,3,FALSE)&\"\",\"\")","v":""},true,false,{"$f":"IF($D$7,VLOOKUP(C97,算出パラメータ!C:G,2,FALSE),\"\")","v":""},false,{"$f":"IF(ISERROR(D97),0,IF(OR(D97=\"\",NOT($D$7)),0,VLOOKUP(C97&D97,算出パラメータ!N:P,3,FALSE)))","v":0},false,{"$f":"IF(ISERROR(D97),0,IF(OR(D97=\"\",NOT($D$7)),0,VLOOKUP(C97&D97,算出パラメータ!N:R,5,FALSE)))","v":0},{"$f":"IFERROR(MATCH(C97,アドバイス文に関する追加説明!A:A,0),\"\")","v":64},{"$f":"IFERROR(VLOOKUP(C97,アドバイス文に関する追加説明!A:D,2,FALSE)&\"\",\"\")","v":"No.58【サービス事業所との連絡・モニタリング内容】について面談時確認することをお勧めします。"},{"$f":"IF(IFERROR(VLOOKUP(C97,点検結果記載シート!C:G,5,FALSE)&\"\",\"\")=Config!$J$46,D97=Config!$J$47,\"\")","v":false},6.0273594644912207E-2,0]
[null,null,59,{"$f":"IF($D$7,VLOOKUP(C98,点検結果記載シート!C:E,3,FALSE)&\"\",\"\")","v":""},true,false,{"$f":"IF($D$7,VLOOKUP(C98,算出パラメータ!C:G,2,FALSE),\"\")","v":""},false,{"$f":"IF(ISERROR(D98),0,IF(OR(D98=\"\",NOT($D$7)),0,VLOOKUP(C98&D98,算出パラメータ!N:P,3,FALSE)))","v":0},false,{"$f":"IF(ISERROR(D98),0,IF(OR(D98=\"\",NOT($D$7)),0,VLOOKUP(C98&D98,算出パラメータ!N:R,5,FALSE)))","v":0},{"$f":"IFERROR(MATCH(C98,アドバイス文に関する追加説明!A:A,0),\"\")","v":65},{"$f":"IFERROR(VLOOKUP(C98,アドバイス文に関する追加説明!A:D,2,FALSE)&\"\",\"\")","v":"No.59【変化を捉える視点】について面談時確認することをお勧めします。"},{"$f":"IF(IFERROR(VLOOKUP(C98,点検結果記載シート!C:G,5,FALSE)&\"\",\"\")=Config!$J$46,D98=Config!$J$47,\"\")","v":""},1.7506560055461397E-2,0]
[null,null,60,{"$f":"IF($D$7,VLOOKUP(C99,点検結果記載シート!C:E,3,FALSE)&\"\",\"\")","v":""},true,false,{"$f":"IF($D$7,VLOOKUP(C99,算出パラメータ!C:G,2,FALSE),\"\")","v":""},false,{"$f":"IF(ISERROR(D99),0,IF(OR(D99=\"\",NOT($D$7)),0,VLOOKUP(C99&D99,算出パラメータ!N:P,3,FALSE)))","v":0},false,{"$f":"IF(ISERROR(D99),0,IF(OR(D99=\"\",NOT($D$7)),0,VLOOKUP(C99&D99,算出パラメータ!N:R,5,FALSE)))","v":0},{"$f":"IFERROR(MATCH(C99,アドバイス文に関する追加説明!A:A,0),\"\")","v":66},{"$f":"IFERROR(VLOOKUP(C99,アドバイス文に関する追加説明!A:D,2,FALSE)&\"\",\"\")","v":"No.60【本人の心身状態に関する変化の医療者への報告】について面談時確認することをお勧めします。"},{"$f":"IF(IFERROR(VLOOKUP(C99,点検結果記載シート!C:G,5,FALSE)&\"\",\"\")=Config!$J$46,D99=Config!$J$47,\"\")","v":""},5.2080681135177803E-2,0]
[null,null,61,{"$f":"IF($D$7,VLOOKUP(C100,点検結果記載シート!C:E,3,FALSE)&\"\",\"\")","v":""},true,false,{"$f":"IF($D$7,VLOOKUP(C100,算出パラメータ!C:G,2,FALSE),\"\")","v":""},false,{"$f":"IF(ISERROR(D100),0,IF(OR(D100=\"\",NOT($D$7)),0,VLOOKUP(C100&D100,算出パラメータ!N:P,3,FALSE)))","v":0},false,{"$f":"IF(ISERROR(D100),0,IF(OR(D100=\"\",NOT($D$7)),0,VLOOKUP(C100&D100,算出パラメータ!N:R,5,FALSE)))","v":0},{"$f":"IFERROR(MATCH(C100,アドバイス文に関する追加説明!A:A,0),\"\")","v":67},{"$f":"IFERROR(VLOOKUP(C100,アドバイス文に関する追加説明!A:D,2,FALSE)&\"\",\"\")","v":"No.61【ケアプランに位置付けられている多職種との連携】について面談時確認することをお勧めします。"},{"$f":"IF(IFERROR(VLOOKUP(C100,点検結果記載シート!C:G,5,FALSE)&\"\",\"\")=Config!$J$46,D100=Config!$J$47,\"\")","v":""},0.18669700482901358,0]
[null,null,62,{"$f":"IF($D$7,VLOOKUP(C101,点検結果記載シート!C:E,3,FALSE)&\"\",\"\")","v":""},true,false,{"$f":"IF($D$7,VLOOKUP(C101,算出パラメータ!C:G,2,FALSE),\"\")","v":""},false,{"$f":"IF(ISERROR(D101),0,IF(OR(D101=\"\",NOT($D$7)),0,VLOOKUP(C101&D101,算出パラメータ!N:P,3,FALSE)))","v":0},false,{"$f":"IF(ISERROR(D101),0,IF(OR(D101=\"\",NOT($D$7)),0,VLOOKUP(C101&D101,算出パラメータ!N:R,5,FALSE)))","v":0},{"$f":"IFERROR(MATCH(C101,アドバイス文に関する追加説明!A:A,0),\"\")","v":68},{"$f":"IFERROR(VLOOKUP(C101,アドバイス文に関する追加説明!A:D,2,FALSE)&\"\",\"\")","v":"No.62【ケアプランに位置付けられていない多職種との連携】について面談時確認することをお勧めします。"},{"$f":"IF(IFERROR(VLOOKUP(C101,点検結果記載シート!C:G,5,FALSE)&\"\",\"\")=Config!$J$46,D101=Config!$J$47,\"\")","v":""},0,0]
[]
[]
[null,"結果一覧"]
[null,null,"点検結果記載シート",null,null,null,null,null,null,null,null,null,null,null,null,null,null,null,null,null,null,null,null,null,null,null,null,null,null,null,null,null,null,null,null,null,null,null,null,null,null,null,null,null,null,null,null,null,null,null,null,null,null,null,null,null,null,null,null,null,null,null,null,null,null,null,null,null,null,null,"採点結果記載シート"]
[null,null,"点検日","市区町村名","点検者名","ケアマネジャー名","事業所名","被保険者名","課題分析の理由","かかりつけ医","既往歴の有無・内容","主傷病","内服薬・処置","ADL","IADL","認知機能や判断能力","コミュニケーションにおける理解と表出の状況","一日に摂取すべき水分量","実際に摂取した水分量","食事内容・カロリー数","BMI","口腔衛生の状態","排尿、排便の状態","清潔の保持","「一部介助」項目の特記","「見守り」項目の特記","外出頻度、外出先","利用者の主訴・要望","一日の過ごし方","離床、臥床","現在の生活状況","生活歴","家族の主訴・要望","経済状況","本人の役割","課題の確認","課題の分析結果の文章化","家族の状況","家族関係や周辺の社会資源との状況","留意すべき事項","利用者及び家族の生活に対する意向を踏まえた課題分析の結果","総合的な援助の方針における自立の具体性","アセスメントで抽出した課題に基づくニーズの記載","利用者や多職種に理解できる表記","長期目標","短期目標","本人の役割設定","介護保険サービス","福祉用具貸与・販売の種類と利用の理由","介護保険外サービス","利用者の意思を反映したサービス事業所の利用","週間計画の整合性\n（介護保険サービス）","週間計画の整合性\n（インフォーマルサポート）","週間計画の整合性\n（一日の習慣化された活動）","家族の役割設定の整合性","サービス担当者会議の開催","サービス担当者会議への本人の出席","サービス担当者会議への家族の出席","サービス担当者会議へのサービス担当者の出席","サービス担当者会議の議題（検討項目）","サービス担当者会議の検討内容","サービス担当者会議で残された課題","居宅サービス計画の交付の記録","サービス担当者会議の招集","利用者宅への月1回以上の訪問","サービス事業所との連絡・モニタリング内容","変化を捉える視点","本人の心身状態に関する変化の医療者への報告","ケアプランに位置付けられている多職種との連携","ケアプランに位置付けられていない多職種との連携","評価区分","生活の\n全体像\nの把握","疾病・\n心身状態\nの把握","主訴・意思\nの把握・尊重","課題の\n分析","課題を解決\nするための\nサービス計画","家族の状況\nの把握と支援","多職種\nとの連携","運営判定基準"]
[null,null,null,null,null,null,null,null,null,null,null,null,null,null,null,null,null,null,null,null,null,null,null,null,null,null,null,null,null,null,null,null,null,null,null,null,null,null,null,null,null,null,null,null,null,null,null,null,null,null,null,null,null,null,null,null,null,null,null,null,null,null,null,null,null,null,null,null,null,null,{"$f":"VLOOKUP(BS106,Config!$I:$L,2,FALSE)","v":"C10"},{"$f":"VLOOKUP(BT106,Config!$I:$L,2,FALSE)","v":"D10"},{"$f":"VLOOKUP(BU106,Config!$I:$L,2,FALSE)","v":"E10"},{"$f":"VLOOKUP(BV106,Config!$I:$L,2,FALSE)","v":"F10"},{"$f":"VLOOKUP(BW106,Config!$I:$L,2,FALSE)","v":"G10"},{"$f":"VLOOKUP(BX106,Config!$I:$L,2,FALSE)","v":"H10"},{"$f":"VLOOKUP(BY106,Config!$I:$L,2,FALSE)","v":"I10"},{"$f":"VLOOKUP(BZ106,Config!$I:$L,2,FALSE)","v":"J10"},{"$f":"VLOOKUP(CA106,Config!$I:$L,2,FALSE)","v":"K10"}]
[null,null,{"$f":"TEXT(VLOOKUP(C106,点検結果記載シート!$D:$E,2,)&\"\",\"yyyy/m/d\")","v":""},{"$f":"VLOOKUP(D106,点検結果記載シート!$D:$E,2,)&\"\"","v":""},{"$f":"VLOOKUP(E106,点検結果記載シート!$D:$E,2,)&\"\"","v":""},{"$f":"VLOOKUP(F106,点検結果記載シート!$D:$E,2,)&\"\"","v":""},{"$f":"VLOOKUP(G106,点検結果記載シート!$D:$E,2,)&\"\"","v":""},{"$f":"VLOOKUP(H106,点検結果記載シート!$D:$E,2,)&\"\"","v":""},{"$f":"VLOOKUP(I106,点検結果記載シート!$D:$E,2,)&\"\"","v":""},{"$f":"VLOOKUP(J106,点検結果記載シート!$D:$E,2,)&\"\"","v":""},{"$f":"VLOOKUP(K106,点検結果記載シート!$D:$E,2,)&\"\"","v":""},{"$f":"VLOOKUP(L106,点検結果記載シート!$D:$E,2,)&\"\"","v":""},{"$f":"VLOOKUP(M106,点検結果記載シート!$D:$E,2,)&\"\"","v":""},{"$f":"VLOOKUP(N106,点検結果記載シート!$D:$E,2,)&\"\"","v":""},{"$f":"VLOOKUP(O106,点検結果記載シート!$D:$E,2,)&\"\"","v":""},{"$f":"VLOOKUP(P106,点検結果記載シート!$D:$E,2,)&\"\"","v":""},{"$f":"VLOOKUP(Q106,点検結果記載シート!$D:$E,2,)&\"\"","v":""},{"$f":"VLOOKUP(R106,点検結果記載シート!$D:$E,2,)&\"\"","v":""},{"$f":"VLOOKUP(S106,点検結果記載シート!$D:$E,2,)&\"\"","v":""},{"$f":"VLOOKUP(T106,点検結果記載シート!$D:$E,2,)&\"\"","v":""},{"$f":"VLOOKUP(U106,点検結果記載シート!$D:$E,2,)&\"\"","v":""},{"$f":"VLOOKUP(V106,点検結果記載シート!$D:$E,2,)&\"\"","v":""},{"$f":"VLOOKUP(W106,点検結果記載シート!$D:$E,2,)&\"\"","v":""},{"$f":"VLOOKUP(X106,点検結果記載シート!$D:$E,2,)&\"\"","v":""},{"$f":"VLOOKUP(Y106,点検結果記載シート!$D:$E,2,)&\"\"","v":""},{"$f":"VLOOKUP(Z106,点検結果記載シート!$D:$E,2,)&\"\"","v":""},{"$f":"VLOOKUP(AA106,点検結果記載シート!$D:$E,2,)&\"\"","v":""},{"$f":"VLOOKUP(AB106,点検結果記載シート!$D:$E,2,)&\"\"","v":""},{"$f":"VLOOKUP(AC106,点検結果記載シート!$D:$E,2,)&\"\"","v":""},{"$f":"VLOOKUP(AD106,点検結果記載シート!$D:$E,2,)&\"\"","v":""},{"$f":"VLOOKUP(AE106,点検結果記載シート!$D:$E,2,)&\"\"","v":""},{"$f":"VLOOKUP(AF106,点検結果記載シート!$D:$E,2,)&\"\"","v":""},{"$f":"VLOOKUP(AG106,点検結果記載シート!$D:$E,2,)&\"\"","v":""},{"$f":"VLOOKUP(AH106,点検結果記載シート!$D:$E,2,)&\"\"","v":""},{"$f":"VLOOKUP(AI106,点検結果記載シート!$D:$E,2,)&\"\"","v":""},{"$f":"VLOOKUP(AJ106,点検結果記載シート!$D:$E,2,)&\"\"","v":""},{"$f":"VLOOKUP(AK106,点検結果記載シート!$D:$E,2,)&\"\"","v":""},{"$f":"VLOOKUP(AL106,点検結果記載シート!$D:$E,2,)&\"\"","v":""},{"$f":"VLOOKUP(AM106,点検結果記載シート!$D:$E,2,)&\"\"","v":""},{"$f":"VLOOKUP(AN106,点検結果記載シート!$D:$E,2,)&\"\"","v":""},{"$f":"VLOOKUP(AO106,点検結果記載シート!$D:$E,2,)&\"\"","v":""},{"$f":"VLOOKUP(AP106,点検結果記載シート!$D:$E,2,)&\"\"","v":""},{"$f":"VLOOKUP(AQ106,点検結果記載シート!$D:$E,2,)&\"\"","v":""},{"$f":"VLOOKUP(AR106,点検結果記載シート!$D:$E,2,)&\"\"","v":""},{"$f":"VLOOKUP(AS106,点検結果記載シート!$D:$E,2,)&\"\"","v":""},{"$f":"VLOOKUP(AT106,点検結果記載シート!$D:$E,2,)&\"\"","v":""},{"$f":"VLOOKUP(AU106,点検結果記載シート!$D:$E,2,)&\"\"","v":""},{"$f":"VLOOKUP(AV106,点検結果記載シート!$D:$E,2,)&\"\"","v":""},{"$f":"VLOOKUP(AW106,点検結果記載シート!$D:$E,2,)&\"\"","v":""},{"$f":"VLOOKUP(AX106,点検結果記載シート!$D:$E,2,)&\"\"","v":""},{"$f":"VLOOKUP(AY106,点検結果記載シート!$D:$E,2,)&\"\"","v":""},{"$f":"VLOOKUP(AZ106,点検結果記載シート!$D:$E,2,)&\"\"","v":""},{"$f":"VLOOKUP(BA106,点検結果記載シート!$D:$E,2,)&\"\"","v":""},{"$f":"VLOOKUP(BB106,点検結果記載シート!$D:$E,2,)&\"\"","v":""},{"$f":"VLOOKUP(BC106,点検結果記載シート!$D:$E,2,)&\"\"","v":""},{"$f":"VLOOKUP(BD106,点検結果記載シート!$D:$E,2,)&\"\"","v":""},{"$f":"VLOOKUP(BE106,点検結果記載シート!$D:$E,2,)&\"\"","v":""},{"$f":"VLOOKUP(BF106,点検結果記載シート!$D:$E,2,)&\"\"","v":""},{"$f":"VLOOKUP(BG106,点検結果記載シート!$D:$E,2,)&\"\"","v":""},{"$f":"VLOOKUP(BH106,点検結果記載シート!$D:$E,2,)&\"\"","v":""},{"$f":"VLOOKUP(BI106,点検結果記載シート!$D:$E,2,)&\"\"","v":""},{"$f":"VLOOKUP(BJ106,点検結果記載シート!$D:$E,2,)&\"\"","v":""},{"$f":"VLOOKUP(BK106,点検結果記載シート!$D:$E,2,)&\"\"","v":""},{"$f":"VLOOKUP(BL106,点検結果記載シート!$D:$E,2,)&\"\"","v":""},{"$f":"VLOOKUP(BM106,点検結果記載シート!$D:$E,2,)&\"\"","v":""},{"$f":"VLOOKUP(BN106,点検結果記載シート!$D:$E,2,)&\"\"","v":""},{"$f":"VLOOKUP(BO106,点検結果記載シート!$D:$E,2,)&\"\"","v":""},{"$f":"VLOOKUP(BP106,点検結果記載シート!$D:$E,2,)&\"\"","v":""},{"$f":"VLOOKUP(BQ106,点検結果記載シート!$D:$E,2,)&\"\"","v":""},{"$f":"VLOOKUP(BR106,点検結果記載シート!$D:$E,2,)&\"\"","v":""},{"$f":"INDIRECT(Config!$G$7&\"!\"&BS107)&\"\"","v":""},{"$f":"INDIRECT(Config!$G$7&\"!\"&BT107)&\"\"","v":""},{"$f":"INDIRECT(Config!$G$7&\"!\"&BU107)&\"\"","v":""},{"$f":"INDIRECT(Config!$G$7&\"!\"&BV107)&\"\"","v":""},{"$f":"INDIRECT(Config!$G$7&\"!\"&BW107)&\"\"","v":""},{"$f":"INDIRECT(Config!$G$7&\"!\"&BX107)&\"\"","v":""},{"$f":"INDIRECT(Config!$G$7&\"!\"&BY107)&\"\"","v":""},{"$f":"INDIRECT(Config!$G$7&\"!\"&BZ107)&\"\"","v":""},{"$f":"INDIRECT(Config!$G$7&\"!\"&CA107)&\"\"","v":""}]

{"sheet":"files","index":12,"n_rows":4,"n_cols":8,"rows_kept":4,"cut":false,"hidden":false,"merged":[]}
[]
[null,null,null,null,null,null,"総数",{"$f":"COUNTA(A:A)","v":0}]
[null,null,null,null,null,null,"正常終了",{"$f":"COUNTIF(B:B,Config!U12)","v":0}]
[null,null,null,null,null,null,"異常終了",{"$f":"COUNTIF(B:B,Config!U13)","v":0}]

{"sheet":"Config","index":13,"n_rows":60,"n_cols":24,"rows_kept":60,"cut":false,"hidden":true,"merged":[[19,9,19,11],[20,9,20,11],[22,9,22,11],[5,19,5,20],[5,2,5,3],[5,5,5,6],[5,8,5,11],[16,9,16,11],[10,9,10,11],[6,9,6,11],[7,9,7,11],[8,9,8,11],[5,16,5,17],[5,13,5,14],[58,9,58,11],[59,9,59,11],[5,22,5,23],[24,9,24,11],[25,9,25,11],[26,9,26,11],[9,9,9,11],[11,9,11,11],[12,9,12,11],[13,9,13,11],[14,9,14,11],[15,9,15,11],[23,9,23,11],[21,9,21,11],[17,9,17,11],[18,9,18,11]]}
[]
[null,"凡例"]
[null,null,"数値"]
[null,null,"文字列"]
[]
[null,null,"点検結果記載シート",null,null,"採点結果記載シート",null,null,"算出シート",null,null,null,null,"アドバイスシート",null,null,"一括データ管理",null,null,"files",null,null,"算出パラメータ"]
[null,null,"名称","点検結果記載シート",null,"名称","評価区分シート",null,"名称","算出シート",null,null,null,"名称","アドバイス文に関する追加説明",null,"名称","一括データ管理",null,"名称","files",null,"正規化On/Off（True：On,False：Off）",false]
[null,null,"入力列","E",null,"総合判定出力列",3,null,"総合判定出力列",12,null,null,null,"アドバイス列","C",null,"実行マクロ名称","AddResult",null,"ファイル名列",1]
[null,null,"バックアップ列","K",null,"生活の全体像の把握出力列",4,null,"生活の全体像の把握判定列",4,null,null,null,null,null,null,"取込対象ファイルフィルター","*.xlsm",null,"処理結果列",2]
[null,null,"設問開始行",7,null,"疾病・心身状態の把握出力列",5,null,"疾病・心身状態の把握判定列",5,null,null,null,null,null,null,"タイトル行",2,null,"正常カウント","H3"]
[null,null,"設問終了行",75,null,"主訴・意思の把握・尊重出力列",6,null,"主訴・意思の把握・尊重判定列",6,null,null,null,null,null,null,"タイトル列数",77,null,"異常カウント","H4"]
[null,null,null,null,null,"課題の分析出力列",7,null,"課題の分析判定列",7,null,null,null,null,null,null,"データ検索起点セル","A65535",null,"正常表記","OK"]
[null,null,null,null,null,"課題を解決するためのサービス計画出力列",8,null,"課題を解決するためのサービス計画判定列",8,null,null,null,null,null,null,null,null,null,"異常表記","Error"]
[null,null,null,null,null,"家族の状況の把握と支援出力列",9,null,"家族の状況の把握と支援判定列",9]
[null,null,null,null,null,"多職種との連携出力列",10,null,"多職種との連携判定列",10]
[null,null,null,null,null,"運用判定基準出力列",11,null,"運用判定基準判定列",13]
[null,null,null,null,null,"点検結果タイトル行",9,null,"ID番号出力列",3]
[null,null,null,null,null,"点検結果出力行",10,null,"質問カテゴリ列",7]
[null,null,null,null,null,"結果出力範囲","CheckResult",null,"影響度出力列",11]
[null,null,null,null,null,"重点ポイントアドバイス出力範囲","FocusPointAdvice",null,"アドバイス出力数リンク先出力列",12]
[null,null,null,null,null,"生活の全体像の把握アドバイス出力範囲","GraspingTheBigPictureOfLife",null,"アドバイス出力列",13]
[null,null,null,null,null,"疾病・心身状態の把握アドバイス出力範囲","GraspOfIllnessAndMentalAndPhysicalCondition",null,"運用判定基準出力列",14]
[null,null,null,null,null,"主訴・意思の把握・尊重アドバイス出力範囲","UnderstandingAndRespectingChiefComplaintsAndIntentions",null,"点検結果タイトル行",22]
[null,null,null,null,null,"課題の分析アドバイス出力範囲","IssueAnalysis",null,"点検結果出力行",36]
[null,null,null,null,null,"課題を解決するためのサービス計画アドバイス出力範囲","ServicePlanToSolveTheProblem",null,"ソート範囲","SortRange"]
[null,null,null,null,null,"家族の状況の把握と支援アドバイス出力範囲","UnderstandingAndSupportingFamilySituations",null,"ID番号範囲","SortId"]
[null,null,null,null,null,"多職種との連携アドバイス出力範囲","CooperationWithMultipleOccupations",null,"影響度範囲","SortImpact"]
[null,null,null,null,null,"運用判定基準アドバイス出力範囲","OperationalDecisionCriteria",null,"CSVデータ出力範囲","ResultList"]
[null,null,null,null,null,"アドバイス出力数",5,null,"演算フラグ","D7"]
[null,null,null,null,null,"運用判定基準アドバイス出力数",16,null,"必須チェック","D10"]
[null,null,null,null,null,null,null,null,"質問エラー判定結果","D11"]
[null,null,null,null,null,null,null,null,"カテゴリ設定エラー判定","D12"]
[null,null,null,null,null,null,null,null,"係数設定エラー判定","D13"]
[null,null,null,null,null,null,null,null,"エラーチェック","D14"]
[null,null,null,null,null,null,null,null,"総合得点判定","A",null,4.5]
[null,null,null,null,null,null,null,null,null,"B",4.5,3.5]
[null,null,null,null,null,null,null,null,null,"C",3.5,2.5]
[null,null,null,null,null,null,null,null,null,"D",2.5,1.5]
[null,null,null,null,null,null,null,null,null,"E",1.5]
[null,null,null,null,null,null,null,null,"切片",-3.6806235344715401]
[null,null,null,null,null,null,null,null,"カテゴリ別の判定",5]
[null,null,null,null,null,null,null,null,null,4]
[null,null,null,null,null,null,null,null,null,3]
[null,null,null,null,null,null,null,null,null,2]
[null,null,null,null,null,null,null,null,null,1]
[null,null,null,null,null,null,null,null,"運用判定基準判","●"]
[null,null,null,null,null,null,null,null,null,"1"]
[null,null,null,null,null,null,null,null,null,"適合"]
[null,null,null,null,null,null,null,null,null,"要確認"]
[null,null,null,null,null,null,null,null,"評価区分","C10"]
[null,null,null,null,null,null,null,null,"生活の\n全体像\nの把握","D10"]
[null,null,null,null,null,null,null,null,"疾病・\n心身状態\nの把握","E10"]
[null,null,null,null,null,null,null,null,"主訴・意思\nの把握・尊重","F10"]
[null,null,null,null,null,null,null,null,"課題の\n分析","G10"]
[null,null,null,null,null,null,null,null,"課題を解決\nするための\nサービス計画","H10"]
[null,null,null,null,null,null,null,null,"家族の状況\nの把握と支援","I10"]
[null,null,null,null,null,null,null,null,"多職種\nとの連携","J10"]
[null,null,null,null,null,null,null,null,"運営判定基準","K10"]
[null,null,null,null,null,null,null,null,"アドバイス重み影響度","AdvicePriority"]
[null,null,null,null,null,null,null,null,"アドバイス重み影響度出力列",16]